Directorate,Department,Expenditure Type,Ref.Doc.1,Vendor Name,Expenditure Amount (exc VAT),Payment Date
Assurance,Assurance,Fees and Charges,20020306,ELECTORAL CLAIMS UNIT,"4,000.00",22/05/2015
Assurance,Assurance,Furniture-Purchase-Repair,60020207,FURNITUREHIREUK.COM,"1,320.19",07/05/2015
Assurance,Assurance,Furniture-Purchase-Repair,60019221,PAKFLATT (UK) LIMITED,"3,160.00",11/05/2015
Assurance,Assurance,Legal and Court Fees,60021253,LONDON BOROUGH OF HAVERING,"43,889.54",19/05/2015
Assurance,Assurance,Non Education Staff GPay,20019890,CITY OF WESTMINSTER,"38,400.00",07/05/2015
Assurance,Assurance,Other Services,60019198,ELECTORAL REFORM SERVICES,"42,741.33",15/05/2015
Assurance,Assurance,Professional Services,60021293,PAKFLATT (UK) LIMITED,906.00,21/05/2015
Assurance,Assurance,Professional Services,60012071,PRICEWATERHOUSE COOPERS,"15,600.00",27/05/2015
Assurance,Assurance,Rents,60019525,AVENUE HOUSE SERVICES LTD,270.00,01/05/2015
Assurance,Assurance,Rents,60022301,BARNET BOROUGH DISTRICT SCOUT COUNCIL,850.00,29/05/2015
Assurance,Assurance,Rents,60022450,BARNET LAWN TENNIS CLUB,750.00,29/05/2015
Assurance,Assurance,Rents,60021263,ETZ CHAIM JEWISH PRIMARY SCHOOL,544.50,19/05/2015
Assurance,Assurance,Rents,60022293,FRIERN BARNET HUT MANAGEMENT COMMIT,750.00,29/05/2015
Assurance,Assurance,Rents,60022398,HADLEY DISABLED SPORTS ASSOCIATION,300.00,29/05/2015
Assurance,Assurance,Rents,60022271,HINDU CULTURAL SOCIETY,650.00,29/05/2015
Assurance,Assurance,Rents,60022292,MANOR DRIVE METHODIST CHURCH,600.00,29/05/2015
Assurance,Assurance,Rents,60022306,ST JOHN THE APOSTLE CHURCH,320.00,29/05/2015
Assurance,Assurance,Rents,60022276,THE ANNUNCIATION CHURCH,600.00,29/05/2015
Assurance,Assurance,Rents,60022426,THE WOODSIDE PARK CLUB,900.00,29/05/2015
Assurance,Assurance,Transport Hire Charges,20020549,15TH FINCHLEY SCOUT GROUP,400.00,29/05/2015
Assurance,Assurance,Transport Hire Charges,20020551,ARKLEY CLUB,480.00,29/05/2015
Assurance,Assurance,Transport Hire Charges,20020547,FINCHLEY BAPTIST CHURCH,600.00,29/05/2015
Assurance,Assurance,Transport Hire Charges,20020540,FINCHLEY METHODIST CHURCH,475.00,29/05/2015
Assurance,Assurance,Transport Hire Charges,20020541,NEW BEVAN BAPTIST CHURCH,300.00,29/05/2015
Assurance,Assurance,Transport Hire Charges,20020543,ST EDWARD THE CONFESSOR CHURCH,700.00,29/05/2015
Assurance,Assurance,Transport Hire Charges,20020548,ST PAUL'S CHURCH,480.00,29/05/2015
Assurance,Assurance,Transport Hire Charges,20020545,ST PHILIP THE APOSTLE,300.00,29/05/2015
Assurance,Assurance,Transport Hire Charges,20020542,TOTTERIDGE TENNIS CLUB,660.00,29/05/2015
Assurance,Assurance,Ttl IT & Comms,60019503,TWOFOLD LTD,"4,125.00",07/05/2015
Central Expenses,Central Expenses,Grant Payments,60020022,TRANSPORT FOR LONDON,"108,504.70",26/05/2015
Central Expenses,Central Expenses,Insurance Claims,20020351,ALLWEIS + CO SOLICITORS,407.00,22/05/2015
Central Expenses,Central Expenses,Insurance Claims,20020119,ALLWEIS COMPANY SOLICITORS,510.00,18/05/2015
Central Expenses,Central Expenses,Insurance Claims,20020367,ALTIUS LAW,"9,829.50",22/05/2015
Central Expenses,Central Expenses,Insurance Claims,20019911,CANTER LEVIN & BERG,576.00,08/05/2015
Central Expenses,Central Expenses,Insurance Claims,60011063,CLYDE & CO LLP,"2,443.75",07/05/2015
Central Expenses,Central Expenses,Insurance Claims,60012446,CLYDE & CO LLP,825.00,07/05/2015
Central Expenses,Central Expenses,Insurance Claims,60018454,CLYDE & CO LLP,"1,470.00",07/05/2015
Central Expenses,Central Expenses,Insurance Claims,60018516,CLYDE & CO LLP,"1,110.00",07/05/2015
Central Expenses,Central Expenses,Insurance Claims,60019096,CLYDE & CO LLP,"1,425.00",15/05/2015
Central Expenses,Central Expenses,Insurance Claims,20020118,DAC BEACHCROFT CLAIMS LTD,"1,677.86",18/05/2015
Central Expenses,Central Expenses,Insurance Claims,20020240,DEPARTMENT FOR WORK & PENSIONS,627.00,19/05/2015
Central Expenses,Central Expenses,Insurance Claims,20020262,DEPARTMENT FOR WORK & PENSIONS,627.00,19/05/2015
Central Expenses,Central Expenses,Insurance Claims,20020373,DEPARTMENT FOR WORK & PENSIONS,637.00,22/05/2015
Central Expenses,Central Expenses,Insurance Claims,20020245,DEPARTMENT FOR WORK AND PENSIONS,"1,288.93",19/05/2015
Central Expenses,Central Expenses,Insurance Claims,20020238,DIRECT LINE,"1,274.48",19/05/2015
Central Expenses,Central Expenses,Insurance Claims,20020104,DIRECT LINE MOTOR CLAIMS,"1,307.52",18/05/2015
Central Expenses,Central Expenses,Insurance Claims,20020353,DIRECT LINE MOTOR CLAIMS,957.21,22/05/2015
Central Expenses,Central Expenses,Insurance Claims,20019909,HELPHIRE LTD,"1,183.56",08/05/2015
Central Expenses,Central Expenses,Insurance Claims,20020404,IRWIN MITCHELL LLP,"16,643.91",22/05/2015
Central Expenses,Central Expenses,Insurance Claims,60018487,JOHNSON AUSTIN PARTNERSHIP LLP,455.00,07/05/2015
Central Expenses,Central Expenses,Insurance Claims,60019191,JOHNSON AUSTIN PARTNERSHIP LLP,455.00,15/05/2015
Central Expenses,Central Expenses,Insurance Claims,60014835,KENNEDYS,322.00,07/05/2015
Central Expenses,Central Expenses,Insurance Claims,20020436,KENNEDYS SOLICITORS,"6,500.00",27/05/2015
Central Expenses,Central Expenses,Insurance Claims,60020009,LEGAL COSTS NEGOTIATORS,841.72,18/05/2015
Central Expenses,Central Expenses,Insurance Claims,20020246,MARKERSTUDY INSURANCE,550.00,19/05/2015
Central Expenses,Central Expenses,Insurance Claims,20020100,OSBORNES SOLICITORS,"11,250.00",18/05/2015
Central Expenses,Central Expenses,Insurance Claims,20020448,PRODDOW MACKAY LTD,"1,640.89",27/05/2015
Central Expenses,Central Expenses,Insurance Claims,20020449,PRODDOW MACKAY LTD,"4,085.54",27/05/2015
Central Expenses,Central Expenses,Insurance Claims,20019930,SCOTT REES & CO. SOLICITORS,"1,164.00",11/05/2015
Central Expenses,Central Expenses,Insurance Claims,20020608,WARD AND RIDER SOLICITORS,"36,778.00",29/05/2015
Central Expenses,Central Expenses,Insurance Claims,60011173,WEIGHTMANS LLP,775.10,07/05/2015
Central Expenses,Central Expenses,Insurance Claims,60011174,WEIGHTMANS LLP,"1,092.24",07/05/2015
Central Expenses,Central Expenses,Insurance Claims,60011197,WEIGHTMANS LLP,967.77,07/05/2015
Central Expenses,Central Expenses,Insurance Claims,20019856,WILKIN CHAPMAN GRANGE SOLICITORS,"7,000.00",08/05/2015
Central Expenses,Central Expenses,Joint Authorities - Third Party,EBX0060669,NORTH LONDON WASTE AUTHORITY,"894,643.00",21/05/2015
Central Expenses,Central Expenses,Other Establishments - Third P,EBX0059244,LEE VALLEY REGIONAL PARK AUTH.,"33,052.02",13/05/2015
Central Expenses,Central Expenses,Other Establishments - Third P,60019788,LONDON COUNCILS,"98,667.00",11/05/2015
Central Expenses,Central Expenses,Other Establishments - Third P,EBX0059237,LONDON PENSIONS FUND AUTHORITY,"50,154.80",13/05/2015
Central Expenses,Central Expenses,Other Establishments - Third P,EBX0061138,TRANSPORT TRADING LIMITED,"3,754,156.00",26/05/2015
Central Expenses,Central Expenses,Pensions To Retired Employees,10012280,LONDON PENSIONS FUND AUTHORITY,"3,706.86",15/05/2015
Central Expenses,Central Expenses,Subscriptions,10012238,LOCAL GOVERNMENT ASSOCIATION,"62,082.73",07/05/2015
Commercial,Customer Support Group,Books-CDs-Audio-Video,60019368,SM ELECTRICAL SERVICES,350.00,15/05/2015
Commercial,Customer Support Group,Books-CDs-Audio-Video,60019369,SM ELECTRICAL SERVICES,390.00,12/05/2015
Commercial,Customer Support Group,Building Repairs & Maintenance,60020204,BLUE 9 SECURITY LIMITED,300.00,07/05/2015
Commercial,Customer Support Group,Building Repairs & Maintenance,60020278,D LONG (CONSTRUCTION) LTD,440.00,07/05/2015
Commercial,Customer Support Group,Building Repairs & Maintenance,60020303,DORMA UK LTD,965.64,26/05/2015
Commercial,Customer Support Group,Building Repairs & Maintenance,60009726,EARLSWOOD INDUSTRIAL SVCS LTD,"1,286.00",14/05/2015
Commercial,Customer Support Group,Building Repairs & Maintenance,60022178,FRONTIER-PITTS LTD,510.40,28/05/2015
Commercial,Customer Support Group,Building Repairs & Maintenance,60018340,HERTEL (UK) LTD,280.00,18/05/2015
Commercial,Customer Support Group,Building Repairs & Maintenance,60014142,LEE SECURITY LONDON LIMITED,"1,833.60",20/05/2015
Commercial,Customer Support Group,Building Repairs & Maintenance,60018036,LEE SECURITY LONDON LIMITED,736.00,19/05/2015
Commercial,Customer Support Group,Building Repairs & Maintenance,60022009,LEE SECURITY LONDON LIMITED,335.00,27/05/2015
Commercial,Customer Support Group,Building Repairs & Maintenance,60022036,LEE SECURITY LONDON LIMITED,"1,623.00",27/05/2015
Commercial,Customer Support Group,Building Repairs & Maintenance,60019732,LIFT & ENGINEERING SERVICES LTD,296.00,21/05/2015
Commercial,Customer Support Group,Building Repairs & Maintenance,60015406,OAKRAY LIMITED,374.55,29/05/2015
Commercial,Customer Support Group,Building Repairs & Maintenance,60015411,OAKRAY LIMITED,363.60,29/05/2015
Commercial,Customer Support Group,Building Repairs & Maintenance,60015435,OAKRAY LIMITED,348.00,20/05/2015
Commercial,Customer Support Group,Building Repairs & Maintenance,60015454,OAKRAY LIMITED,421.00,20/05/2015
Commercial,Customer Support Group,Building Repairs & Maintenance,60015484,OAKRAY LIMITED,348.00,20/05/2015
Commercial,Customer Support Group,Building Repairs & Maintenance,60015509,OAKRAY LIMITED,348.00,20/05/2015
Commercial,Customer Support Group,Building Repairs & Maintenance,60015555,OAKRAY LIMITED,535.29,29/05/2015
Commercial,Customer Support Group,Building Repairs & Maintenance,60015568,OAKRAY LIMITED,348.00,20/05/2015
Commercial,Customer Support Group,Building Repairs & Maintenance,60016471,OAKRAY LIMITED,"2,516.00",29/05/2015
Commercial,Customer Support Group,Building Repairs & Maintenance,60016490,OAKRAY LIMITED,652.30,19/05/2015
Commercial,Customer Support Group,Building Repairs & Maintenance,60016498,OAKRAY LIMITED,375.00,20/05/2015
Commercial,Customer Support Group,Building Repairs & Maintenance,60016519,OAKRAY LIMITED,498.75,19/05/2015
Commercial,Customer Support Group,Building Repairs & Maintenance,60016601,OAKRAY LIMITED,611.25,19/05/2015
Commercial,Customer Support Group,Building Repairs & Maintenance,60016605,OAKRAY LIMITED,348.00,29/05/2015
Commercial,Customer Support Group,Building Repairs & Maintenance,60016607,OAKRAY LIMITED,"1,113.80",19/05/2015
Commercial,Customer Support Group,Building Repairs & Maintenance,60019987,OAKRAY LIMITED,558.00,01/05/2015
Commercial,Customer Support Group,Building Repairs & Maintenance,60020017,OAKRAY LIMITED,"1,937.30",01/05/2015
Commercial,Customer Support Group,Building Repairs & Maintenance,60020025,OAKRAY LIMITED,437.25,15/05/2015
Commercial,Customer Support Group,Building Repairs & Maintenance,60020211,OAKRAY LIMITED,600.00,07/05/2015
Commercial,Customer Support Group,Building Repairs & Maintenance,60020340,OAKRAY LIMITED,"1,060.00",07/05/2015
Commercial,Customer Support Group,Building Repairs & Maintenance,60020455,ONLITECH,"3,465.00",12/05/2015
Commercial,Customer Support Group,Building Repairs & Maintenance,60020469,ONLITECH,645.00,11/05/2015
Commercial,Customer Support Group,Building Repairs & Maintenance,10012284,RGE SERVICES,339.33,18/05/2015
Commercial,Customer Support Group,Building Repairs & Maintenance,10012285,RGE SERVICES,"1,363.25",18/05/2015
Commercial,Customer Support Group,Building Repairs & Maintenance,10012288,RGE SERVICES,"1,528.33",18/05/2015
Commercial,Customer Support Group,Building Repairs & Maintenance,10012296,RGE SERVICES,281.58,18/05/2015
Commercial,Customer Support Group,Building Repairs & Maintenance,10012307,RGE SERVICES,819.28,18/05/2015
Commercial,Customer Support Group,Building Repairs & Maintenance,10012315,RGE SERVICES,319.50,18/05/2015
Commercial,Customer Support Group,Building Repairs & Maintenance,10012318,RGE SERVICES,911.70,18/05/2015
Commercial,Customer Support Group,Building Repairs & Maintenance,10012319,RGE SERVICES,363.37,18/05/2015
Commercial,Customer Support Group,Building Repairs & Maintenance,10012321,RGE SERVICES,325.85,20/05/2015
Commercial,Customer Support Group,Building Repairs & Maintenance,10012322,RGE SERVICES,736.25,27/05/2015
Commercial,Customer Support Group,Building Repairs & Maintenance,10012323,RGE SERVICES,503.13,18/05/2015
Commercial,Customer Support Group,Building Repairs & Maintenance,10012324,RGE SERVICES,388.45,18/05/2015
Commercial,Customer Support Group,Building Repairs & Maintenance,10012327,RGE SERVICES,"1,457.30",20/05/2015
Commercial,Customer Support Group,Building Repairs & Maintenance,60008597,RGE SERVICES,270.75,01/05/2015
Commercial,Customer Support Group,Building Repairs & Maintenance,60014847,RGE SERVICES,737.82,18/05/2015
Commercial,Customer Support Group,Building Repairs & Maintenance,60019077,RGE SERVICES,471.48,11/05/2015
Commercial,Customer Support Group,Building Repairs & Maintenance,60019092,RGE SERVICES,380.85,11/05/2015
Commercial,Customer Support Group,Building Repairs & Maintenance,60019134,RGE SERVICES,871.49,11/05/2015
Commercial,Customer Support Group,Building Repairs & Maintenance,60019478,RGE SERVICES,603.48,19/05/2015
Commercial,Customer Support Group,Building Repairs & Maintenance,60019522,RGE SERVICES,365.60,18/05/2015
Commercial,Customer Support Group,Building Repairs & Maintenance,60020090,RGE SERVICES,275.16,28/05/2015
Commercial,Customer Support Group,Building Repairs & Maintenance,60018468,S W BRUCE & CO LTD,911.20,05/05/2015
Commercial,Customer Support Group,Building Repairs & Maintenance,60018490,S W BRUCE & CO LTD,"1,363.63",05/05/2015
Commercial,Customer Support Group,Building Repairs & Maintenance,60018519,S W BRUCE & CO LTD,553.25,05/05/2015
Commercial,Customer Support Group,Building Repairs & Maintenance,60018541,S W BRUCE & CO LTD,350.00,05/05/2015
Commercial,Customer Support Group,Building Repairs & Maintenance,60018737,S W BRUCE & CO LTD,"7,866.00",20/05/2015
Commercial,Customer Support Group,Building Repairs & Maintenance,60018747,S W BRUCE & CO LTD,695.75,15/05/2015
Commercial,Customer Support Group,Building Repairs & Maintenance,60018785,S W BRUCE & CO LTD,638.52,07/05/2015
Commercial,Customer Support Group,Building Repairs & Maintenance,60018803,S W BRUCE & CO LTD,"3,050.00",07/05/2015
Commercial,Customer Support Group,Building Repairs & Maintenance,60018817,S W BRUCE & CO LTD,"1,950.00",07/05/2015
Commercial,Customer Support Group,Building Repairs & Maintenance,60018884,S W BRUCE & CO LTD,"4,427.50",07/05/2015
Commercial,Customer Support Group,Building Repairs & Maintenance,60019657,S W BRUCE & CO LTD,323.00,20/05/2015
Commercial,Customer Support Group,Building Repairs & Maintenance,60019532,SIMPLY ALARMING SECURITY LTD,855.00,19/05/2015
Commercial,Customer Support Group,Building Repairs & Maintenance,60019698,SIMPLY ALARMING SECURITY LTD,285.00,19/05/2015
Commercial,Customer Support Group,Building Repairs & Maintenance,60020507,STARK SOFTWARE INTERNATIONAL LTD,"1,095.68",15/05/2015
Commercial,Customer Support Group,Cleaning and domestic material,60008520,CHURCHILL CONTRACT SERVICES,948.94,15/05/2015
Commercial,Customer Support Group,Cleaning and domestic material,60014330,CHURCHILL CONTRACT SERVICES,647.01,15/05/2015
Commercial,Customer Support Group,Cleaning and domestic material,60014348,CHURCHILL CONTRACT SERVICES,"3,458.58",15/05/2015
Commercial,Customer Support Group,Cleaning and domestic material,60014399,CHURCHILL CONTRACT SERVICES,367.88,15/05/2015
Commercial,Customer Support Group,Cleaning and domestic material,60018549,CHURCHILL CONTRACT SERVICES,475.72,15/05/2015
Commercial,Customer Support Group,Cleaning and domestic material,60018551,CHURCHILL CONTRACT SERVICES,570.36,15/05/2015
Commercial,Customer Support Group,Cleaning and domestic material,60018556,CHURCHILL CONTRACT SERVICES,440.98,15/05/2015
Commercial,Customer Support Group,Cleaning and domestic material,60018560,CHURCHILL CONTRACT SERVICES,367.88,15/05/2015
Commercial,Customer Support Group,Cleaning and domestic material,60018580,CHURCHILL CONTRACT SERVICES,647.01,22/05/2015
Commercial,Customer Support Group,Cleaning and domestic material,60018584,CHURCHILL CONTRACT SERVICES,"8,132.77",15/05/2015
Commercial,Customer Support Group,Cleaning and domestic material,60018586,CHURCHILL CONTRACT SERVICES,"3,458.58",22/05/2015
Commercial,Customer Support Group,Cleaning and domestic material,60018587,CHURCHILL CONTRACT SERVICES,367.88,22/05/2015
Commercial,Customer Support Group,Cleaning and domestic material,60018590,CHURCHILL CONTRACT SERVICES,"1,627.48",15/05/2015
Commercial,Customer Support Group,Cleaning and domestic material,60018601,CHURCHILL CONTRACT SERVICES,"7,809.56",15/05/2015
Commercial,Customer Support Group,Cleaning and domestic material,60018602,CHURCHILL CONTRACT SERVICES,598.72,15/05/2015
Commercial,Customer Support Group,Cleaning and domestic material,60018609,CHURCHILL CONTRACT SERVICES,367.88,15/05/2015
Commercial,Customer Support Group,Cleaning and domestic material,60018621,CHURCHILL CONTRACT SERVICES,"1,527.49",15/05/2015
Commercial,Customer Support Group,Cleaning and domestic material,60018640,CHURCHILL CONTRACT SERVICES,367.88,15/05/2015
Commercial,Customer Support Group,Cleaning and domestic material,60018645,CHURCHILL CONTRACT SERVICES,367.88,15/05/2015
Commercial,Customer Support Group,Cleaning and domestic material,60018661,CHURCHILL CONTRACT SERVICES,313.51,15/05/2015
Commercial,Customer Support Group,Cleaning and domestic material,60018684,CHURCHILL CONTRACT SERVICES,"1,103.65",15/05/2015
Commercial,Customer Support Group,Cleaning and domestic material,60018685,CHURCHILL CONTRACT SERVICES,367.88,22/05/2015
Commercial,Customer Support Group,Cleaning and domestic material,60018689,CHURCHILL CONTRACT SERVICES,644.40,15/05/2015
Commercial,Customer Support Group,Cleaning and domestic material,60018697,CHURCHILL CONTRACT SERVICES,417.21,15/05/2015
Commercial,Customer Support Group,Cleaning and domestic material,60018698,CHURCHILL CONTRACT SERVICES,276.52,15/05/2015
Commercial,Customer Support Group,Cleaning and domestic material,60020637,CHURCHILL CONTRACT SERVICES,512.00,15/05/2015
Commercial,Customer Support Group,Cleaning and domestic material,60020632,HERTFORDSHIRE COUNTY COUNCIL,"1,272.90",15/05/2015
Commercial,Customer Support Group,Consultants Fees,60021763,KPMG FEES ACCOUNT,875.00,22/05/2015
Commercial,Customer Support Group,Consultants Fees,60018953,NORWEL COMPUTER SERVICES LTD,"1,685.71",18/05/2015
Commercial,Customer Support Group,CSG Services Contract Payment,10012226,CAPITA BUSINESS SERVICES LTD,"-653,389.84",26/05/2015
Commercial,Customer Support Group,CSG Services Contract Payment,10012241,CAPITA BUSINESS SERVICES LTD,"-9,080.00",26/05/2015
Commercial,Customer Support Group,CSG Services Contract Payment,10012278,CAPITA BUSINESS SERVICES LTD,"46,182.51",26/05/2015
Commercial,Customer Support Group,CSG Services Contract Payment,10012341,CAPITA BUSINESS SERVICES LTD,"102,073.00",26/05/2015
Commercial,Customer Support Group,CSG Services Contract Payment,10012342,CAPITA BUSINESS SERVICES LTD,"2,470,365.93",26/05/2015
Commercial,Customer Support Group,Electricity,10012339,EDF ENERGY CUSTOMERS PLC,506.43,21/05/2015
Commercial,Customer Support Group,Electricity,60020390,KENT COUNTY COUNCIL (KCS),"1,582.45",11/05/2015
Commercial,Customer Support Group,Electricity,60020394,KENT COUNTY COUNCIL (KCS),532.83,11/05/2015
Commercial,Customer Support Group,Electricity,60020448,KENT COUNTY COUNCIL (KCS),"5,755.99",11/05/2015
Commercial,Customer Support Group,Electricity,60020482,KENT COUNTY COUNCIL (KCS),"1,237.06",11/05/2015
Commercial,Customer Support Group,Electricity,60021700,KENT COUNTY COUNCIL (KCS),"76,189.46",29/05/2015
Commercial,Customer Support Group,Equipment and Materials Purcha,60007737,CONNECT VENDING LIMITED,"1,226.99",27/05/2015
Commercial,Customer Support Group,Equipment and Materials Purcha,60018764,CONNECT VENDING LIMITED,"1,226.99",18/05/2015
Commercial,Customer Support Group,Equipment and Materials Purcha,60020458,DAY PLANT HIRE CO LIMITED,533.94,11/05/2015
Commercial,Customer Support Group,Equipment and Materials Purcha,60020483,DAY PLANT HIRE CO LIMITED,308.00,11/05/2015
Commercial,Customer Support Group,Grounds maintenance,60020674,THE HONEYWAGON CO.,"1,293.13",21/05/2015
Commercial,Customer Support Group,Operational Leases - Equipment,60019714,XEROX (UK) LTD,"2,601.78",13/05/2015
Commercial,Customer Support Group,Operational Leases - Equipment,60020489,XEROX (UK) LTD,263.75,18/05/2015
Commercial,Customer Support Group,Operational Leases - Equipment,60014056,XEROX FINANCE LTD,"4,298.00",13/05/2015
Commercial,Customer Support Group,Other Services,60021061,AD HOC PROPERTY MANAGEMENT LTD,595.00,19/05/2015
Commercial,Customer Support Group,Other Services,60018573,BLUE 9 SECURITY LIMITED,261.00,18/05/2015
Commercial,Customer Support Group,Other Services,60020399,BLUE 9 SECURITY LIMITED,"20,659.50",11/05/2015
Commercial,Customer Support Group,Other Services,60020435,BLUE 9 SECURITY LIMITED,"2,160.00",11/05/2015
Commercial,Customer Support Group,Other Services,60020441,BLUE 9 SECURITY LIMITED,717.75,11/05/2015
Commercial,Customer Support Group,Other Services,60020889,BLUE 9 SECURITY LIMITED,"14,429.25",15/05/2015
Commercial,Customer Support Group,Other Services,60016980,COMER PROPERTY MANAGEMENT,"13,769.84",28/05/2015
Commercial,Customer Support Group,Other Services,60016984,COMER PROPERTY MANAGEMENT,"15,120.40",28/05/2015
Commercial,Customer Support Group,Postage,60019626,ROYAL MAIL GROUP LIMITED,"14,232.43",05/05/2015
Commercial,Customer Support Group,Postage,60019701,ROYAL MAIL GROUP LIMITED,"9,297.35",05/05/2015
Commercial,Customer Support Group,Service Charges,60020481,MARYLEBONE ASSET MANAGEMENT LTD,"27,966.24",12/05/2015
Commercial,Customer Support Group,Service Charges,60020071,TOYS R US LIMITED,"5,842.92",14/05/2015
Commercial,Customer Support Group,Water Services,10012268,AFFINITY WATER LIMITED,354.89,14/05/2015
Commercial,Customer Support Group,Water Services,60019375,AFFINITY WATER LIMITED,585.34,13/05/2015
Commercial,Customer Support Group,Water Services,60020445,AFFINITY WATER LIMITED,375.94,11/05/2015
Commercial,Customer Support Group,Water Services,60021479,AFFINITY WATER LIMITED,290.72,20/05/2015
Commercial,HRA,Advertising,10012263,TMP (UK) LTD,764.28,13/05/2015
Commercial,HRA,Consultants Fees,60019216,PRIORITY ESTATES PROJECT LTD,"2,514.60",06/05/2015
Commercial,HRA,Consultants Fees,60019257,PRIORITY ESTATES PROJECT LTD,"1,471.07",11/05/2015
Commercial,HRA,Consultants Fees,60019259,PRIORITY ESTATES PROJECT LTD,"1,606.55",11/05/2015
Commercial,HRA,Consultants Fees,60019361,PRIORITY ESTATES PROJECT LTD,"2,514.60",15/05/2015
Commercial,HRA,Consultants Fees,60019432,PRIORITY ESTATES PROJECT LTD,628.65,15/05/2015
Commercial,HRA,Consultants Fees,60014605,THE BARNETGROUP LIMITED,"1,368.17",21/05/2015
Commercial,HRA,Subscriptions,60019576,MANCHESTER CITY COUNCIL,"1,125.00",01/05/2015
Commercial,Parking & Infrastructure,Equipment and Materials Purcha,10012266,ASD METAL SERVICES,350.00,14/05/2015
Commercial,Parking & Infrastructure,Equipment and Materials Purcha,60019149,COBURN SERVICES LTD,886.80,20/05/2015
Commercial,Parking & Infrastructure,Equipment and Materials Purcha,60020041,COBURN SERVICES LTD,"1,113.00",20/05/2015
Commercial,Parking & Infrastructure,Equipment and Materials Purcha,60015755,COLAS LTD,306.00,20/05/2015
Commercial,Parking & Infrastructure,Equipment and Materials Purcha,60019240,COLAS LTD,612.00,07/05/2015
Commercial,Parking & Infrastructure,Equipment and Materials Purcha,60019547,COLAS LTD,918.00,15/05/2015
Commercial,Parking & Infrastructure,Equipment and Materials Purcha,60020881,COLAS LTD,918.00,29/05/2015
Commercial,Parking & Infrastructure,Equipment and Materials Purcha,60019531,TOWNSCAPE PRODUCTS LTD,"2,378.00",20/05/2015
Commercial,Parking & Infrastructure,Equipment and Materials Purcha,60020885,WM SMITH & SONS LIMITED,919.78,15/05/2015
Commercial,Parking & Infrastructure,Other Services,60019499,PARKEON LIMITED,796.50,19/05/2015
Commercial,Parking & Infrastructure,Other Services,60019696,PARKEON LIMITED,796.50,19/05/2015
Commercial,Parking & Infrastructure,Professional Services,10012250,NSL LTD,"31,834.45",08/05/2015
Commercial,Parking & Infrastructure,Professional Services,60019664,NSL LTD,"12,345.97",01/05/2015
Commercial,Parking & Infrastructure,Professional Services,60019724,NSL LTD,"16,461.30",01/05/2015
Commercial,Parking & Infrastructure,Professional Services,60022010,NSL LTD,"34,508.30",28/05/2015
Commercial,Parking & Infrastructure,Professional Services,60022133,NSL LTD,"218,657.31",28/05/2015
Commercial,Parking & Infrastructure,Software Licences & Support,60021955,NSL LTD,"28,333.43",27/05/2015
Commercial,Parking & Infrastructure,Software Licences & Support,60022094,NSL LTD,"4,055.41",27/05/2015
Commercial,Regional Enterprise,Consultants Fees,60017008,ENVENTURE CONSULTANCY LIMITED,"2,000.00",15/05/2015
Commercial,Regional Enterprise,Consultants Fees,60022154,PRIORITY ESTATES PROJECT LTD,"4,121.15",28/05/2015
Commercial,Regional Enterprise,Consultants Fees,60022172,PRIORITY ESTATES PROJECT LTD,"5,443.50",28/05/2015
Commercial,Regional Enterprise,Equipment and Materials Purcha,60021535,CONWAY AECOM LTD,882.02,21/05/2015
Commercial,Regional Enterprise,Equipment and Materials Purcha,20019798,REDACTED - PERSONAL DATA,"1,155.00",01/05/2015
Commercial,Regional Enterprise,Grant Payments,20020064,DP BUILDERS DISABLED ADAPTATIONS,450.00,13/05/2015
Commercial,Regional Enterprise,Grant Payments,20020251,MCP PROPERTY SERVICES LTD,"7,050.00",20/05/2015
Commercial,Regional Enterprise,Grant Payments,20020061,SOUTH HERTFORDSHIRE,"4,128.00",13/05/2015
Commercial,Regional Enterprise,Grant Payments,20020232,T & H COLLARD LTD,"1,094.40",19/05/2015
Commercial,Regional Enterprise,Grant Payments,20020444,WSW PROPERTY MAINTENANCE,"2,706.00",27/05/2015
Commercial,Regional Enterprise,Legal and Court Fees,20020442,REDACTED - PERSONAL DATA,"8,500.00",26/05/2015
Commercial,Regional Enterprise,Other Services,60018353,CONWAY AECOM LTD,540.25,18/05/2015
Commercial,Regional Enterprise,Other Services,60018382,CONWAY AECOM LTD,"3,911.19",18/05/2015
Commercial,Regional Enterprise,Other Services,60018401,CONWAY AECOM LTD,"23,500.00",18/05/2015
Commercial,Regional Enterprise,Other Services,60018407,CONWAY AECOM LTD,"17,316.36",18/05/2015
Commercial,Regional Enterprise,Other Services,60019489,CONWAY AECOM LTD,"1,190.04",15/05/2015
Commercial,Regional Enterprise,Other Services,60019497,CONWAY AECOM LTD,544.38,15/05/2015
Commercial,Regional Enterprise,Other Services,60019514,CONWAY AECOM LTD,949.50,07/05/2015
Commercial,Regional Enterprise,Other Services,60019528,CONWAY AECOM LTD,"1,392.60",07/05/2015
Commercial,Regional Enterprise,Other Services,60019541,CONWAY AECOM LTD,253.20,07/05/2015
Commercial,Regional Enterprise,Other Services,60019544,CONWAY AECOM LTD,417.78,07/05/2015
Commercial,Regional Enterprise,Other Services,60019563,CONWAY AECOM LTD,696.30,07/05/2015
Commercial,Regional Enterprise,Other Services,60019587,CONWAY AECOM LTD,987.48,07/05/2015
Commercial,Regional Enterprise,Other Services,60019595,CONWAY AECOM LTD,"1,949.64",07/05/2015
Commercial,Regional Enterprise,Other Services,60019605,CONWAY AECOM LTD,"1,392.60",07/05/2015
Commercial,Regional Enterprise,Other Services,60020671,CONWAY AECOM LTD,"27,216.03",15/05/2015
Commercial,Regional Enterprise,Other Services,60020723,CONWAY AECOM LTD,"14,230.07",15/05/2015
Commercial,Regional Enterprise,Other Services,60020961,CONWAY AECOM LTD,"7,298.38",15/05/2015
Commercial,Regional Enterprise,Other Services,60021035,CONWAY AECOM LTD,"3,092.14",20/05/2015
Commercial,Regional Enterprise,Other Services,60021515,CONWAY AECOM LTD,582.36,28/05/2015
Commercial,Regional Enterprise,Other Services,60021539,CONWAY AECOM LTD,569.70,21/05/2015
Commercial,Regional Enterprise,Other Services,60021543,CONWAY AECOM LTD,"3,934.35",28/05/2015
Commercial,Regional Enterprise,Other Services,60021549,CONWAY AECOM LTD,394.57,28/05/2015
Commercial,Regional Enterprise,Other Services,60021586,CONWAY AECOM LTD,607.68,28/05/2015
Commercial,Regional Enterprise,Other Services,60021593,CONWAY AECOM LTD,743.78,21/05/2015
Commercial,Regional Enterprise,Other Services,60021596,CONWAY AECOM LTD,896.75,28/05/2015
Commercial,Regional Enterprise,Other Services,60021612,CONWAY AECOM LTD,345.35,21/05/2015
Commercial,Regional Enterprise,Other Services,60021624,CONWAY AECOM LTD,"2,925.25",29/05/2015
Commercial,Regional Enterprise,Other Services,60021632,CONWAY AECOM LTD,446.27,21/05/2015
Commercial,Regional Enterprise,Other Services,60021673,CONWAY AECOM LTD,"1,446.88",28/05/2015
Commercial,Regional Enterprise,Other Services,60021683,CONWAY AECOM LTD,"68,031.81",28/05/2015
Commercial,Regional Enterprise,Other Services,10012350,ENVIRONMENT AGENCY,"11,500.00",28/05/2015
Commercial,Regional Enterprise,Other Services,60020908,J C DECAUX UK LTD,"20,912.74",15/05/2015
Commercial,Regional Enterprise,Permits and Licences,20019734,FINCHLEY COSMETIC SALON,262.00,01/05/2015
Commercial,Regional Enterprise,Professional Services,60020426,EUROFINS ENVIRONMENTAL TESTING UK L,253.22,28/05/2015
Commercial,Regional Enterprise,RE Services Contract Payment,10012249,RE (REGIONAL ENTERPRISE) LIMITED,"356,504.14",07/05/2015
Commercial,Regional Enterprise,RE Services Contract Payment,60020440,RE (REGIONAL ENTERPRISE) LIMITED,"22,367.23",14/05/2015
Commissioning,Commissioning,Advertising,10012267,TMP (UK) LTD,412.96,14/05/2015
Commissioning,Commissioning,Agency/Interim Hays,60020047,CONSULTCIH (T/A CIH CONSULTANCY),"10,877.90",15/05/2015
Commissioning,Commissioning,Building Repairs & Maintenance,10012287,RGE SERVICES,"1,759.61",18/05/2015
Commissioning,Commissioning,Building Repairs & Maintenance,10012313,RGE SERVICES,333.18,18/05/2015
Commissioning,Commissioning,Building Repairs & Maintenance,10012320,RGE SERVICES,631.00,18/05/2015
Commissioning,Commissioning,Building Repairs & Maintenance,60019131,RGE SERVICES,"2,218.72",12/05/2015
Commissioning,Commissioning,Building Repairs & Maintenance,60018952,S W BRUCE & CO LTD,512.00,07/05/2015
Commissioning,Commissioning,Capital Construction and Works,10012338,ENVIRONMENTAL SCIENTIFICS GROUP (ESG),"6,112.40",21/05/2015
Commissioning,Commissioning,Capital Construction and Works,60020919,ENVIRONMENTAL SCIENTIFICS GROUP (ESG),"1,290.00",21/05/2015
Commissioning,Commissioning,Capital Construction and Works,60019078,RGE SERVICES,"1,726.36",11/05/2015
Commissioning,Commissioning,Capital Construction and Works,60018742,S W BRUCE & CO LTD,"2,350.00",07/05/2015
Commissioning,Commissioning,Capital Construction and Works,60018774,S W BRUCE & CO LTD,"2,457.43",07/05/2015
Commissioning,Commissioning,Capital Construction and Works,60018787,S W BRUCE & CO LTD,"16,500.00",07/05/2015
Commissioning,Commissioning,Capital Construction and Works,60019020,S W BRUCE & CO LTD,333.50,07/05/2015
Commissioning,Commissioning,Consultants Fees,60021117,COPPER CONSULTING LTD,"17,897.50",29/05/2015
Commissioning,Commissioning,Consultants Fees,60018481,QUALITY FIELDWORK & RESEARCH,"8,523.04",08/05/2015
Commissioning,Commissioning,Equipment and Materials Purcha,60013293,MURPHY SURVEYS LIMITED,"3,905.00",12/05/2015
Commissioning,Commissioning,Equipment and Materials Purcha,60013651,MURPHY SURVEYS LIMITED,"3,130.00",12/05/2015
Commissioning,Commissioning,Grant Payments,20020381,FUTURE PATH DEVELOPMENT CIC,"4,845.00",26/05/2015
Commissioning,Commissioning,Grant Payments,20020261,MIDDLE EASTERN WOMEN & SOCIETY ORGANISAT,"1,625.00",20/05/2015
Commissioning,Commissioning,Grant Payments,20020258,TECHMAIDS,"2,875.00",20/05/2015
Commissioning,Commissioning,Grants and Donations,60016948,OPEN KNOWLEDGE FOUNDATION,"23,300.00",01/05/2015
Commissioning,Commissioning,Software Licences & Support,60019170,DOTTED EYES LTD,759.00,14/05/2015
Commissioning,Commissioning,Software Purchases,60020075,HOOTSUITE  MEDIA INC.,500.00,05/05/2015
Commissioning,Commissioning,Stationery,40000770,OFFICE DEPOT UK LTD,269.27,13/05/2015
Commissioning,Commissioning,Stationery,40000781,OFFICE DEPOT UK LTD,269.27,20/05/2015
Commissioning,Commissioning,Subscriptions,60019410,DELIB LIMITED,"5,000.00",20/05/2015
Commissioning,Commissioning,Subscriptions,10012243,THE INFORMATION COMMISSIONER,500.00,01/05/2015
Corporate Accounting,Corporate Accounting,Other Local Authorities - Thir,EBX0059072,GREATER LONDON AUTHORITY,"1,847,629.00",08/05/2015
Corporate Accounting,Corporate Accounting,Other Local Authorities - Thir,EBX0059238,GREATER LONDON AUTHORITY,"4,004,237.40",13/05/2015
Corporate Accounting,Corporate Accounting,Other Local Authorities - Thir,EBX0060073,GREATER LONDON AUTHORITY,"233,647.00",20/05/2015
Corporate Accounting,Corporate Accounting,Other Services,10012279,EDENRED,"2,078.75",15/05/2015
Corporate Accounting,Corporate Accounting,Other Transfer Payments to Soc,60019496,CITIBANK NA LONDON,"86,800.00",01/05/2015
Corporate Accounting,Corporate Accounting,Other Transfer Payments to Soc,60019796,CITIBANK NA LONDON,982.86,05/05/2015
Corporate Accounting,Corporate Accounting,Other Transfer Payments to Soc,60019816,CITIBANK NA LONDON,"4,486.33",05/05/2015
Corporate Accounting,Corporate Accounting,Other Transfer Payments to Soc,60019840,CITIBANK NA LONDON,400.00,05/05/2015
Corporate Accounting,Corporate Accounting,Other Transfer Payments to Soc,60019847,CITIBANK NA LONDON,"2,990.67",05/05/2015
Corporate Accounting,Corporate Accounting,Other Transfer Payments to Soc,60020388,CITIBANK NA LONDON,350.00,12/05/2015
Corporate Accounting,Corporate Accounting,Other Transfer Payments to Soc,60020424,CITIBANK NA LONDON,559.60,12/05/2015
Corporate Accounting,Corporate Accounting,Other Transfer Payments to Soc,60020432,CITIBANK NA LONDON,567.79,12/05/2015
Corporate Accounting,Corporate Accounting,Other Transfer Payments to Soc,60020451,CITIBANK NA LONDON,288.90,12/05/2015
Delivery Units,Adults and Communities,Advertising,60020107,TMP (UK) LTD,"3,050.00",29/05/2015
Delivery Units,Adults and Communities,Consultants Fees,60016042,ALAN BERRESFORD LTD,"15,000.00",18/05/2015
Delivery Units,Adults and Communities,Consultants Fees,20020350,BSG SOLICITORS LLP,250.00,26/05/2015
Delivery Units,Adults and Communities,Consultants Fees,60020236,REDACTED - PERSONAL DATA,"10,615.00",11/05/2015
Delivery Units,Adults and Communities,Electricity,60020176,E-ON ENERGY,405.56,11/05/2015
Delivery Units,Adults and Communities,Electricity,10012035,KENT COUNTY COUNCIL (KCS),399.39,15/05/2015
Delivery Units,Adults and Communities,Electricity,10012036,KENT COUNTY COUNCIL (KCS),407.93,15/05/2015
Delivery Units,Adults and Communities,Electricity,10012037,KENT COUNTY COUNCIL (KCS),459.02,15/05/2015
Delivery Units,Adults and Communities,Electricity,10012038,KENT COUNTY COUNCIL (KCS),455.92,15/05/2015
Delivery Units,Adults and Communities,Electricity,60016495,KENT COUNTY COUNCIL (KCS),416.16,15/05/2015
Delivery Units,Adults and Communities,Electricity,60016673,KENT COUNTY COUNCIL (KCS),402.76,15/05/2015
Delivery Units,Adults and Communities,Equipment and Materials Purcha,60017700,EVERON UK LIMITED,380.00,18/05/2015
Delivery Units,Adults and Communities,Equipment and Materials Purcha,60021166,MEDEQUIP ASSISTIVE TECHNOLOGY LTD,"211,269.02",18/05/2015
Delivery Units,Adults and Communities,Furniture-Purchase-Repair,60020405,BLUE 9 SECURITY LIMITED,"6,588.00",11/05/2015
Delivery Units,Adults and Communities,Gas,60020314,BRITISH GAS BUSINESS(ELEC),995.95,11/05/2015
Delivery Units,Adults and Communities,Gas,60020449,KENT COUNTY COUNCIL (KCS),307.64,11/05/2015
Delivery Units,Adults and Communities,Health authorities - Third Par,60004800,NHS BARNET CCG,"1,500.00",15/05/2015
Delivery Units,Adults and Communities,Legal and Court Fees,20020347,BINDMANS SOLICITORS,"28,628.16",26/05/2015
Delivery Units,Adults and Communities,Other Agencies - Third Party P,30075186,AARON COURT CARE HOME,"2,144.91",06/05/2015
Delivery Units,Adults and Communities,Other Agencies - Third Party P,30074901,ABBEY RAVENSCROFT PARK NURSING HOME,"2,487.77",05/05/2015
Delivery Units,Adults and Communities,Other Agencies - Third Party P,30074902,ABBEY RAVENSCROFT PARK NURSING HOME,"2,487.77",05/05/2015
Delivery Units,Adults and Communities,Other Agencies - Third Party P,30074903,ABBEY RAVENSCROFT PARK NURSING HOME,"2,571.43",05/05/2015
Delivery Units,Adults and Communities,Other Agencies - Third Party P,30074904,ABBEY RAVENSCROFT PARK NURSING HOME,"2,571.43",05/05/2015
Delivery Units,Adults and Communities,Other Agencies - Third Party P,30074905,ABBEY RAVENSCROFT PARK NURSING HOME,"2,244.13",05/05/2015
Delivery Units,Adults and Communities,Other Agencies - Third Party P,30074906,ABBEY RAVENSCROFT PARK NURSING HOME,"2,487.77",05/05/2015
Delivery Units,Adults and Communities,Other Agencies - Third Party P,30074907,ABBEY RAVENSCROFT PARK NURSING HOME,"2,487.77",05/05/2015
Delivery Units,Adults and Communities,Other Agencies - Third Party P,30074908,ABBEY RAVENSCROFT PARK NURSING HOME,"2,487.77",05/05/2015
Delivery Units,Adults and Communities,Other Agencies - Third Party P,30074909,ABBEY RAVENSCROFT PARK NURSING HOME,"2,487.77",05/05/2015
Delivery Units,Adults and Communities,Other Agencies - Third Party P,30074910,ABBEY RAVENSCROFT PARK NURSING HOME,"3,000.00",05/05/2015
Delivery Units,Adults and Communities,Other Agencies - Third Party P,30074911,ABBEY RAVENSCROFT PARK NURSING HOME,"2,487.77",05/05/2015
Delivery Units,Adults and Communities,Other Agencies - Third Party P,30074912,ABBEY RAVENSCROFT PARK NURSING HOME,"2,487.77",05/05/2015
Delivery Units,Adults and Communities,Other Agencies - Third Party P,30074913,ABBEY RAVENSCROFT PARK NURSING HOME,"3,000.00",05/05/2015
Delivery Units,Adults and Communities,Other Agencies - Third Party P,30077854,ABBEY RAVENSCROFT PARK NURSING HOME,"2,485.71",29/05/2015
Delivery Units,Adults and Communities,Other Agencies - Third Party P,30074693,ABOUT ME CARE & SUPPORT LTD,"1,365.84",01/05/2015
Delivery Units,Adults and Communities,Other Agencies - Third Party P,30076232,ABOUT ME CARE & SUPPORT LTD,"1,365.84",18/05/2015
Delivery Units,Adults and Communities,Other Agencies - Third Party P,30076736,ACCEDO CARE LTD,"8,960.00",21/05/2015
Delivery Units,Adults and Communities,Other Agencies - Third Party P,30077820,ACCEDO CARE LTD,"5,600.00",29/05/2015
Delivery Units,Adults and Communities,Other Agencies - Third Party P,30077821,ACCEDO CARE LTD,"5,600.00",29/05/2015
Delivery Units,Adults and Communities,Other Agencies - Third Party P,30077822,ACCEDO CARE LTD,"4,480.00",29/05/2015
Delivery Units,Adults and Communities,Other Agencies - Third Party P,30073566,ADVANTAGE HEALTHCARE GROUP LTD,896.88,12/05/2015
Delivery Units,Adults and Communities,Other Agencies - Third Party P,30074293,ADVANTAGE HEALTHCARE GROUP LTD,744.47,14/05/2015
Delivery Units,Adults and Communities,Other Agencies - Third Party P,30074294,ADVANTAGE HEALTHCARE GROUP LTD,744.17,14/05/2015
Delivery Units,Adults and Communities,Other Agencies - Third Party P,30074295,ADVANTAGE HEALTHCARE GROUP LTD,997.07,14/05/2015
Delivery Units,Adults and Communities,Other Agencies - Third Party P,30074296,ADVANTAGE HEALTHCARE GROUP LTD,833.27,14/05/2015
Delivery Units,Adults and Communities,Other Agencies - Third Party P,30074298,ADVANTAGE HEALTHCARE GROUP LTD,575.87,14/05/2015
Delivery Units,Adults and Communities,Other Agencies - Third Party P,30074299,ADVANTAGE HEALTHCARE GROUP LTD,928.22,14/05/2015
Delivery Units,Adults and Communities,Other Agencies - Third Party P,30075639,AGUDAS ISRAEL HOUSING ASSCTN LTD,"1,600.20",13/05/2015
Delivery Units,Adults and Communities,Other Agencies - Third Party P,30075727,AGUDAS ISRAEL HOUSING ASSCTN LTD,"3,218.29",14/05/2015
Delivery Units,Adults and Communities,Other Agencies - Third Party P,30075728,AGUDAS ISRAEL HOUSING ASSCTN LTD,-535.22,14/05/2015
Delivery Units,Adults and Communities,Other Agencies - Third Party P,30075729,AGUDAS ISRAEL HOUSING ASSCTN LTD,"3,052.50",14/05/2015
Delivery Units,Adults and Communities,Other Agencies - Third Party P,30075730,AGUDAS ISRAEL HOUSING ASSCTN LTD,"4,071.43",14/05/2015
Delivery Units,Adults and Communities,Other Agencies - Third Party P,30075731,AGUDAS ISRAEL HOUSING ASSCTN LTD,"2,446.29",14/05/2015
Delivery Units,Adults and Communities,Other Agencies - Third Party P,30074703,ALLIED HEALTHCARE LTD,"4,769.85",01/05/2015
Delivery Units,Adults and Communities,Other Agencies - Third Party P,30076028,ALLIED HEALTHCARE LTD,"5,567.76",15/05/2015
Delivery Units,Adults and Communities,Other Agencies - Third Party P,30075173,ANCASTER COURT NURSING HOME,"2,487.77",06/05/2015
Delivery Units,Adults and Communities,Other Agencies - Third Party P,30075174,ANCASTER COURT NURSING HOME,"2,487.77",06/05/2015
Delivery Units,Adults and Communities,Other Agencies - Third Party P,30074915,ANCHOR TRUST,"2,232.64",05/05/2015
Delivery Units,Adults and Communities,Other Agencies - Third Party P,30074916,ANCHOR TRUST,"2,232.64",05/05/2015
Delivery Units,Adults and Communities,Other Agencies - Third Party P,30077855,ANCHOR TRUST,"2,232.64",29/05/2015
Delivery Units,Adults and Communities,Other Agencies - Third Party P,30074849,AREA 51 EDUCATION LTD,395.00,05/05/2015
Delivery Units,Adults and Communities,Other Agencies - Third Party P,30076044,AREA 51 EDUCATION LTD,474.00,18/05/2015
Delivery Units,Adults and Communities,Other Agencies - Third Party P,30076045,AREA 51 EDUCATION LTD,"1,106.00",18/05/2015
Delivery Units,Adults and Communities,Other Agencies - Third Party P,30076046,AREA 51 EDUCATION LTD,711.00,18/05/2015
Delivery Units,Adults and Communities,Other Agencies - Third Party P,30074926,ASHFIELDS RESIDENTIAL CARE HOME,"2,340.04",05/05/2015
Delivery Units,Adults and Communities,Other Agencies - Third Party P,30074927,ASHFIELDS RESIDENTIAL CARE HOME,"2,340.04",05/05/2015
Delivery Units,Adults and Communities,Other Agencies - Third Party P,30074928,ASHFIELDS RESIDENTIAL CARE HOME,"2,144.91",05/05/2015
Delivery Units,Adults and Communities,Other Agencies - Third Party P,30076907,ASHFIELDS RESIDENTIAL CARE HOME,"2,418.04",29/05/2015
Delivery Units,Adults and Communities,Other Agencies - Third Party P,30076908,ASHFIELDS RESIDENTIAL CARE HOME,"2,418.04",29/05/2015
Delivery Units,Adults and Communities,Other Agencies - Third Party P,30076909,ASHFIELDS RESIDENTIAL CARE HOME,"4,056.07",29/05/2015
Delivery Units,Adults and Communities,Other Agencies - Third Party P,30077829,ASHGALE HOUSE,"4,577.40",29/05/2015
Delivery Units,Adults and Communities,Other Agencies - Third Party P,30077830,ASHGALE HOUSE,-388.80,29/05/2015
Delivery Units,Adults and Communities,Other Agencies - Third Party P,30076961,ASHLAKE LODGE LTD,"10,245.47",21/05/2015
Delivery Units,Adults and Communities,Other Agencies - Third Party P,20020235,ASHTON LODGE CARE CENTRE,"1,529.57",19/05/2015
Delivery Units,Adults and Communities,Other Agencies - Third Party P,30074950,ASHTON LODGE CARE CENTRE,"1,892.28",05/05/2015
Delivery Units,Adults and Communities,Other Agencies - Third Party P,30074966,ASHTON LODGE CARE CENTRE,"2,340.04",05/05/2015
Delivery Units,Adults and Communities,Other Agencies - Third Party P,30074968,ASHTON LODGE CARE CENTRE,"2,320.52",05/05/2015
Delivery Units,Adults and Communities,Other Agencies - Third Party P,30074969,ASHTON LODGE CARE CENTRE,-572.70,05/05/2015
Delivery Units,Adults and Communities,Other Agencies - Third Party P,30074991,ASHTON LODGE CARE CENTRE,"2,244.13",05/05/2015
Delivery Units,Adults and Communities,Other Agencies - Third Party P,30075185,ASHTON LODGE CARE CENTRE,"2,487.77",06/05/2015
Delivery Units,Adults and Communities,Other Agencies - Third Party P,30075187,ASHTON LODGE CARE CENTRE,"2,290.71",06/05/2015
Delivery Units,Adults and Communities,Other Agencies - Third Party P,30075188,ASHTON LODGE CARE CENTRE,"2,487.77",06/05/2015
Delivery Units,Adults and Communities,Other Agencies - Third Party P,30075189,ASHTON LODGE CARE CENTRE,"2,340.04",06/05/2015
Delivery Units,Adults and Communities,Other Agencies - Third Party P,30075192,ASHTON LODGE CARE CENTRE,"2,409.43",06/05/2015
Delivery Units,Adults and Communities,Other Agencies - Third Party P,30075193,ASHTON LODGE CARE CENTRE,-344.36,06/05/2015
Delivery Units,Adults and Communities,Other Agencies - Third Party P,30075202,ASHTON LODGE CARE CENTRE,"2,245.67",06/05/2015
Delivery Units,Adults and Communities,Other Agencies - Third Party P,30075216,ASHTON LODGE CARE CENTRE,"2,487.77",06/05/2015
Delivery Units,Adults and Communities,Other Agencies - Third Party P,30075260,ASHTON LODGE CARE CENTRE,"2,340.04",06/05/2015
Delivery Units,Adults and Communities,Other Agencies - Third Party P,30075267,ASHTON LODGE CARE CENTRE,"2,340.04",06/05/2015
Delivery Units,Adults and Communities,Other Agencies - Third Party P,30075854,ASHTON LODGE CARE CENTRE,"2,244.13",14/05/2015
Delivery Units,Adults and Communities,Other Agencies - Third Party P,30076973,ASHTON LODGE CARE CENTRE,"2,245.67",21/05/2015
Delivery Units,Adults and Communities,Other Agencies - Third Party P,30076974,ASHTON LODGE CARE CENTRE,-554.23,21/05/2015
Delivery Units,Adults and Communities,Other Agencies - Third Party P,30076975,ASHTON LODGE CARE CENTRE,"2,320.52",21/05/2015
Delivery Units,Adults and Communities,Other Agencies - Third Party P,30076976,ASHTON LODGE CARE CENTRE,-572.70,21/05/2015
Delivery Units,Adults and Communities,Other Agencies - Third Party P,30076993,ASHTON LODGE CARE CENTRE,702.00,21/05/2015
Delivery Units,Adults and Communities,Other Agencies - Third Party P,30075198,ASPEN VILLAGES LTD,"2,144.91",06/05/2015
Delivery Units,Adults and Communities,Other Agencies - Third Party P,30075199,ASPEN VILLAGES LTD,"2,487.77",06/05/2015
Delivery Units,Adults and Communities,Other Agencies - Third Party P,30075200,ASPEN VILLAGES LTD,"3,214.29",06/05/2015
Delivery Units,Adults and Communities,Other Agencies - Third Party P,30076931,ASPEN VILLAGES LTD,"5,614.29",21/05/2015
Delivery Units,Adults and Communities,Other Agencies - Third Party P,30076932,ASPEN VILLAGES LTD,"-1,497.15",21/05/2015
Delivery Units,Adults and Communities,Other Agencies - Third Party P,30076933,ASPEN VILLAGES LTD,"16,500.00",21/05/2015
Delivery Units,Adults and Communities,Other Agencies - Third Party P,30076934,ASPEN VILLAGES LTD,"4,714.29",21/05/2015
Delivery Units,Adults and Communities,Other Agencies - Third Party P,30076935,ASPEN VILLAGES LTD,"4,871.43",21/05/2015
Delivery Units,Adults and Communities,Other Agencies - Third Party P,30076936,ASPEN VILLAGES LTD,"4,714.29",21/05/2015
Delivery Units,Adults and Communities,Other Agencies - Third Party P,30076937,ASPEN VILLAGES LTD,"4,871.43",21/05/2015
Delivery Units,Adults and Communities,Other Agencies - Third Party P,30076938,ASPEN VILLAGES LTD,"2,671.43",21/05/2015
Delivery Units,Adults and Communities,Other Agencies - Third Party P,30076939,ASPEN VILLAGES LTD,"3,764.29",21/05/2015
Delivery Units,Adults and Communities,Other Agencies - Third Party P,30076940,ASPEN VILLAGES LTD,"4,871.43",21/05/2015
Delivery Units,Adults and Communities,Other Agencies - Third Party P,30076941,ASPEN VILLAGES LTD,"3,400.00",21/05/2015
Delivery Units,Adults and Communities,Other Agencies - Third Party P,30076942,ASPEN VILLAGES LTD,"4,400.00",21/05/2015
Delivery Units,Adults and Communities,Other Agencies - Third Party P,30076943,ASPEN VILLAGES LTD,"4,871.43",21/05/2015
Delivery Units,Adults and Communities,Other Agencies - Third Party P,30076944,ASPEN VILLAGES LTD,"-2,550.00",21/05/2015
Delivery Units,Adults and Communities,Other Agencies - Third Party P,30076945,ASPEN VILLAGES LTD,"3,700.75",21/05/2015
Delivery Units,Adults and Communities,Other Agencies - Third Party P,30076946,ASPEN VILLAGES LTD,-342.21,21/05/2015
Delivery Units,Adults and Communities,Other Agencies - Third Party P,30076947,ASPEN VILLAGES LTD,"4,714.29",21/05/2015
Delivery Units,Adults and Communities,Other Agencies - Third Party P,30076948,ASPEN VILLAGES LTD,"3,824.11",21/05/2015
Delivery Units,Adults and Communities,Other Agencies - Third Party P,30076949,ASPEN VILLAGES LTD,-353.62,21/05/2015
Delivery Units,Adults and Communities,Other Agencies - Third Party P,30076950,ASPEN VILLAGES LTD,"4,871.43",21/05/2015
Delivery Units,Adults and Communities,Other Agencies - Third Party P,30076951,ASPEN VILLAGES LTD,"-13,585.71",21/05/2015
Delivery Units,Adults and Communities,Other Agencies - Third Party P,30076952,ASPEN VILLAGES LTD,"-2,614.29",21/05/2015
Delivery Units,Adults and Communities,Other Agencies - Third Party P,30076953,ASPEN VILLAGES LTD,"3,764.29",21/05/2015
Delivery Units,Adults and Communities,Other Agencies - Third Party P,30075152,AUTUMN GARDENS,"3,085.71",06/05/2015
Delivery Units,Adults and Communities,Other Agencies - Third Party P,30075153,AUTUMN GARDENS,"3,000.00",06/05/2015
Delivery Units,Adults and Communities,Other Agencies - Third Party P,30075154,AUTUMN GARDENS,"2,340.05",06/05/2015
Delivery Units,Adults and Communities,Other Agencies - Third Party P,30077367,AVERY LODGE,"2,144.91",22/05/2015
Delivery Units,Adults and Communities,Other Agencies - Third Party P,30077368,AVERY LODGE,-531.21,22/05/2015
Delivery Units,Adults and Communities,Other Agencies - Third Party P,30076689,BARNET HOMES LIMITED,"1,097.61",20/05/2015
Delivery Units,Adults and Communities,Other Agencies - Third Party P,30076979,BARNET MENCAP,"12,038.66",21/05/2015
Delivery Units,Adults and Communities,Other Agencies - Third Party P,30074870,BAYTREE COMMUNITY CARE (LONDON) LTD,"3,310.10",07/05/2015
Delivery Units,Adults and Communities,Other Agencies - Third Party P,30075427,BAYTREE COMMUNITY CARE (LONDON) LTD,734.40,08/05/2015
Delivery Units,Adults and Communities,Other Agencies - Third Party P,30075428,BAYTREE COMMUNITY CARE (LONDON) LTD,"1,280.00",08/05/2015
Delivery Units,Adults and Communities,Other Agencies - Third Party P,30075150,BENSLOW MANAGEMENT COMPANY LIMITED,"2,340.04",06/05/2015
Delivery Units,Adults and Communities,Other Agencies - Third Party P,30075177,BIRCHWOOD GRANGE CARE HOME,"2,657.14",06/05/2015
Delivery Units,Adults and Communities,Other Agencies - Third Party P,30075178,BIRCHWOOD GRANGE CARE HOME,"1,585.70",06/05/2015
Delivery Units,Adults and Communities,Other Agencies - Third Party P,30075179,BIRCHWOOD GRANGE CARE HOME,"2,571.43",06/05/2015
Delivery Units,Adults and Communities,Other Agencies - Third Party P,30075180,BIRCHWOOD GRANGE CARE HOME,"2,244.13",06/05/2015
Delivery Units,Adults and Communities,Other Agencies - Third Party P,30075721,BROADREACH HOUSE,397.14,14/05/2015
Delivery Units,Adults and Communities,Other Agencies - Third Party P,30075713,BROOKDALE HEALTHCARE,"3,759.36",14/05/2015
Delivery Units,Adults and Communities,Other Agencies - Third Party P,30075715,BROOKDALE HEALTHCARE,"3,759.36",14/05/2015
Delivery Units,Adults and Communities,Other Agencies - Third Party P,30075716,BROOKDALE HEALTHCARE,"3,759.36",14/05/2015
Delivery Units,Adults and Communities,Other Agencies - Third Party P,30075717,BROOKDALE HEALTHCARE,"3,759.36",14/05/2015
Delivery Units,Adults and Communities,Other Agencies - Third Party P,30075718,BROOKDALE HEALTHCARE,"3,759.36",14/05/2015
Delivery Units,Adults and Communities,Other Agencies - Third Party P,30076022,BRUNSWICK SUPPORTED LIVING SERVICES,"1,321.60",15/05/2015
Delivery Units,Adults and Communities,Other Agencies - Third Party P,30076023,BRUNSWICK SUPPORTED LIVING SERVICES,"1,412.68",15/05/2015
Delivery Units,Adults and Communities,Other Agencies - Third Party P,30076024,BRUNSWICK SUPPORTED LIVING SERVICES,"1,942.84",15/05/2015
Delivery Units,Adults and Communities,Other Agencies - Third Party P,30076027,BRUNSWICK SUPPORTED LIVING SERVICES,"2,153.92",15/05/2015
Delivery Units,Adults and Communities,Other Agencies - Third Party P,30074945,BUPA CARE HOMES,"2,144.91",05/05/2015
Delivery Units,Adults and Communities,Other Agencies - Third Party P,30074946,BUPA CARE HOMES,448.83,05/05/2015
Delivery Units,Adults and Communities,Other Agencies - Third Party P,30074947,BUPA CARE HOMES,748.04,05/05/2015
Delivery Units,Adults and Communities,Other Agencies - Third Party P,30074993,BUPA CARE HOMES,"2,318.93",05/05/2015
Delivery Units,Adults and Communities,Other Agencies - Third Party P,30075195,BUPA CARE HOMES,"2,487.77",06/05/2015
Delivery Units,Adults and Communities,Other Agencies - Third Party P,30075196,BUPA CARE HOMES,"2,487.77",06/05/2015
Delivery Units,Adults and Communities,Other Agencies - Third Party P,30075197,BUPA CARE HOMES,"2,340.04",06/05/2015
Delivery Units,Adults and Communities,Other Agencies - Third Party P,30075205,BUPA CARE HOMES,"2,216.41",06/05/2015
Delivery Units,Adults and Communities,Other Agencies - Third Party P,30075207,BUPA CARE HOMES,"2,244.13",06/05/2015
Delivery Units,Adults and Communities,Other Agencies - Third Party P,30075208,BUPA CARE HOMES,"3,153.69",06/05/2015
Delivery Units,Adults and Communities,Other Agencies - Third Party P,30075209,BUPA CARE HOMES,"3,153.69",06/05/2015
Delivery Units,Adults and Communities,Other Agencies - Third Party P,30075210,BUPA CARE HOMES,"3,214.29",06/05/2015
Delivery Units,Adults and Communities,Other Agencies - Third Party P,30075211,BUPA CARE HOMES,"3,214.29",06/05/2015
Delivery Units,Adults and Communities,Other Agencies - Third Party P,30075212,BUPA CARE HOMES,"2,340.04",06/05/2015
Delivery Units,Adults and Communities,Other Agencies - Third Party P,30075263,BUPA CARE HOMES,"2,244.13",05/05/2015
Delivery Units,Adults and Communities,Other Agencies - Third Party P,30075264,BUPA CARE HOMES,"2,244.13",05/05/2015
Delivery Units,Adults and Communities,Other Agencies - Third Party P,30075846,BUPA CARE HOMES,"2,244.13",14/05/2015
Delivery Units,Adults and Communities,Other Agencies - Third Party P,30075847,BUPA CARE HOMES,"2,244.13",14/05/2015
Delivery Units,Adults and Communities,Other Agencies - Third Party P,30075848,BUPA CARE HOMES,"2,244.13",14/05/2015
Delivery Units,Adults and Communities,Other Agencies - Third Party P,30075849,BUPA CARE HOMES,"2,244.13",15/05/2015
Delivery Units,Adults and Communities,Other Agencies - Third Party P,30075850,BUPA CARE HOMES,"2,829.73",15/05/2015
Delivery Units,Adults and Communities,Other Agencies - Third Party P,30075851,BUPA CARE HOMES,"2,227.80",15/05/2015
Delivery Units,Adults and Communities,Other Agencies - Third Party P,30075852,BUPA CARE HOMES,"3,385.71",15/05/2015
Delivery Units,Adults and Communities,Other Agencies - Third Party P,30076928,BUPA CARE HOMES,"2,418.04",21/05/2015
Delivery Units,Adults and Communities,Other Agencies - Third Party P,30076929,BUPA CARE HOMES,"1,638.03",21/05/2015
Delivery Units,Adults and Communities,Other Agencies - Third Party P,30076930,BUPA CARE HOMES,-546.01,21/05/2015
Delivery Units,Adults and Communities,Other Agencies - Third Party P,30076956,BUPA CARE HOMES,500.48,21/05/2015
Delivery Units,Adults and Communities,Other Agencies - Third Party P,30077377,BUPA CARE HOMES,"2,059.18",26/05/2015
Delivery Units,Adults and Communities,Other Agencies - Third Party P,30077378,BUPA CARE HOMES,-253.47,26/05/2015
Delivery Units,Adults and Communities,Other Agencies - Third Party P,30077945,BUPA CARE HOMES,"4,686.43",29/05/2015
Delivery Units,Adults and Communities,Other Agencies - Third Party P,30077839,CAMPHILL DEVON COMMUNITY LIMITED,"4,508.00",29/05/2015
Delivery Units,Adults and Communities,Other Agencies - Third Party P,30074856,CANDLE COURT NURSING HOME,"3,642.86",05/05/2015
Delivery Units,Adults and Communities,Other Agencies - Third Party P,30074857,CANDLE COURT NURSING HOME,"2,487.77",05/05/2015
Delivery Units,Adults and Communities,Other Agencies - Third Party P,30075203,CARE ASSIST LIMITED,"4,071.43",06/05/2015
Delivery Units,Adults and Communities,Other Agencies - Third Party P,30075204,CARE ASSIST LIMITED,"4,071.43",06/05/2015
Delivery Units,Adults and Communities,Other Agencies - Third Party P,30075194,CARE UK COMMUNITY PARTNERSHIPS,"2,774.96",06/05/2015
Delivery Units,Adults and Communities,Other Agencies - Third Party P,30077455,CARE WORLDWIDE (LONDON) LTD,"2,680.88",27/05/2015
Delivery Units,Adults and Communities,Other Agencies - Third Party P,30077456,CARE WORLDWIDE (LONDON) LTD,"2,800.82",27/05/2015
Delivery Units,Adults and Communities,Other Agencies - Third Party P,30077457,CARE WORLDWIDE (LONDON) LTD,"3,936.46",27/05/2015
Delivery Units,Adults and Communities,Other Agencies - Third Party P,30077458,CARE WORLDWIDE (LONDON) LTD,"4,246.53",27/05/2015
Delivery Units,Adults and Communities,Other Agencies - Third Party P,30077459,CARE WORLDWIDE (LONDON) LTD,"4,785.00",27/05/2015
Delivery Units,Adults and Communities,Other Agencies - Third Party P,30077460,CARE WORLDWIDE (LONDON) LTD,"2,685.98",27/05/2015
Delivery Units,Adults and Communities,Other Agencies - Third Party P,30077461,CARE WORLDWIDE (LONDON) LTD,"2,794.44",27/05/2015
Delivery Units,Adults and Communities,Other Agencies - Third Party P,30077462,CARE WORLDWIDE (LONDON) LTD,"2,800.82",27/05/2015
Delivery Units,Adults and Communities,Other Agencies - Third Party P,30075151,CAREBASE BURNT OAK 2006 LIMITED,"2,321.92",06/05/2015
Delivery Units,Adults and Communities,Other Agencies - Third Party P,30075160,CAREBASE BURNT OAK 2006 LIMITED,"2,244.13",06/05/2015
Delivery Units,Adults and Communities,Other Agencies - Third Party P,30075161,CAREBASE BURNT OAK 2006 LIMITED,"2,487.77",06/05/2015
Delivery Units,Adults and Communities,Other Agencies - Third Party P,30075162,CAREBASE BURNT OAK 2006 LIMITED,"2,487.77",06/05/2015
Delivery Units,Adults and Communities,Other Agencies - Third Party P,30075163,CAREBASE BURNT OAK 2006 LIMITED,"2,340.04",06/05/2015
Delivery Units,Adults and Communities,Other Agencies - Third Party P,30075164,CAREBASE BURNT OAK 2006 LIMITED,"2,487.77",06/05/2015
Delivery Units,Adults and Communities,Other Agencies - Third Party P,30075165,CAREBASE BURNT OAK 2006 LIMITED,"2,244.13",06/05/2015
Delivery Units,Adults and Communities,Other Agencies - Third Party P,30075166,CAREBASE BURNT OAK 2006 LIMITED,"2,227.80",06/05/2015
Delivery Units,Adults and Communities,Other Agencies - Third Party P,30075167,CAREBASE BURNT OAK 2006 LIMITED,"2,245.67",06/05/2015
Delivery Units,Adults and Communities,Other Agencies - Third Party P,30075168,CAREBASE BURNT OAK 2006 LIMITED,"3,514.29",06/05/2015
Delivery Units,Adults and Communities,Other Agencies - Third Party P,30075169,CAREBASE BURNT OAK 2006 LIMITED,"2,487.77",06/05/2015
Delivery Units,Adults and Communities,Other Agencies - Third Party P,30075170,CAREBASE BURNT OAK 2006 LIMITED,"2,340.04",06/05/2015
Delivery Units,Adults and Communities,Other Agencies - Third Party P,30074829,CARLTON COURT (TLC GROUP),"2,144.91",05/05/2015
Delivery Units,Adults and Communities,Other Agencies - Third Party P,30074830,CARLTON COURT (TLC GROUP),"2,144.91",05/05/2015
Delivery Units,Adults and Communities,Other Agencies - Third Party P,30074831,CARLTON COURT (TLC GROUP),"2,244.13",05/05/2015
Delivery Units,Adults and Communities,Other Agencies - Third Party P,30074832,CARLTON COURT (TLC GROUP),"2,487.77",05/05/2015
Delivery Units,Adults and Communities,Other Agencies - Third Party P,30074833,CARLTON COURT (TLC GROUP),"2,244.13",05/05/2015
Delivery Units,Adults and Communities,Other Agencies - Third Party P,30074834,CARLTON COURT (TLC GROUP),"2,487.77",05/05/2015
Delivery Units,Adults and Communities,Other Agencies - Third Party P,30074835,CARLTON COURT (TLC GROUP),"3,600.90",05/05/2015
Delivery Units,Adults and Communities,Other Agencies - Third Party P,30074836,CARLTON COURT (TLC GROUP),"2,487.77",05/05/2015
Delivery Units,Adults and Communities,Other Agencies - Third Party P,30074837,CARLTON COURT (TLC GROUP),"2,487.77",05/05/2015
Delivery Units,Adults and Communities,Other Agencies - Third Party P,30074838,CARLTON COURT (TLC GROUP),"2,244.13",05/05/2015
Delivery Units,Adults and Communities,Other Agencies - Third Party P,30074839,CARLTON COURT (TLC GROUP),"2,144.91",05/05/2015
Delivery Units,Adults and Communities,Other Agencies - Third Party P,30074840,CARLTON COURT (TLC GROUP),"3,642.86",05/05/2015
Delivery Units,Adults and Communities,Other Agencies - Third Party P,30074841,CARLTON COURT (TLC GROUP),"2,340.04",05/05/2015
Delivery Units,Adults and Communities,Other Agencies - Third Party P,30074842,CARLTON COURT (TLC GROUP),"2,244.13",05/05/2015
Delivery Units,Adults and Communities,Other Agencies - Third Party P,30074843,CARLTON COURT (TLC GROUP),"-3,010.56",05/05/2015
Delivery Units,Adults and Communities,Other Agencies - Third Party P,30075128,CARLTON COURT (TLC GROUP),"2,487.77",06/05/2015
Delivery Units,Adults and Communities,Other Agencies - Third Party P,30076741,CARLTON COURT (TLC GROUP),"3,428.57",21/05/2015
Delivery Units,Adults and Communities,Other Agencies - Third Party P,30076742,CARLTON COURT (TLC GROUP),"2,340.04",21/05/2015
Delivery Units,Adults and Communities,Other Agencies - Third Party P,30076743,CARLTON COURT (TLC GROUP),"3,428.57",21/05/2015
Delivery Units,Adults and Communities,Other Agencies - Third Party P,30076745,CARLTON COURT (TLC GROUP),"-3,664.71",21/05/2015
Delivery Units,Adults and Communities,Other Agencies - Third Party P,30077826,CARLTON COURT (TLC GROUP),"2,232.00",29/05/2015
Delivery Units,Adults and Communities,Other Agencies - Third Party P,30077827,CARLTON COURT (TLC GROUP),"3,278.57",29/05/2015
Delivery Units,Adults and Communities,Other Agencies - Third Party P,30077828,CARLTON COURT (TLC GROUP),"3,764.29",29/05/2015
Delivery Units,Adults and Communities,Other Agencies - Third Party P,30077860,CARLTON COURT (TLC GROUP),"1,008.00",29/05/2015
Delivery Units,Adults and Communities,Other Agencies - Third Party P,30076898,CARMEN LODGE RESIDENTIAL HOME,"2,651.10",27/05/2015
Delivery Units,Adults and Communities,Other Agencies - Third Party P,30075800,CARTREF CARE HOME,"2,001.98",14/05/2015
Delivery Units,Adults and Communities,Other Agencies - Third Party P,30076773,CATHERINE LODGE,"11,544.21",21/05/2015
Delivery Units,Adults and Communities,Other Agencies - Third Party P,30077835,CATHERINE LODGE,"2,184.04",29/05/2015
Delivery Units,Adults and Communities,Other Agencies - Third Party P,30075424,CAVENDISH RADIO CARS,901.40,08/05/2015
Delivery Units,Adults and Communities,Other Agencies - Third Party P,30075425,CAVENDISH RADIO CARS,856.33,08/05/2015
Delivery Units,Adults and Communities,Other Agencies - Third Party P,30076911,CEDARS NURSING HOME,"2,340.04",21/05/2015
Delivery Units,Adults and Communities,Other Agencies - Third Party P,30076912,CEDARS NURSING HOME,"-1,872.03",21/05/2015
Delivery Units,Adults and Communities,Other Agencies - Third Party P,30076913,CEDARS NURSING HOME,"-1,990.22",21/05/2015
Delivery Units,Adults and Communities,Other Agencies - Third Party P,30076914,CEDARS NURSING HOME,"6,965.76",21/05/2015
Delivery Units,Adults and Communities,Other Agencies - Third Party P,30076915,CEDARS NURSING HOME,"-1,780.42",21/05/2015
Delivery Units,Adults and Communities,Other Agencies - Third Party P,30076916,CEDARS NURSING HOME,"2,483.01",21/05/2015
Delivery Units,Adults and Communities,Other Agencies - Third Party P,30076917,CEDARS NURSING HOME,"2,483.01",21/05/2015
Delivery Units,Adults and Communities,Other Agencies - Third Party P,30076918,CEDARS NURSING HOME,"2,483.01",21/05/2015
Delivery Units,Adults and Communities,Other Agencies - Third Party P,30076919,CEDARS NURSING HOME,"2,239.37",21/05/2015
Delivery Units,Adults and Communities,Other Agencies - Third Party P,30076920,CEDARS NURSING HOME,"2,277.34",21/05/2015
Delivery Units,Adults and Communities,Other Agencies - Third Party P,30076921,CEDARS NURSING HOME,"2,483.01",21/05/2015
Delivery Units,Adults and Communities,Other Agencies - Third Party P,30076922,CEDARS NURSING HOME,"2,239.37",21/05/2015
Delivery Units,Adults and Communities,Other Agencies - Third Party P,30076923,CEDARS NURSING HOME,"2,483.01",21/05/2015
Delivery Units,Adults and Communities,Other Agencies - Third Party P,30076924,CEDARS NURSING HOME,"2,277.34",21/05/2015
Delivery Units,Adults and Communities,Other Agencies - Third Party P,30076925,CEDARS NURSING HOME,523.63,21/05/2015
Delivery Units,Adults and Communities,Other Agencies - Third Party P,30075999,CENTRAL MIDDLESEX SKILLS,"1,085.52",15/05/2015
Delivery Units,Adults and Communities,Other Agencies - Third Party P,30076000,CENTRAL MIDDLESEX SKILLS,723.68,15/05/2015
Delivery Units,Adults and Communities,Other Agencies - Third Party P,30075129,CHARING GARDENS LTD,"2,056.07",06/05/2015
Delivery Units,Adults and Communities,Other Agencies - Third Party P,30077617,CHEQUERS TRANSPORT LIMITED,390.00,28/05/2015
Delivery Units,Adults and Communities,Other Agencies - Third Party P,30074929,CLARE HOUSE NURSING HOME,"2,094.52",05/05/2015
Delivery Units,Adults and Communities,Other Agencies - Third Party P,30077868,CLARE HOUSE NURSING HOME,"2,094.52",29/05/2015
Delivery Units,Adults and Communities,Other Agencies - Third Party P,30075819,CLOVELLY HOUSE RESID. HOME LTD,"2,600.00",14/05/2015
Delivery Units,Adults and Communities,Other Agencies - Third Party P,30075820,CLOVELLY HOUSE RESID. HOME LTD,"2,600.00",14/05/2015
Delivery Units,Adults and Communities,Other Agencies - Third Party P,30075821,CLOVELLY HOUSE RESID. HOME LTD,"2,184.04",14/05/2015
Delivery Units,Adults and Communities,Other Agencies - Third Party P,30075822,CLOVELLY HOUSE RESID. HOME LTD,"1,872.64",14/05/2015
Delivery Units,Adults and Communities,Other Agencies - Third Party P,30075823,CLOVELLY HOUSE RESID. HOME LTD,"2,600.00",14/05/2015
Delivery Units,Adults and Communities,Other Agencies - Third Party P,30075824,CLOVELLY HOUSE RESID. HOME LTD,"2,184.04",14/05/2015
Delivery Units,Adults and Communities,Other Agencies - Third Party P,30075825,CLOVELLY HOUSE RESID. HOME LTD,"2,184.04",14/05/2015
Delivery Units,Adults and Communities,Other Agencies - Third Party P,30075827,CLOVELLY HOUSE RESID. HOME LTD,-713.04,14/05/2015
Delivery Units,Adults and Communities,Other Agencies - Third Party P,30075130,COMPLETE CARE SERVICES LTD,"5,251.80",06/05/2015
Delivery Units,Adults and Communities,Other Agencies - Third Party P,30075244,CONNIFERS CARE LTD,"8,270.74",06/05/2015
Delivery Units,Adults and Communities,Other Agencies - Third Party P,30076978,CONNIFERS CARE LTD,"8,546.43",29/05/2015
Delivery Units,Adults and Communities,Other Agencies - Third Party P,20019796,COURT OF PROTECTION,400.00,01/05/2015
Delivery Units,Adults and Communities,Other Agencies - Third Party P,30075140,CRAEGMOOR,"3,665.18",06/05/2015
Delivery Units,Adults and Communities,Other Agencies - Third Party P,30075141,CRAEGMOOR,-271.50,06/05/2015
Delivery Units,Adults and Communities,Other Agencies - Third Party P,30075261,CYGNET HEALTH CARE,"6,485.04",06/05/2015
Delivery Units,Adults and Communities,Other Agencies - Third Party P,30075262,CYGNET HEALTH CARE,-362.80,06/05/2015
Delivery Units,Adults and Communities,Other Agencies - Third Party P,30076099,DABB PAA,"1,176.12",18/05/2015
Delivery Units,Adults and Communities,Other Agencies - Third Party P,30076100,DABB PAA,273.24,18/05/2015
Delivery Units,Adults and Communities,Other Agencies - Third Party P,30074877,DANA CARE LIMITED,"9,582.86",05/05/2015
Delivery Units,Adults and Communities,Other Agencies - Third Party P,30076002,DEVELOPMENT AND LEARNING OPPORTUNIT,908.28,15/05/2015
Delivery Units,Adults and Communities,Other Agencies - Third Party P,30076003,DEVELOPMENT AND LEARNING OPPORTUNIT,"1,056.00",15/05/2015
Delivery Units,Adults and Communities,Other Agencies - Third Party P,30076202,DEVELOPMENT AND LEARNING OPPORTUNIT,652.40,18/05/2015
Delivery Units,Adults and Communities,Other Agencies - Third Party P,30076203,DEVELOPMENT AND LEARNING OPPORTUNIT,500.00,18/05/2015
Delivery Units,Adults and Communities,Other Agencies - Third Party P,30077333,DEVELOPMENT AND LEARNING OPPORTUNIT,"2,025.00",26/05/2015
Delivery Units,Adults and Communities,Other Agencies - Third Party P,30077536,DEVELOPMENT AND LEARNING OPPORTUNIT,405.00,27/05/2015
Delivery Units,Adults and Communities,Other Agencies - Third Party P,30077537,DEVELOPMENT AND LEARNING OPPORTUNIT,810.00,27/05/2015
Delivery Units,Adults and Communities,Other Agencies - Third Party P,30077538,DEVELOPMENT AND LEARNING OPPORTUNIT,810.00,27/05/2015
Delivery Units,Adults and Communities,Other Agencies - Third Party P,30077539,DEVELOPMENT AND LEARNING OPPORTUNIT,810.00,27/05/2015
Delivery Units,Adults and Communities,Other Agencies - Third Party P,30077540,DEVELOPMENT AND LEARNING OPPORTUNIT,810.00,27/05/2015
Delivery Units,Adults and Communities,Other Agencies - Third Party P,30077541,DEVELOPMENT AND LEARNING OPPORTUNIT,810.00,27/05/2015
Delivery Units,Adults and Communities,Other Agencies - Third Party P,30077542,DEVELOPMENT AND LEARNING OPPORTUNIT,810.00,27/05/2015
Delivery Units,Adults and Communities,Other Agencies - Third Party P,30077556,DILLON CARE LTD,"3,900.00",27/05/2015
Delivery Units,Adults and Communities,Other Agencies - Third Party P,30077557,DILLON CARE LTD,"3,900.00",27/05/2015
Delivery Units,Adults and Communities,Other Agencies - Third Party P,30077558,DILLON CARE LTD,"3,900.00",27/05/2015
Delivery Units,Adults and Communities,Other Agencies - Third Party P,30077559,DILLON CARE LTD,"3,900.00",27/05/2015
Delivery Units,Adults and Communities,Other Agencies - Third Party P,30075104,DIMENSIONS UK,523.60,06/05/2015
Delivery Units,Adults and Communities,Other Agencies - Third Party P,30075105,DIMENSIONS UK,299.20,06/05/2015
Delivery Units,Adults and Communities,Other Agencies - Third Party P,30075107,DIMENSIONS UK,299.20,06/05/2015
Delivery Units,Adults and Communities,Other Agencies - Third Party P,30075688,DIMENSIONS UK,"7,950.68",13/05/2015
Delivery Units,Adults and Communities,Other Agencies - Third Party P,30075912,DIMENSIONS UK,"2,128.00",14/05/2015
Delivery Units,Adults and Communities,Other Agencies - Third Party P,30075917,DIMENSIONS UK,"1,541.00",14/05/2015
Delivery Units,Adults and Communities,Other Agencies - Third Party P,30075921,DIMENSIONS UK,"4,495.76",14/05/2015
Delivery Units,Adults and Communities,Other Agencies - Third Party P,30076271,DIMENSIONS UK,"1,196.80",18/05/2015
Delivery Units,Adults and Communities,Other Agencies - Third Party P,30076272,DIMENSIONS UK,"1,496.00",18/05/2015
Delivery Units,Adults and Communities,Other Agencies - Third Party P,30076273,DIMENSIONS UK,"1,496.00",18/05/2015
Delivery Units,Adults and Communities,Other Agencies - Third Party P,30076274,DIMENSIONS UK,"1,196.80",18/05/2015
Delivery Units,Adults and Communities,Other Agencies - Third Party P,30076616,DIMENSIONS UK,"1,047.20",20/05/2015
Delivery Units,Adults and Communities,Other Agencies - Third Party P,30076618,DIMENSIONS UK,374.00,20/05/2015
Delivery Units,Adults and Communities,Other Agencies - Third Party P,30076621,DIMENSIONS UK,374.00,20/05/2015
Delivery Units,Adults and Communities,Other Agencies - Third Party P,30076623,DIMENSIONS UK,"1,047.20",20/05/2015
Delivery Units,Adults and Communities,Other Agencies - Third Party P,30076982,DIMENSIONS UK,"4,737.11",21/05/2015
Delivery Units,Adults and Communities,Other Agencies - Third Party P,30076985,DIMENSIONS UK,965.60,21/05/2015
Delivery Units,Adults and Communities,Other Agencies - Third Party P,30076927,DR FRENCH MEMORIAL HOME LTD,"2,340.04",21/05/2015
Delivery Units,Adults and Communities,Other Agencies - Third Party P,30077823,EASTSIDE HOUSE RESIDENTIAL CARE HOM,"2,001.92",29/05/2015
Delivery Units,Adults and Communities,Other Agencies - Third Party P,30075732,ELEANOR PALMER TRUST NO 2 A/C.,"2,184.04",14/05/2015
Delivery Units,Adults and Communities,Other Agencies - Third Party P,30075734,ELEANOR PALMER TRUST NO 2 A/C.,546.01,14/05/2015
Delivery Units,Adults and Communities,Other Agencies - Third Party P,30075735,ELEANOR PALMER TRUST NO 2 A/C.,"2,184.04",14/05/2015
Delivery Units,Adults and Communities,Other Agencies - Third Party P,30075737,ELEANOR PALMER TRUST NO 2 A/C.,"1,326.02",14/05/2015
Delivery Units,Adults and Communities,Other Agencies - Third Party P,30074970,ELM PARK LODGE,"3,299.29",01/05/2015
Delivery Units,Adults and Communities,Other Agencies - Third Party P,30075172,ELM PARK LODGE,"3,192.86",05/05/2015
Delivery Units,Adults and Communities,Other Agencies - Third Party P,30075182,ELM PARK LODGE,"3,407.14",08/05/2015
Delivery Units,Adults and Communities,Other Agencies - Third Party P,30075217,ELM PARK LODGE,"3,496.33",08/05/2015
Delivery Units,Adults and Communities,Other Agencies - Third Party P,30075218,ELM PARK LODGE,"1,693.29",08/05/2015
Delivery Units,Adults and Communities,Other Agencies - Third Party P,30075221,ELM PARK LODGE,"3,000.00",08/05/2015
Delivery Units,Adults and Communities,Other Agencies - Third Party P,30075229,ELM PARK LODGE,"3,321.43",08/05/2015
Delivery Units,Adults and Communities,Other Agencies - Third Party P,30075237,ELM PARK LODGE,"2,092.11",08/05/2015
Delivery Units,Adults and Communities,Other Agencies - Third Party P,30075243,ELM PARK LODGE,"3,278.57",08/05/2015
Delivery Units,Adults and Communities,Other Agencies - Third Party P,30075246,ELM PARK LODGE,"3,107.14",08/05/2015
Delivery Units,Adults and Communities,Other Agencies - Third Party P,30075249,ELM PARK LODGE,"3,278.57",08/05/2015
Delivery Units,Adults and Communities,Other Agencies - Third Party P,30075258,ELM PARK LODGE,"3,344.14",08/05/2015
Delivery Units,Adults and Communities,Other Agencies - Third Party P,30075265,ELM PARK LODGE,"3,496.33",08/05/2015
Delivery Units,Adults and Communities,Other Agencies - Third Party P,30075818,ELM PARK LODGE,"4,721.34",18/05/2015
Delivery Units,Adults and Communities,Other Agencies - Third Party P,30076245,ELM PARK LODGE,"1,780.80",18/05/2015
Delivery Units,Adults and Communities,Other Agencies - Third Party P,30076246,ELM PARK LODGE,"1,780.80",18/05/2015
Delivery Units,Adults and Communities,Other Agencies - Third Party P,30076990,ELM PARK LODGE,"3,455.61",22/05/2015
Delivery Units,Adults and Communities,Other Agencies - Third Party P,30077369,ELM PARK LODGE,"3,064.58",22/05/2015
Delivery Units,Adults and Communities,Other Agencies - Third Party P,30077370,ELM PARK LODGE,-539.61,22/05/2015
Delivery Units,Adults and Communities,Other Agencies - Third Party P,30077380,ELM PARK LODGE,"1,596.80",22/05/2015
Delivery Units,Adults and Communities,Other Agencies - Third Party P,30077386,ELM PARK LODGE,"2,035.46",22/05/2015
Delivery Units,Adults and Communities,Other Agencies - Third Party P,30077387,ELM PARK LODGE,-539.27,22/05/2015
Delivery Units,Adults and Communities,Other Agencies - Third Party P,30074939,EMMAUS HOUSE,"2,184.04",05/05/2015
Delivery Units,Adults and Communities,Other Agencies - Third Party P,30077875,EMMAUS HOUSE,"2,184.04",29/05/2015
Delivery Units,Adults and Communities,Other Agencies - Third Party P,30075432,EVE HERSOV & CO,262.00,08/05/2015
Delivery Units,Adults and Communities,Other Agencies - Third Party P,20020001,FINBOND LIMITED,"2,001.92",12/05/2015
Delivery Units,Adults and Communities,Other Agencies - Third Party P,30075158,FINBOND LIMITED,"2,144.91",06/05/2015
Delivery Units,Adults and Communities,Other Agencies - Third Party P,30075159,FINBOND LIMITED,"2,571.43",06/05/2015
Delivery Units,Adults and Communities,Other Agencies - Third Party P,30075882,FLAGSWAN TWO LTD,"2,464.29",14/05/2015
Delivery Units,Adults and Communities,Other Agencies - Third Party P,30077893,FLAGSWAN TWO LTD,"3,272.06",29/05/2015
Delivery Units,Adults and Communities,Other Agencies - Third Party P,20020514,FOUR SEASONS HEALTH CARE,"1,975.93",28/05/2015
Delivery Units,Adults and Communities,Other Agencies - Third Party P,30075858,FOUR SEASONS HEALTH CARE,"2,443.80",14/05/2015
Delivery Units,Adults and Communities,Other Agencies - Third Party P,30075859,FOUR SEASONS HEALTH CARE,"2,086.16",14/05/2015
Delivery Units,Adults and Communities,Other Agencies - Third Party P,30075860,FOUR SEASONS HEALTH CARE,"2,086.16",14/05/2015
Delivery Units,Adults and Communities,Other Agencies - Third Party P,30075861,FOUR SEASONS HEALTH CARE,"2,123.96",14/05/2015
Delivery Units,Adults and Communities,Other Agencies - Third Party P,30075862,FOUR SEASONS HEALTH CARE,"2,313.56",14/05/2015
Delivery Units,Adults and Communities,Other Agencies - Third Party P,30075863,FOUR SEASONS HEALTH CARE,"2,123.96",14/05/2015
Delivery Units,Adults and Communities,Other Agencies - Third Party P,30075864,FOUR SEASONS HEALTH CARE,"2,313.56",14/05/2015
Delivery Units,Adults and Communities,Other Agencies - Third Party P,30075865,FOUR SEASONS HEALTH CARE,"2,086.16",14/05/2015
Delivery Units,Adults and Communities,Other Agencies - Third Party P,30075866,FOUR SEASONS HEALTH CARE,"2,086.16",14/05/2015
Delivery Units,Adults and Communities,Other Agencies - Third Party P,30075867,FOUR SEASONS HEALTH CARE,"2,313.56",14/05/2015
Delivery Units,Adults and Communities,Other Agencies - Third Party P,30075868,FOUR SEASONS HEALTH CARE,"2,094.52",14/05/2015
Delivery Units,Adults and Communities,Other Agencies - Third Party P,30075869,FOUR SEASONS HEALTH CARE,"2,086.16",14/05/2015
Delivery Units,Adults and Communities,Other Agencies - Third Party P,30076967,FOUR SEASONS HEALTH CARE,642.87,21/05/2015
Delivery Units,Adults and Communities,Other Agencies - Third Party P,30076969,FOUR SEASONS HEALTH CARE,591.66,21/05/2015
Delivery Units,Adults and Communities,Other Agencies - Third Party P,30076970,FOUR SEASONS HEALTH CARE,"2,102.15",21/05/2015
Delivery Units,Adults and Communities,Other Agencies - Third Party P,30077888,FOUR SEASONS HEALTH CARE,"1,671.94",29/05/2015
Delivery Units,Adults and Communities,Other Agencies - Third Party P,30077889,FOUR SEASONS HEALTH CARE,987.96,29/05/2015
Delivery Units,Adults and Communities,Other Agencies - Third Party P,30075922,FREEWAYS TRUST LIMITED,"2,979.76",14/05/2015
Delivery Units,Adults and Communities,Other Agencies - Third Party P,30075923,FREEWAYS TRUST LIMITED,-890.20,14/05/2015
Delivery Units,Adults and Communities,Other Agencies - Third Party P,30076991,FREEWAYS TRUST LIMITED,829.80,21/05/2015
Delivery Units,Adults and Communities,Other Agencies - Third Party P,30075839,FREMANTLE TRUST,"-2,004.56",14/05/2015
Delivery Units,Adults and Communities,Other Agencies - Third Party P,30075870,FREMANTLE TRUST,"4,063.92",14/05/2015
Delivery Units,Adults and Communities,Other Agencies - Third Party P,30075871,FREMANTLE TRUST,-403.20,14/05/2015
Delivery Units,Adults and Communities,Other Agencies - Third Party P,30075872,FREMANTLE TRUST,"20,126.08",14/05/2015
Delivery Units,Adults and Communities,Other Agencies - Third Party P,30075873,FREMANTLE TRUST,"-1,328.00",14/05/2015
Delivery Units,Adults and Communities,Other Agencies - Third Party P,30076025,FREMANTLE TRUST,"32,898.40",15/05/2015
Delivery Units,Adults and Communities,Other Agencies - Third Party P,30076026,FREMANTLE TRUST,"-1,649.35",15/05/2015
Delivery Units,Adults and Communities,Other Agencies - Third Party P,30074923,FRIERN RESIDENTIAL CARE HOME,"2,035.46",05/05/2015
Delivery Units,Adults and Communities,Other Agencies - Third Party P,30074925,FRIERN RESIDENTIAL CARE HOME,"3,857.14",07/05/2015
Delivery Units,Adults and Communities,Other Agencies - Third Party P,30076612,GENTLE HANDS CARE AGENCY,"1,400.00",20/05/2015
Delivery Units,Adults and Communities,Other Agencies - Third Party P,30074699,GENTLE HANDS CARE HOMES LIMITED,"4,394.00",01/05/2015
Delivery Units,Adults and Communities,Other Agencies - Third Party P,30077376,GENTLE HANDS CARE HOMES LIMITED,"4,394.00",26/05/2015
Delivery Units,Adults and Communities,Other Agencies - Third Party P,30075124,GLEBELANDS,"12,000.00",06/05/2015
Delivery Units,Adults and Communities,Other Agencies - Third Party P,30076035,GLEBELANDS,"12,000.00",18/05/2015
Delivery Units,Adults and Communities,Other Agencies - Third Party P,30074871,GRATWICK HOUSE CARE HOME,"2,001.92",05/05/2015
Delivery Units,Adults and Communities,Other Agencies - Third Party P,30074872,GRATWICK HOUSE CARE HOME,-487.80,05/05/2015
Delivery Units,Adults and Communities,Other Agencies - Third Party P,30076747,H.C.S. (ENFIELD) LTD,"5,271.77",21/05/2015
Delivery Units,Adults and Communities,Other Agencies - Third Party P,30076748,H.C.S. (ENFIELD) LTD,-353.62,21/05/2015
Delivery Units,Adults and Communities,Other Agencies - Third Party P,20020602,HAJI TASLEM FUNERAL LTD,"1,000.00",29/05/2015
Delivery Units,Adults and Communities,Other Agencies - Third Party P,30075844,HALLMARK CARE (KINGS LYNN) LTD,"2,797.07",14/05/2015
Delivery Units,Adults and Communities,Other Agencies - Third Party P,30075245,HARDEN,"4,343.12",06/05/2015
Delivery Units,Adults and Communities,Other Agencies - Third Party P,30074846,HENRY NIHILL HOUSE,"1,575.59",05/05/2015
Delivery Units,Adults and Communities,Other Agencies - Third Party P,30074847,HENRY NIHILL HOUSE,"2,321.92",05/05/2015
Delivery Units,Adults and Communities,Other Agencies - Third Party P,30076829,HILLVIEW COURT NURSING HOME,"4,200.00",21/05/2015
Delivery Units,Adults and Communities,Other Agencies - Third Party P,30076830,HILLVIEW COURT NURSING HOME,-319.40,21/05/2015
Delivery Units,Adults and Communities,Other Agencies - Third Party P,20020508,HILTON LODGE LTD.,"2,184.04",28/05/2015
Delivery Units,Adults and Communities,Other Agencies - Third Party P,30074935,HILTON LODGE LTD.,"2,182.87",05/05/2015
Delivery Units,Adults and Communities,Other Agencies - Third Party P,30074936,HILTON LODGE LTD.,-580.15,05/05/2015
Delivery Units,Adults and Communities,Other Agencies - Third Party P,30074937,HILTON LODGE LTD.,"2,184.04",05/05/2015
Delivery Units,Adults and Communities,Other Agencies - Third Party P,30074938,HILTON LODGE LTD.,-783.20,05/05/2015
Delivery Units,Adults and Communities,Other Agencies - Third Party P,30074943,HILTON LODGE LTD.,"2,184.04",05/05/2015
Delivery Units,Adults and Communities,Other Agencies - Third Party P,30074959,HILTON LODGE LTD.,"2,184.04",05/05/2015
Delivery Units,Adults and Communities,Other Agencies - Third Party P,30074964,HILTON LODGE LTD.,"2,184.04",05/05/2015
Delivery Units,Adults and Communities,Other Agencies - Third Party P,30074965,HILTON LODGE LTD.,"2,256.04",05/05/2015
Delivery Units,Adults and Communities,Other Agencies - Third Party P,30074972,HILTON LODGE LTD.,"2,184.04",05/05/2015
Delivery Units,Adults and Communities,Other Agencies - Third Party P,30074973,HILTON LODGE LTD.,"2,184.04",05/05/2015
Delivery Units,Adults and Communities,Other Agencies - Third Party P,30074990,HILTON LODGE LTD.,"2,184.04",05/05/2015
Delivery Units,Adults and Communities,Other Agencies - Third Party P,30074992,HILTON LODGE LTD.,"2,184.04",05/05/2015
Delivery Units,Adults and Communities,Other Agencies - Third Party P,30077371,HILTON LODGE LTD.,"2,181.52",26/05/2015
Delivery Units,Adults and Communities,Other Agencies - Third Party P,30077372,HILTON LODGE LTD.,-578.80,26/05/2015
Delivery Units,Adults and Communities,Other Agencies - Third Party P,30077373,HILTON LODGE LTD.,"2,184.04",26/05/2015
Delivery Units,Adults and Communities,Other Agencies - Third Party P,30077374,HILTON LODGE LTD.,-783.20,26/05/2015
Delivery Units,Adults and Communities,Other Agencies - Third Party P,30077375,HILTON LODGE LTD.,"2,184.04",26/05/2015
Delivery Units,Adults and Communities,Other Agencies - Third Party P,30077381,HILTON LODGE LTD.,"2,184.04",26/05/2015
Delivery Units,Adults and Communities,Other Agencies - Third Party P,30077383,HILTON LODGE LTD.,"2,256.04",26/05/2015
Delivery Units,Adults and Communities,Other Agencies - Third Party P,30077384,HILTON LODGE LTD.,"2,184.04",26/05/2015
Delivery Units,Adults and Communities,Other Agencies - Third Party P,30077385,HILTON LODGE LTD.,"2,184.04",26/05/2015
Delivery Units,Adults and Communities,Other Agencies - Third Party P,30077388,HILTON LODGE LTD.,"2,184.04",26/05/2015
Delivery Units,Adults and Communities,Other Agencies - Third Party P,30077389,HILTON LODGE LTD.,"2,184.04",26/05/2015
Delivery Units,Adults and Communities,Other Agencies - Third Party P,30075943,HOLLY HOUSE,"1,748.60",14/05/2015
Delivery Units,Adults and Communities,Other Agencies - Third Party P,30075807,HOME FARM TRUST LTD,"2,657.40",14/05/2015
Delivery Units,Adults and Communities,Other Agencies - Third Party P,30075808,HOME FARM TRUST LTD,-320.00,14/05/2015
Delivery Units,Adults and Communities,Other Agencies - Third Party P,30075809,HOME FARM TRUST LTD,"2,657.40",20/05/2015
Delivery Units,Adults and Communities,Other Agencies - Third Party P,30075810,HOME FARM TRUST LTD,-321.80,20/05/2015
Delivery Units,Adults and Communities,Other Agencies - Third Party P,30076995,HOME FROM HOME CARE LTD,"9,769.00",21/05/2015
Delivery Units,Adults and Communities,Other Agencies - Third Party P,30076996,HOME FROM HOME CARE LTD,-350.60,21/05/2015
Delivery Units,Adults and Communities,Other Agencies - Third Party P,30077866,HONISTER RESIDENTIAL CARE LTD,"2,418.04",29/05/2015
Delivery Units,Adults and Communities,Other Agencies - Third Party P,20019857,HYTHE HOUSE SUPPORT LTD,"1,269.46",07/05/2015
Delivery Units,Adults and Communities,Other Agencies - Third Party P,30076372,INDEPENDENCE HOMES LIMITED,"2,900.00",20/05/2015
Delivery Units,Adults and Communities,Other Agencies - Third Party P,30076373,INDEPENDENCE HOMES LIMITED,"5,400.00",20/05/2015
Delivery Units,Adults and Communities,Other Agencies - Third Party P,30074667,INDIVIDUALISED CARE LIMITED,"1,000.00",01/05/2015
Delivery Units,Adults and Communities,Other Agencies - Third Party P,30074668,INDIVIDUALISED CARE LIMITED,"2,400.00",01/05/2015
Delivery Units,Adults and Communities,Other Agencies - Third Party P,30074669,INDIVIDUALISED CARE LIMITED,"1,000.00",01/05/2015
Delivery Units,Adults and Communities,Other Agencies - Third Party P,30074670,INDIVIDUALISED CARE LIMITED,800.00,01/05/2015
Delivery Units,Adults and Communities,Other Agencies - Third Party P,30074671,INDIVIDUALISED CARE LIMITED,700.00,01/05/2015
Delivery Units,Adults and Communities,Other Agencies - Third Party P,30074672,INDIVIDUALISED CARE LIMITED,800.00,01/05/2015
Delivery Units,Adults and Communities,Other Agencies - Third Party P,30074796,INDIVIDUALISED CARE LIMITED,912.00,05/05/2015
Delivery Units,Adults and Communities,Other Agencies - Third Party P,30074797,INDIVIDUALISED CARE LIMITED,712.00,05/05/2015
Delivery Units,Adults and Communities,Other Agencies - Third Party P,30074798,INDIVIDUALISED CARE LIMITED,500.00,05/05/2015
Delivery Units,Adults and Communities,Other Agencies - Third Party P,30074799,INDIVIDUALISED CARE LIMITED,700.00,05/05/2015
Delivery Units,Adults and Communities,Other Agencies - Third Party P,30074800,INDIVIDUALISED CARE LIMITED,255.00,05/05/2015
Delivery Units,Adults and Communities,Other Agencies - Third Party P,30074804,INDIVIDUALISED CARE LIMITED,700.00,05/05/2015
Delivery Units,Adults and Communities,Other Agencies - Third Party P,30074806,INDIVIDUALISED CARE LIMITED,300.00,05/05/2015
Delivery Units,Adults and Communities,Other Agencies - Third Party P,30074808,INDIVIDUALISED CARE LIMITED,812.00,05/05/2015
Delivery Units,Adults and Communities,Other Agencies - Third Party P,30074809,INDIVIDUALISED CARE LIMITED,300.00,05/05/2015
Delivery Units,Adults and Communities,Other Agencies - Third Party P,30074810,INDIVIDUALISED CARE LIMITED,300.00,05/05/2015
Delivery Units,Adults and Communities,Other Agencies - Third Party P,30074811,INDIVIDUALISED CARE LIMITED,"2,512.00",05/05/2015
Delivery Units,Adults and Communities,Other Agencies - Third Party P,30074812,INDIVIDUALISED CARE LIMITED,684.00,05/05/2015
Delivery Units,Adults and Communities,Other Agencies - Third Party P,30074813,INDIVIDUALISED CARE LIMITED,560.00,05/05/2015
Delivery Units,Adults and Communities,Other Agencies - Third Party P,30074814,INDIVIDUALISED CARE LIMITED,384.00,05/05/2015
Delivery Units,Adults and Communities,Other Agencies - Third Party P,30074815,INDIVIDUALISED CARE LIMITED,300.00,05/05/2015
Delivery Units,Adults and Communities,Other Agencies - Third Party P,30074816,INDIVIDUALISED CARE LIMITED,427.50,05/05/2015
Delivery Units,Adults and Communities,Other Agencies - Third Party P,30074817,INDIVIDUALISED CARE LIMITED,300.00,05/05/2015
Delivery Units,Adults and Communities,Other Agencies - Third Party P,30074819,INDIVIDUALISED CARE LIMITED,370.00,05/05/2015
Delivery Units,Adults and Communities,Other Agencies - Third Party P,30074821,INDIVIDUALISED CARE LIMITED,300.00,05/05/2015
Delivery Units,Adults and Communities,Other Agencies - Third Party P,30074822,INDIVIDUALISED CARE LIMITED,400.00,05/05/2015
Delivery Units,Adults and Communities,Other Agencies - Third Party P,30074823,INDIVIDUALISED CARE LIMITED,"1,000.00",05/05/2015
Delivery Units,Adults and Communities,Other Agencies - Third Party P,30075635,INDIVIDUALISED CARE LIMITED,800.00,13/05/2015
Delivery Units,Adults and Communities,Other Agencies - Third Party P,30075636,INDIVIDUALISED CARE LIMITED,270.00,13/05/2015
Delivery Units,Adults and Communities,Other Agencies - Third Party P,30077393,INDIVIDUALISED CARE LIMITED,800.00,27/05/2015
Delivery Units,Adults and Communities,Other Agencies - Third Party P,30077394,INDIVIDUALISED CARE LIMITED,"1,800.00",27/05/2015
Delivery Units,Adults and Communities,Other Agencies - Third Party P,30077395,INDIVIDUALISED CARE LIMITED,700.00,27/05/2015
Delivery Units,Adults and Communities,Other Agencies - Third Party P,30077824,INDIVIDUALISED CARE LIMITED,"1,800.00",29/05/2015
Delivery Units,Adults and Communities,Other Agencies - Third Party P,30077825,INDIVIDUALISED CARE LIMITED,"1,000.00",29/05/2015
Delivery Units,Adults and Communities,Other Agencies - Third Party P,30075733,INSIGHT SPECIALIST BEHAVIOURAL,"5,944.08",14/05/2015
Delivery Units,Adults and Communities,Other Agencies - Third Party P,30075117,JEMINI RESPONSE,"9,100.00",11/05/2015
Delivery Units,Adults and Communities,Other Agencies - Third Party P,30074888,JEWISH CARE,"2,102.00",05/05/2015
Delivery Units,Adults and Communities,Other Agencies - Third Party P,30074889,JEWISH CARE,"3,200.00",05/05/2015
Delivery Units,Adults and Communities,Other Agencies - Third Party P,30074896,JEWISH CARE,"2,199.24",05/05/2015
Delivery Units,Adults and Communities,Other Agencies - Third Party P,30074897,JEWISH CARE,"2,133.85",05/05/2015
Delivery Units,Adults and Communities,Other Agencies - Third Party P,30074898,JEWISH CARE,-502.52,05/05/2015
Delivery Units,Adults and Communities,Other Agencies - Third Party P,30074900,JEWISH CARE,825.79,05/05/2015
Delivery Units,Adults and Communities,Other Agencies - Third Party P,30076881,JEWISH CARE,"2,102.00",21/05/2015
Delivery Units,Adults and Communities,Other Agencies - Third Party P,30076883,JEWISH CARE,"3,200.00",21/05/2015
Delivery Units,Adults and Communities,Other Agencies - Third Party P,30076890,JEWISH CARE,"2,199.24",21/05/2015
Delivery Units,Adults and Communities,Other Agencies - Third Party P,30076891,JEWISH CARE,"3,360.00",21/05/2015
Delivery Units,Adults and Communities,Other Agencies - Third Party P,30076892,JEWISH CARE,-321.80,21/05/2015
Delivery Units,Adults and Communities,Other Agencies - Third Party P,30076893,JEWISH CARE,"2,133.84",21/05/2015
Delivery Units,Adults and Communities,Other Agencies - Third Party P,30076894,JEWISH CARE,-505.20,21/05/2015
Delivery Units,Adults and Communities,Other Agencies - Third Party P,30076895,JEWISH CARE,"1,719.93",21/05/2015
Delivery Units,Adults and Communities,Other Agencies - Third Party P,30076896,JEWISH CARE,675.64,21/05/2015
Delivery Units,Adults and Communities,Other Agencies - Third Party P,30077338,JEWISH CARE,"6,797.82",26/05/2015
Delivery Units,Adults and Communities,Other Agencies - Third Party P,30077344,JEWISH CARE,"3,040.60",26/05/2015
Delivery Units,Adults and Communities,Other Agencies - Third Party P,30077346,JEWISH CARE,"2,211.34",26/05/2015
Delivery Units,Adults and Communities,Other Agencies - Third Party P,30077352,JEWISH CARE,-363.42,26/05/2015
Delivery Units,Adults and Communities,Other Agencies - Third Party P,30077354,JEWISH CARE,"-4,750.28",26/05/2015
Delivery Units,Adults and Communities,Other Agencies - Third Party P,30074850,JIGSAW CREATIVE CARE LIMITED,"5,997.36",05/05/2015
Delivery Units,Adults and Communities,Other Agencies - Third Party P,30074851,JIGSAW CREATIVE CARE LIMITED,"2,824.00",05/05/2015
Delivery Units,Adults and Communities,Other Agencies - Third Party P,30074852,JIGSAW CREATIVE CARE LIMITED,"5,566.00",05/05/2015
Delivery Units,Adults and Communities,Other Agencies - Third Party P,30075487,JIGSAW CREATIVE CARE LIMITED,"2,998.68",12/05/2015
Delivery Units,Adults and Communities,Other Agencies - Third Party P,30075488,JIGSAW CREATIVE CARE LIMITED,"2,783.00",12/05/2015
Delivery Units,Adults and Communities,Other Agencies - Third Party P,30075490,JIGSAW CREATIVE CARE LIMITED,"1,412.00",12/05/2015
Delivery Units,Adults and Communities,Other Agencies - Third Party P,30076753,JIGSAW CREATIVE CARE LIMITED,"5,997.36",21/05/2015
Delivery Units,Adults and Communities,Other Agencies - Third Party P,30076754,JIGSAW CREATIVE CARE LIMITED,"2,824.00",21/05/2015
Delivery Units,Adults and Communities,Other Agencies - Third Party P,30076755,JIGSAW CREATIVE CARE LIMITED,"5,566.00",21/05/2015
Delivery Units,Adults and Communities,Other Agencies - Third Party P,30076962,KIRKLEY MANOR,"2,001.92",21/05/2015
Delivery Units,Adults and Communities,Other Agencies - Third Party P,30076963,KIRKLEY MANOR,-495.80,21/05/2015
Delivery Units,Adults and Communities,Other Agencies - Third Party P,30076964,KIRKLEY MANOR,"2,001.92",21/05/2015
Delivery Units,Adults and Communities,Other Agencies - Third Party P,30076965,KIRKLEY MANOR,-495.80,21/05/2015
Delivery Units,Adults and Communities,Other Agencies - Third Party P,30075641,KISHARON DAY SCHOOL,"1,464.03",13/05/2015
Delivery Units,Adults and Communities,Other Agencies - Third Party P,30075642,KISHARON DAY SCHOOL,"4,260.72",13/05/2015
Delivery Units,Adults and Communities,Other Agencies - Third Party P,30075643,KISHARON DAY SCHOOL,"2,284.24",13/05/2015
Delivery Units,Adults and Communities,Other Agencies - Third Party P,30075644,KISHARON DAY SCHOOL,686.88,13/05/2015
Delivery Units,Adults and Communities,Other Agencies - Third Party P,30075645,KISHARON DAY SCHOOL,"1,373.49",13/05/2015
Delivery Units,Adults and Communities,Other Agencies - Third Party P,30075646,KISHARON DAY SCHOOL,794.08,13/05/2015
Delivery Units,Adults and Communities,Other Agencies - Third Party P,30075647,KISHARON DAY SCHOOL,381.54,13/05/2015
Delivery Units,Adults and Communities,Other Agencies - Third Party P,30075648,KISHARON DAY SCHOOL,"1,373.49",13/05/2015
Delivery Units,Adults and Communities,Other Agencies - Third Party P,30075649,KISHARON DAY SCHOOL,"1,679.87",13/05/2015
Delivery Units,Adults and Communities,Other Agencies - Third Party P,30075650,KISHARON DAY SCHOOL,"1,340.18",13/05/2015
Delivery Units,Adults and Communities,Other Agencies - Third Party P,30075651,KISHARON DAY SCHOOL,"1,241.16",13/05/2015
Delivery Units,Adults and Communities,Other Agencies - Third Party P,30075652,KISHARON DAY SCHOOL,"1,133.60",13/05/2015
Delivery Units,Adults and Communities,Other Agencies - Third Party P,30075653,KISHARON DAY SCHOOL,"1,373.68",13/05/2015
Delivery Units,Adults and Communities,Other Agencies - Third Party P,30075740,KISHARON DAY SCHOOL,397.11,14/05/2015
Delivery Units,Adults and Communities,Other Agencies - Third Party P,30075741,KISHARON DAY SCHOOL,"1,369.23",14/05/2015
Delivery Units,Adults and Communities,Other Agencies - Third Party P,30075742,KISHARON DAY SCHOOL,733.72,14/05/2015
Delivery Units,Adults and Communities,Other Agencies - Third Party P,30075744,KISHARON DAY SCHOOL,"1,275.96",14/05/2015
Delivery Units,Adults and Communities,Other Agencies - Third Party P,30076807,KISHARON DAY SCHOOL,"2,998.11",21/05/2015
Delivery Units,Adults and Communities,Other Agencies - Third Party P,30076808,KISHARON DAY SCHOOL,-342.21,21/05/2015
Delivery Units,Adults and Communities,Other Agencies - Third Party P,30076809,KISHARON DAY SCHOOL,"4,881.51",21/05/2015
Delivery Units,Adults and Communities,Other Agencies - Third Party P,30076810,KISHARON DAY SCHOOL,-342.21,21/05/2015
Delivery Units,Adults and Communities,Other Agencies - Third Party P,30076811,KISHARON DAY SCHOOL,"2,998.11",21/05/2015
Delivery Units,Adults and Communities,Other Agencies - Third Party P,30076812,KISHARON DAY SCHOOL,-342.21,21/05/2015
Delivery Units,Adults and Communities,Other Agencies - Third Party P,30076813,KISHARON DAY SCHOOL,"2,998.11",21/05/2015
Delivery Units,Adults and Communities,Other Agencies - Third Party P,30076814,KISHARON DAY SCHOOL,-342.21,21/05/2015
Delivery Units,Adults and Communities,Other Agencies - Third Party P,30075228,LEEMING BAR CARE HOME,"1,876.76",06/05/2015
Delivery Units,Adults and Communities,Other Agencies - Third Party P,30076783,LEO BAECK HOUSING ASSOC. LTD,"4,361.32",21/05/2015
Delivery Units,Adults and Communities,Other Agencies - Third Party P,30076784,LEO BAECK HOUSING ASSOC. LTD,"4,361.32",21/05/2015
Delivery Units,Adults and Communities,Other Agencies - Third Party P,30076785,LEO BAECK HOUSING ASSOC. LTD,"4,361.32",21/05/2015
Delivery Units,Adults and Communities,Other Agencies - Third Party P,30076786,LEO BAECK HOUSING ASSOC. LTD,"4,758.00",21/05/2015
Delivery Units,Adults and Communities,Other Agencies - Third Party P,30075254,LEWIS.W.HAMMERSON MEMORIAL HOME,"2,216.41",06/05/2015
Delivery Units,Adults and Communities,Other Agencies - Third Party P,30075255,LEWIS.W.HAMMERSON MEMORIAL HOME,"2,144.91",06/05/2015
Delivery Units,Adults and Communities,Other Agencies - Third Party P,30075256,LEWIS.W.HAMMERSON MEMORIAL HOME,"2,144.91",06/05/2015
Delivery Units,Adults and Communities,Other Agencies - Third Party P,30075257,LEWIS.W.HAMMERSON MEMORIAL HOME,"2,144.91",06/05/2015
Delivery Units,Adults and Communities,Other Agencies - Third Party P,30075271,LEWIS.W.HAMMERSON MEMORIAL HOME,"2,144.91",06/05/2015
Delivery Units,Adults and Communities,Other Agencies - Third Party P,30076971,LIFESTYLE CARE 2011 PLC,"2,138.00",21/05/2015
Delivery Units,Adults and Communities,Other Agencies - Third Party P,30075230,LIFESTYLE CARE PLC,"2,244.13",06/05/2015
Delivery Units,Adults and Communities,Other Agencies - Third Party P,30075231,LIFESTYLE CARE PLC,"2,244.13",06/05/2015
Delivery Units,Adults and Communities,Other Agencies - Third Party P,30075232,LIFESTYLE CARE PLC,"2,244.13",06/05/2015
Delivery Units,Adults and Communities,Other Agencies - Third Party P,30075233,LIFESTYLE CARE PLC,"2,487.47",06/05/2015
Delivery Units,Adults and Communities,Other Agencies - Third Party P,30075234,LIFESTYLE CARE PLC,"2,487.47",06/05/2015
Delivery Units,Adults and Communities,Other Agencies - Third Party P,30075235,LIFESTYLE CARE PLC,"2,244.13",06/05/2015
Delivery Units,Adults and Communities,Other Agencies - Third Party P,30075236,LIFESTYLE CARE PLC,"2,244.13",06/05/2015
Delivery Units,Adults and Communities,Other Agencies - Third Party P,30075680,LIFEWAYS,"3,145.24",13/05/2015
Delivery Units,Adults and Communities,Other Agencies - Third Party P,30075681,LIFEWAYS,"6,930.00",13/05/2015
Delivery Units,Adults and Communities,Other Agencies - Third Party P,30075683,LIFEWAYS,"5,037.40",13/05/2015
Delivery Units,Adults and Communities,Other Agencies - Third Party P,30075684,LIFEWAYS,"5,943.00",13/05/2015
Delivery Units,Adults and Communities,Other Agencies - Third Party P,30075686,LIFEWAYS,"2,377.20",13/05/2015
Delivery Units,Adults and Communities,Other Agencies - Third Party P,30075835,LIFEWAYS,"3,656.00",14/05/2015
Delivery Units,Adults and Communities,Other Agencies - Third Party P,30075836,LIFEWAYS,"5,766.44",14/05/2015
Delivery Units,Adults and Communities,Other Agencies - Third Party P,30075837,LIFEWAYS,"4,828.24",14/05/2015
Delivery Units,Adults and Communities,Other Agencies - Third Party P,30076610,LIFEWAYS,"1,060.00",20/05/2015
Delivery Units,Adults and Communities,Other Agencies - Third Party P,30075654,LIONCARE LIMITED,"4,716.16",29/05/2015
Delivery Units,Adults and Communities,Other Agencies - Third Party P,30075813,LIVABILITY,"2,400.00",14/05/2015
Delivery Units,Adults and Communities,Other Agencies - Third Party P,30075814,LIVABILITY,"3,424.00",14/05/2015
Delivery Units,Adults and Communities,Other Agencies - Third Party P,30075878,LIVABILITY,"4,891.20",14/05/2015
Delivery Units,Adults and Communities,Other Agencies - Third Party P,30075879,LIVABILITY,"5,279.24",14/05/2015
Delivery Units,Adults and Communities,Other Agencies - Third Party P,30074620,LYNDON (THE SALVATION ARMY),"1,212.00",01/05/2015
Delivery Units,Adults and Communities,Other Agencies - Third Party P,30075238,M D HOMES,"3,428.57",06/05/2015
Delivery Units,Adults and Communities,Other Agencies - Third Party P,30076986,MADELAYNE COURT,"2,144.91",21/05/2015
Delivery Units,Adults and Communities,Other Agencies - Third Party P,30075640,MAISON MOTI LTD,"1,642.48",13/05/2015
Delivery Units,Adults and Communities,Other Agencies - Third Party P,30075655,MAISON MOTI LTD,"2,240.00",13/05/2015
Delivery Units,Adults and Communities,Other Agencies - Third Party P,30075656,MAISON MOTI LTD,"2,440.00",13/05/2015
Delivery Units,Adults and Communities,Other Agencies - Third Party P,30075657,MAISON MOTI LTD,"2,440.00",13/05/2015
Delivery Units,Adults and Communities,Other Agencies - Third Party P,30075658,MAISON MOTI LTD,"1,026.00",13/05/2015
Delivery Units,Adults and Communities,Other Agencies - Third Party P,30076270,MAISON MOTI LTD,343.40,18/05/2015
Delivery Units,Adults and Communities,Other Agencies - Third Party P,30076782,MAISON MOTI LTD,"3,400.00",21/05/2015
Delivery Units,Adults and Communities,Other Agencies - Third Party P,30076787,MAISON MOTI LTD,"3,260.00",21/05/2015
Delivery Units,Adults and Communities,Other Agencies - Third Party P,30077895,MARLBOROUGH HOUSE,"3,823.97",29/05/2015
Delivery Units,Adults and Communities,Other Agencies - Third Party P,30077902,MARLBOROUGH HOUSE,"3,951.44",29/05/2015
Delivery Units,Adults and Communities,Other Agencies - Third Party P,30075875,MARRILYNE LODGE,"2,554.16",14/05/2015
Delivery Units,Adults and Communities,Other Agencies - Third Party P,30075876,MARRILYNE LODGE,"2,235.12",14/05/2015
Delivery Units,Adults and Communities,Other Agencies - Third Party P,30074864,MARYVILLE CARE HOME,"2,244.13",05/05/2015
Delivery Units,Adults and Communities,Other Agencies - Third Party P,30074865,MARYVILLE CARE HOME,-539.61,05/05/2015
Delivery Units,Adults and Communities,Other Agencies - Third Party P,30074866,MARYVILLE CARE HOME,"2,431.67",05/05/2015
Delivery Units,Adults and Communities,Other Agencies - Third Party P,30074867,MARYVILLE CARE HOME,-539.61,05/05/2015
Delivery Units,Adults and Communities,Other Agencies - Third Party P,30075250,MCCH SOCIETY LIMITED,"4,280.00",06/05/2015
Delivery Units,Adults and Communities,Other Agencies - Third Party P,30075251,MCCH SOCIETY LIMITED,-495.80,06/05/2015
Delivery Units,Adults and Communities,Other Agencies - Third Party P,30074924,MEERA NURSING HOME LIMITED,"2,244.13",05/05/2015
Delivery Units,Adults and Communities,Other Agencies - Third Party P,30074933,MEERA NURSING HOME LIMITED,"2,244.13",05/05/2015
Delivery Units,Adults and Communities,Other Agencies - Third Party P,30074944,MEERA NURSING HOME LIMITED,"2,244.13",05/05/2015
Delivery Units,Adults and Communities,Other Agencies - Third Party P,30074957,MEERA NURSING HOME LIMITED,"2,245.71",05/05/2015
Delivery Units,Adults and Communities,Other Agencies - Third Party P,30074971,MEERA NURSING HOME LIMITED,"2,244.13",05/05/2015
Delivery Units,Adults and Communities,Other Agencies - Third Party P,30074977,MEERA NURSING HOME LIMITED,"2,244.13",05/05/2015
Delivery Units,Adults and Communities,Other Agencies - Third Party P,30074981,MEERA NURSING HOME LIMITED,"2,449.76",05/05/2015
Delivery Units,Adults and Communities,Other Agencies - Third Party P,30074982,MEERA NURSING HOME LIMITED,"2,244.13",05/05/2015
Delivery Units,Adults and Communities,Other Agencies - Third Party P,30074983,MEERA NURSING HOME LIMITED,"2,245.67",05/05/2015
Delivery Units,Adults and Communities,Other Agencies - Third Party P,30074984,MEERA NURSING HOME LIMITED,"2,244.13",05/05/2015
Delivery Units,Adults and Communities,Other Agencies - Third Party P,30074989,MEERA NURSING HOME LIMITED,"2,244.13",05/05/2015
Delivery Units,Adults and Communities,Other Agencies - Third Party P,30075877,METHODIST HOMES FOR THE AGED,"2,001.92",14/05/2015
Delivery Units,Adults and Communities,Other Agencies - Third Party P,30075902,METHODIST HOMES FOR THE AGED,"2,500.00",14/05/2015
Delivery Units,Adults and Communities,Other Agencies - Third Party P,30077390,METHODIST HOMES FOR THE AGED,"2,321.92",26/05/2015
Delivery Units,Adults and Communities,Other Agencies - Third Party P,30077391,METHODIST HOMES FOR THE AGED,-495.80,26/05/2015
Delivery Units,Adults and Communities,Other Agencies - Third Party P,20020389,ML HOMES LTD,"1,433.56",22/05/2015
Delivery Units,Adults and Communities,Other Agencies - Third Party P,30076247,ML HOMES LTD,"1,740.00",18/05/2015
Delivery Units,Adults and Communities,Other Agencies - Third Party P,30076249,ML HOMES LTD,"2,118.36",18/05/2015
Delivery Units,Adults and Communities,Other Agencies - Third Party P,30076250,ML HOMES LTD,"2,118.36",18/05/2015
Delivery Units,Adults and Communities,Other Agencies - Third Party P,30076252,ML HOMES LTD,"1,433.56",18/05/2015
Delivery Units,Adults and Communities,Other Agencies - Third Party P,30076253,ML HOMES LTD,"1,751.16",18/05/2015
Delivery Units,Adults and Communities,Other Agencies - Third Party P,30076254,ML HOMES LTD,"1,751.16",18/05/2015
Delivery Units,Adults and Communities,Other Agencies - Third Party P,30076255,ML HOMES LTD,"2,118.36",18/05/2015
Delivery Units,Adults and Communities,Other Agencies - Third Party P,30076256,ML HOMES LTD,"2,118.36",18/05/2015
Delivery Units,Adults and Communities,Other Agencies - Third Party P,30076258,ML HOMES LTD,"1,955.84",18/05/2015
Delivery Units,Adults and Communities,Other Agencies - Third Party P,30076259,ML HOMES LTD,"1,955.84",18/05/2015
Delivery Units,Adults and Communities,Other Agencies - Third Party P,30076260,ML HOMES LTD,"1,417.24",18/05/2015
Delivery Units,Adults and Communities,Other Agencies - Third Party P,30076261,ML HOMES LTD,"1,417.24",18/05/2015
Delivery Units,Adults and Communities,Other Agencies - Third Party P,30076262,ML HOMES LTD,"1,428.68",18/05/2015
Delivery Units,Adults and Communities,Other Agencies - Third Party P,30076263,ML HOMES LTD,"1,428.68",18/05/2015
Delivery Units,Adults and Communities,Other Agencies - Third Party P,30076264,ML HOMES LTD,"1,765.80",18/05/2015
Delivery Units,Adults and Communities,Other Agencies - Third Party P,30076265,ML HOMES LTD,"1,765.80",18/05/2015
Delivery Units,Adults and Communities,Other Agencies - Third Party P,30076266,ML HOMES LTD,"1,751.16",18/05/2015
Delivery Units,Adults and Communities,Other Agencies - Third Party P,30076267,ML HOMES LTD,"1,751.16",18/05/2015
Delivery Units,Adults and Communities,Other Agencies - Third Party P,30076268,ML HOMES LTD,"1,767.40",18/05/2015
Delivery Units,Adults and Communities,Other Agencies - Third Party P,30076269,ML HOMES LTD,"1,767.40",18/05/2015
Delivery Units,Adults and Communities,Other Agencies - Third Party P,30076277,ML HOMES LTD,"1,780.00",18/05/2015
Delivery Units,Adults and Communities,Other Agencies - Third Party P,30076278,ML HOMES LTD,"1,780.00",18/05/2015
Delivery Units,Adults and Communities,Other Agencies - Third Party P,30077878,NAZARETH HOUSE,"2,001.92",29/05/2015
Delivery Units,Adults and Communities,Other Agencies - Third Party P,30077879,NAZARETH HOUSE,"2,001.92",29/05/2015
Delivery Units,Adults and Communities,Other Agencies - Third Party P,30077880,NAZARETH HOUSE,"2,650.40",29/05/2015
Delivery Units,Adults and Communities,Other Agencies - Third Party P,30077881,NAZARETH HOUSE,"2,184.04",29/05/2015
Delivery Units,Adults and Communities,Other Agencies - Third Party P,30077882,NAZARETH HOUSE,"2,001.92",29/05/2015
Delivery Units,Adults and Communities,Other Agencies - Third Party P,30077883,NAZARETH HOUSE,"2,001.56",29/05/2015
Delivery Units,Adults and Communities,Other Agencies - Third Party P,30075127,NEEM TREE CARE CENTRE,"2,612.14",06/05/2015
Delivery Units,Adults and Communities,Other Agencies - Third Party P,30074789,NEWCENTURY CARE LTD,"2,498.57",05/05/2015
Delivery Units,Adults and Communities,Other Agencies - Third Party P,30074790,NEWCENTURY CARE LTD,"2,244.13",05/05/2015
Delivery Units,Adults and Communities,Other Agencies - Third Party P,30074791,NEWCENTURY CARE LTD,"2,524.76",05/05/2015
Delivery Units,Adults and Communities,Other Agencies - Third Party P,30075569,NEXT STEP SUPPORT LIMITED,"2,000.00",12/05/2015
Delivery Units,Adults and Communities,Other Agencies - Third Party P,30076033,NEXT STEP SUPPORT LIMITED,"2,000.00",15/05/2015
Delivery Units,Adults and Communities,Other Agencies - Third Party P,30076248,NEXT STEP SUPPORT LIMITED,"2,240.00",18/05/2015
Delivery Units,Adults and Communities,Other Agencies - Third Party P,30076987,NIGHTINGALE HOUSE,"2,244.13",22/05/2015
Delivery Units,Adults and Communities,Other Agencies - Third Party P,30076988,NIGHTINGALE HOUSE,"2,442.86",22/05/2015
Delivery Units,Adults and Communities,Other Agencies - Third Party P,30075259,NORWOOD RAVENSWOOD SCHOOLS LTD,"5,540.00",06/05/2015
Delivery Units,Adults and Communities,Other Agencies - Third Party P,30075536,NORWOOD RAVENSWOOD SCHOOLS LTD,820.80,12/05/2015
Delivery Units,Adults and Communities,Other Agencies - Third Party P,30075538,NORWOOD RAVENSWOOD SCHOOLS LTD,608.00,12/05/2015
Delivery Units,Adults and Communities,Other Agencies - Third Party P,30075539,NORWOOD RAVENSWOOD SCHOOLS LTD,"1,520.00",12/05/2015
Delivery Units,Adults and Communities,Other Agencies - Third Party P,30075540,NORWOOD RAVENSWOOD SCHOOLS LTD,729.60,12/05/2015
Delivery Units,Adults and Communities,Other Agencies - Third Party P,30075541,NORWOOD RAVENSWOOD SCHOOLS LTD,304.00,12/05/2015
Delivery Units,Adults and Communities,Other Agencies - Third Party P,30075543,NORWOOD RAVENSWOOD SCHOOLS LTD,790.40,12/05/2015
Delivery Units,Adults and Communities,Other Agencies - Third Party P,30075545,NORWOOD RAVENSWOOD SCHOOLS LTD,486.40,12/05/2015
Delivery Units,Adults and Communities,Other Agencies - Third Party P,30075550,NORWOOD RAVENSWOOD SCHOOLS LTD,"1,021.44",12/05/2015
Delivery Units,Adults and Communities,Other Agencies - Third Party P,30075556,NORWOOD RAVENSWOOD SCHOOLS LTD,"1,021.44",12/05/2015
Delivery Units,Adults and Communities,Other Agencies - Third Party P,30075563,NORWOOD RAVENSWOOD SCHOOLS LTD,364.80,12/05/2015
Delivery Units,Adults and Communities,Other Agencies - Third Party P,30075691,NORWOOD RAVENSWOOD SCHOOLS LTD,330.00,13/05/2015
Delivery Units,Adults and Communities,Other Agencies - Third Party P,30075692,NORWOOD RAVENSWOOD SCHOOLS LTD,330.00,13/05/2015
Delivery Units,Adults and Communities,Other Agencies - Third Party P,30075693,NORWOOD RAVENSWOOD SCHOOLS LTD,660.00,13/05/2015
Delivery Units,Adults and Communities,Other Agencies - Third Party P,30075929,NORWOOD RAVENSWOOD SCHOOLS LTD,"4,748.00",14/05/2015
Delivery Units,Adults and Communities,Other Agencies - Third Party P,30075930,NORWOOD RAVENSWOOD SCHOOLS LTD,-503.53,14/05/2015
Delivery Units,Adults and Communities,Other Agencies - Third Party P,30075931,NORWOOD RAVENSWOOD SCHOOLS LTD,"4,924.00",14/05/2015
Delivery Units,Adults and Communities,Other Agencies - Third Party P,30075932,NORWOOD RAVENSWOOD SCHOOLS LTD,-503.53,14/05/2015
Delivery Units,Adults and Communities,Other Agencies - Third Party P,30075935,NORWOOD RAVENSWOOD SCHOOLS LTD,"7,148.00",14/05/2015
Delivery Units,Adults and Communities,Other Agencies - Third Party P,30075936,NORWOOD RAVENSWOOD SCHOOLS LTD,-321.38,14/05/2015
Delivery Units,Adults and Communities,Other Agencies - Third Party P,30075937,NORWOOD RAVENSWOOD SCHOOLS LTD,"8,224.00",14/05/2015
Delivery Units,Adults and Communities,Other Agencies - Third Party P,30075938,NORWOOD RAVENSWOOD SCHOOLS LTD,-348.96,14/05/2015
Delivery Units,Adults and Communities,Other Agencies - Third Party P,30075941,NORWOOD RAVENSWOOD SCHOOLS LTD,"5,540.00",14/05/2015
Delivery Units,Adults and Communities,Other Agencies - Third Party P,30075694,NORWOOD RAVENSWOOD SERVICES LTD,330.00,13/05/2015
Delivery Units,Adults and Communities,Other Agencies - Third Party P,30076751,OAKHOUSE,"1,621.17",21/05/2015
Delivery Units,Adults and Communities,Other Agencies - Third Party P,30074917,OLYMPUS CARE SERVICES LTD,480.00,05/05/2015
Delivery Units,Adults and Communities,Other Agencies - Third Party P,30077359,OLYMPUS CARE SERVICES LTD,480.00,26/05/2015
Delivery Units,Adults and Communities,Other Agencies - Third Party P,30077360,OLYMPUS CARE SERVICES LTD,480.00,26/05/2015
Delivery Units,Adults and Communities,Other Agencies - Third Party P,30075438,ONE STEP (SUPPORT) LTD,"2,618.20",08/05/2015
Delivery Units,Adults and Communities,Other Agencies - Third Party P,30075529,ONE STEP (SUPPORT) LTD,"1,339.80",12/05/2015
Delivery Units,Adults and Communities,Other Agencies - Third Party P,30075530,ONE STEP (SUPPORT) LTD,"3,395.80",12/05/2015
Delivery Units,Adults and Communities,Other Agencies - Third Party P,30075531,ONE STEP (SUPPORT) LTD,638.00,12/05/2015
Delivery Units,Adults and Communities,Other Agencies - Third Party P,30075532,ONE STEP (SUPPORT) LTD,638.00,12/05/2015
Delivery Units,Adults and Communities,Other Agencies - Third Party P,30075533,ONE STEP (SUPPORT) LTD,956.00,12/05/2015
Delivery Units,Adults and Communities,Other Agencies - Third Party P,30076633,ORIGIN HOUSING LIMITED,"1,324.80",20/05/2015
Delivery Units,Adults and Communities,Other Agencies - Third Party P,30076634,ORIGIN HOUSING LIMITED,"1,728.00",20/05/2015
Delivery Units,Adults and Communities,Other Agencies - Third Party P,30076635,ORIGIN HOUSING LIMITED,"1,728.00",20/05/2015
Delivery Units,Adults and Communities,Other Agencies - Third Party P,30076992,ORIGIN HOUSING LIMITED,"1,065.60",21/05/2015
Delivery Units,Adults and Communities,Other Agencies - Third Party P,30075131,P J CARE LTD,"7,275.00",06/05/2015
Delivery Units,Adults and Communities,Other Agencies - Third Party P,30075132,PARKCARE HOMES (NO2) LIMITED,"5,309.91",06/05/2015
Delivery Units,Adults and Communities,Other Agencies - Third Party P,30075133,PARKCARE HOMES (NO2) LIMITED,-342.21,06/05/2015
Delivery Units,Adults and Communities,Other Agencies - Third Party P,30075134,PARKCARE HOMES (NO2) LIMITED,"4,641.68",06/05/2015
Delivery Units,Adults and Communities,Other Agencies - Third Party P,30075135,PARKCARE HOMES (NO2) LIMITED,-342.21,06/05/2015
Delivery Units,Adults and Communities,Other Agencies - Third Party P,30075144,PARKCARE HOMES (NO2) LIMITED,"4,658.14",06/05/2015
Delivery Units,Adults and Communities,Other Agencies - Third Party P,30075145,PARKCARE HOMES (NO2) LIMITED,-342.21,06/05/2015
Delivery Units,Adults and Communities,Other Agencies - Third Party P,30075146,PARKCARE HOMES (NO2) LIMITED,"4,988.74",06/05/2015
Delivery Units,Adults and Communities,Other Agencies - Third Party P,30075147,PARKCARE HOMES (NO2) LIMITED,-342.21,06/05/2015
Delivery Units,Adults and Communities,Other Agencies - Third Party P,30075148,PARKCARE HOMES (NO2) LIMITED,"4,988.74",06/05/2015
Delivery Units,Adults and Communities,Other Agencies - Third Party P,30075149,PARKCARE HOMES (NO2) LIMITED,-342.21,06/05/2015
Delivery Units,Adults and Communities,Other Agencies - Third Party P,30076757,PAULMAY RESIDENTIAL HOME,"2,184.04",21/05/2015
Delivery Units,Adults and Communities,Other Agencies - Third Party P,30075679,PILLARCARE,"6,554.00",13/05/2015
Delivery Units,Adults and Communities,Other Agencies - Third Party P,30074930,PLATINUM HEALTH RESOURCES LTD,857.18,05/05/2015
Delivery Units,Adults and Communities,Other Agencies - Third Party P,30074932,PLATINUM HEALTH RESOURCES LTD,"4,789.46",05/05/2015
Delivery Units,Adults and Communities,Other Agencies - Third Party P,30074940,PLATINUM HEALTH RESOURCES LTD,"3,767.53",05/05/2015
Delivery Units,Adults and Communities,Other Agencies - Third Party P,30075201,PLATINUM HEALTH RESOURCES LTD,"3,390.78",06/05/2015
Delivery Units,Adults and Communities,Other Agencies - Third Party P,30075845,PLATINUM HEALTH RESOURCES LTD,"3,642.86",14/05/2015
Delivery Units,Adults and Communities,Other Agencies - Third Party P,30075857,PLATINUM HEALTH RESOURCES LTD,"3,642.86",14/05/2015
Delivery Units,Adults and Communities,Other Agencies - Third Party P,30075944,PLATINUM HEALTH RESOURCES LTD,"3,720.00",14/05/2015
Delivery Units,Adults and Communities,Other Agencies - Third Party P,30076257,PLATINUM HEALTH RESOURCES LTD,"1,597.84",18/05/2015
Delivery Units,Adults and Communities,Other Agencies - Third Party P,30074792,PROSPECTS STAFF BUREAU LTD,373.75,05/05/2015
Delivery Units,Adults and Communities,Other Agencies - Third Party P,30075405,PROSPECTS STAFF BUREAU LTD,373.75,08/05/2015
Delivery Units,Adults and Communities,Other Agencies - Third Party P,30075421,PROVIDENCE PROJECTS REHAB GROUP,"2,076.28",08/05/2015
Delivery Units,Adults and Communities,Other Agencies - Third Party P,30075422,PROVIDENCE PROJECTS REHAB GROUP,267.14,08/05/2015
Delivery Units,Adults and Communities,Other Agencies - Third Party P,30075423,PROVIDENCE PROJECTS REHAB GROUP,"1,496.00",08/05/2015
Delivery Units,Adults and Communities,Other Agencies - Third Party P,30075426,PROVIDENCE PROJECTS REHAB GROUP,"1,656.28",08/05/2015
Delivery Units,Adults and Communities,Other Agencies - Third Party P,30075994,PROVIDENCE PROJECTS REHAB GROUP,"1,068.57",15/05/2015
Delivery Units,Adults and Communities,Other Agencies - Third Party P,30075638,PRT BARNET CARERS CENTRE,"2,278.66",13/05/2015
Delivery Units,Adults and Communities,Other Agencies - Third Party P,30077841,PRT BARNET CARERS CENTRE,952.00,29/05/2015
Delivery Units,Adults and Communities,Other Agencies - Third Party P,30077842,PRT BARNET CARERS CENTRE,"1,024.50",29/05/2015
Delivery Units,Adults and Communities,Other Agencies - Third Party P,30074941,QUALITY HOUSING & SOCIAL CARE LTD,"2,785.80",05/05/2015
Delivery Units,Adults and Communities,Other Agencies - Third Party P,30076954,QUALITY HOUSING & SOCIAL CARE LTD,"1,207.18",21/05/2015
Delivery Units,Adults and Communities,Other Agencies - Third Party P,30076805,QUANTUM CARE LIMITED,"2,247.00",21/05/2015
Delivery Units,Adults and Communities,Other Agencies - Third Party P,30077297,QUANTUM CARE LIMITED,"2,828.57",26/05/2015
Delivery Units,Adults and Communities,Other Agencies - Third Party P,30074694,QUEEN ANN CARE,"3,857.14",01/05/2015
Delivery Units,Adults and Communities,Other Agencies - Third Party P,30074873,R.M.B.I,"2,144.91",01/05/2015
Delivery Units,Adults and Communities,Other Agencies - Third Party P,30075047,RAINBOW HOMES LONDON LTD,"3,978.00",06/05/2015
Delivery Units,Adults and Communities,Other Agencies - Third Party P,30075269,REAL LIFE OPTIONS,"5,252.28",06/05/2015
Delivery Units,Adults and Communities,Other Agencies - Third Party P,30075270,REAL LIFE OPTIONS,-319.40,06/05/2015
Delivery Units,Adults and Communities,Other Agencies - Third Party P,30076902,REAL LIFE OPTIONS,"5,252.28",21/05/2015
Delivery Units,Adults and Communities,Other Agencies - Third Party P,30076903,REAL LIFE OPTIONS,-321.20,21/05/2015
Delivery Units,Adults and Communities,Other Agencies - Third Party P,30075155,REDACTED - PERSONAL DATA,"4,392.16",06/05/2015
Delivery Units,Adults and Communities,Other Agencies - Third Party P,30075156,REDACTED - PERSONAL DATA,-319.40,06/05/2015
Delivery Units,Adults and Communities,Other Agencies - Third Party P,30075190,RESIDENTIAL CARE PROVIDERS LTD,"7,800.01",06/05/2015
Delivery Units,Adults and Communities,Other Agencies - Third Party P,30075191,RESIDENTIAL CARE PROVIDERS LTD,-321.38,06/05/2015
Delivery Units,Adults and Communities,Other Agencies - Third Party P,30077872,RESIDENTIAL CARE PROVIDERS LTD,"7,800.00",29/05/2015
Delivery Units,Adults and Communities,Other Agencies - Third Party P,30077873,RESIDENTIAL CARE PROVIDERS LTD,-321.80,29/05/2015
Delivery Units,Adults and Communities,Other Agencies - Third Party P,30074931,ROLAND COMMUNITY CARE LTD,"2,237.14",05/05/2015
Delivery Units,Adults and Communities,Other Agencies - Third Party P,30074958,ROLAND RESIDENTIAL CARE HOMES,"3,918.81",05/05/2015
Delivery Units,Adults and Communities,Other Agencies - Third Party P,30074974,ROLAND RESIDENTIAL CARE HOMES,"3,620.70",05/05/2015
Delivery Units,Adults and Communities,Other Agencies - Third Party P,30074921,ROLAND RESIDENTIAL CARE HOMES LTD,"3,121.20",05/05/2015
Delivery Units,Adults and Communities,Other Agencies - Third Party P,30074952,ROLAND RESIDENTIAL CARE HOMES LTD,"4,061.14",05/05/2015
Delivery Units,Adults and Communities,Other Agencies - Third Party P,30074967,ROLAND RESIDENTIAL CARE HOMES LTD,"3,316.41",05/05/2015
Delivery Units,Adults and Communities,Other Agencies - Third Party P,30075883,ROSEACRES CARE HOME LIMITED,"2,340.04",14/05/2015
Delivery Units,Adults and Communities,Other Agencies - Third Party P,30075884,ROSEACRES CARE HOME LIMITED,"2,340.04",14/05/2015
Delivery Units,Adults and Communities,Other Agencies - Third Party P,30075885,ROSEACRES CARE HOME LIMITED,"2,340.04",14/05/2015
Delivery Units,Adults and Communities,Other Agencies - Third Party P,30075886,ROSEACRES CARE HOME LIMITED,"2,340.04",14/05/2015
Delivery Units,Adults and Communities,Other Agencies - Third Party P,30075887,ROSEACRES CARE HOME LIMITED,"2,340.04",14/05/2015
Delivery Units,Adults and Communities,Other Agencies - Third Party P,30075888,ROSEACRES CARE HOME LIMITED,"2,340.04",14/05/2015
Delivery Units,Adults and Communities,Other Agencies - Third Party P,30075889,ROSEACRES CARE HOME LIMITED,"2,340.04",14/05/2015
Delivery Units,Adults and Communities,Other Agencies - Third Party P,30075890,ROSEACRES CARE HOME LIMITED,"2,340.04",14/05/2015
Delivery Units,Adults and Communities,Other Agencies - Third Party P,30075891,ROSEACRES CARE HOME LIMITED,"2,340.04",14/05/2015
Delivery Units,Adults and Communities,Other Agencies - Third Party P,30075892,ROSEACRES CARE HOME LIMITED,"2,340.04",14/05/2015
Delivery Units,Adults and Communities,Other Agencies - Third Party P,30075893,ROSEACRES CARE HOME LIMITED,"2,340.04",14/05/2015
Delivery Units,Adults and Communities,Other Agencies - Third Party P,30075894,ROSEACRES CARE HOME LIMITED,"2,340.04",14/05/2015
Delivery Units,Adults and Communities,Other Agencies - Third Party P,30075895,ROSEACRES CARE HOME LIMITED,"2,340.04",14/05/2015
Delivery Units,Adults and Communities,Other Agencies - Third Party P,30075896,ROSEACRES CARE HOME LIMITED,"2,340.04",14/05/2015
Delivery Units,Adults and Communities,Other Agencies - Third Party P,30075897,ROSEACRES CARE HOME LIMITED,"2,340.04",14/05/2015
Delivery Units,Adults and Communities,Other Agencies - Third Party P,30075898,ROSEACRES CARE HOME LIMITED,"1,092.02",14/05/2015
Delivery Units,Adults and Communities,Other Agencies - Third Party P,30075899,ROSEACRES CARE HOME LIMITED,"2,340.04",14/05/2015
Delivery Units,Adults and Communities,Other Agencies - Third Party P,30075900,ROSEACRES CARE HOME LIMITED,"2,340.04",14/05/2015
Delivery Units,Adults and Communities,Other Agencies - Third Party P,30075901,ROSEACRES CARE HOME LIMITED,"2,340.04",14/05/2015
Delivery Units,Adults and Communities,Other Agencies - Third Party P,30075219,ROWAN HOUSE,"4,279.63",06/05/2015
Delivery Units,Adults and Communities,Other Agencies - Third Party P,30076960,ROWAN HOUSE,"4,422.28",21/05/2015
Delivery Units,Adults and Communities,Other Agencies - Third Party P,30075206,SANCTUARY CARE LTD,"2,340.04",06/05/2015
Delivery Units,Adults and Communities,Other Agencies - Third Party P,30075118,SAXON COURT,"1,962.96",06/05/2015
Delivery Units,Adults and Communities,Other Agencies - Third Party P,30075119,SAXON COURT,-451.07,06/05/2015
Delivery Units,Adults and Communities,Other Agencies - Third Party P,30075120,SAXON COURT,"1,962.96",06/05/2015
Delivery Units,Adults and Communities,Other Agencies - Third Party P,30075121,SAXON COURT,-451.07,06/05/2015
Delivery Units,Adults and Communities,Other Agencies - Third Party P,30074942,SCIMITAR CARE HOTELS PLC,724.00,21/05/2015
Delivery Units,Adults and Communities,Other Agencies - Third Party P,30075632,SCOPE,276.24,13/05/2015
Delivery Units,Adults and Communities,Other Agencies - Third Party P,30076731,SCOPE,-344.36,21/05/2015
Delivery Units,Adults and Communities,Other Agencies - Third Party P,30076732,SCOPE,"2,903.88",21/05/2015
Delivery Units,Adults and Communities,Other Agencies - Third Party P,30076733,SCOPE,-344.36,21/05/2015
Delivery Units,Adults and Communities,Other Agencies - Third Party P,30076734,SCOPE,"4,000.00",21/05/2015
Delivery Units,Adults and Communities,Other Agencies - Third Party P,30076735,SCOPE,-362.80,21/05/2015
Delivery Units,Adults and Communities,Other Agencies - Third Party P,30077818,SCOPE,"3,259.40",29/05/2015
Delivery Units,Adults and Communities,Other Agencies - Third Party P,30077819,SCOPE,-539.61,29/05/2015
Delivery Units,Adults and Communities,Other Agencies - Third Party P,30076790,SCOTTISH SOCIETY FOR AUTISM,"7,640.03",21/05/2015
Delivery Units,Adults and Communities,Other Agencies - Third Party P,30076791,SCOTTISH SOCIETY FOR AUTISM,-524.08,21/05/2015
Delivery Units,Adults and Communities,Other Agencies - Third Party P,30076792,SCOTTISH SOCIETY FOR AUTISM,"1,548.82",21/05/2015
Delivery Units,Adults and Communities,Other Agencies - Third Party P,30076793,SCOTTISH SOCIETY FOR AUTISM,"5,370.16",21/05/2015
Delivery Units,Adults and Communities,Other Agencies - Third Party P,30076794,SCOTTISH SOCIETY FOR AUTISM,-372.32,21/05/2015
Delivery Units,Adults and Communities,Other Agencies - Third Party P,30076795,SCOTTISH SOCIETY FOR AUTISM,"5,783.64",21/05/2015
Delivery Units,Adults and Communities,Other Agencies - Third Party P,30076796,SCOTTISH SOCIETY FOR AUTISM,-402.00,21/05/2015
Delivery Units,Adults and Communities,Other Agencies - Third Party P,30076797,SCOTTISH SOCIETY FOR AUTISM,"1,172.08",21/05/2015
Delivery Units,Adults and Communities,Other Agencies - Third Party P,30077838,SCOTTISH SOCIETY FOR AUTISM,"1,088.36",29/05/2015
Delivery Units,Adults and Communities,Other Agencies - Third Party P,30075066,SELF UNLIMITED-LONDON REGION,"2,120.72",06/05/2015
Delivery Units,Adults and Communities,Other Agencies - Third Party P,30075067,SELF UNLIMITED-LONDON REGION,"4,221.36",06/05/2015
Delivery Units,Adults and Communities,Other Agencies - Third Party P,30075068,SELF UNLIMITED-LONDON REGION,"3,947.12",06/05/2015
Delivery Units,Adults and Communities,Other Agencies - Third Party P,30075069,SELF UNLIMITED-LONDON REGION,"1,781.44",06/05/2015
Delivery Units,Adults and Communities,Other Agencies - Third Party P,30075070,SELF UNLIMITED-LONDON REGION,"4,025.56",06/05/2015
Delivery Units,Adults and Communities,Other Agencies - Third Party P,30075071,SELF UNLIMITED-LONDON REGION,"3,279.56",06/05/2015
Delivery Units,Adults and Communities,Other Agencies - Third Party P,30075072,SELF UNLIMITED-LONDON REGION,"1,459.20",06/05/2015
Delivery Units,Adults and Communities,Other Agencies - Third Party P,30075073,SELF UNLIMITED-LONDON REGION,"6,157.84",06/05/2015
Delivery Units,Adults and Communities,Other Agencies - Third Party P,30075074,SELF UNLIMITED-LONDON REGION,"3,240.64",06/05/2015
Delivery Units,Adults and Communities,Other Agencies - Third Party P,30075075,SELF UNLIMITED-LONDON REGION,"2,783.44",06/05/2015
Delivery Units,Adults and Communities,Other Agencies - Third Party P,30075076,SELF UNLIMITED-LONDON REGION,"2,342.64",06/05/2015
Delivery Units,Adults and Communities,Other Agencies - Third Party P,30075077,SELF UNLIMITED-LONDON REGION,"2,145.04",06/05/2015
Delivery Units,Adults and Communities,Other Agencies - Third Party P,30075078,SELF UNLIMITED-LONDON REGION,"3,432.76",06/05/2015
Delivery Units,Adults and Communities,Other Agencies - Third Party P,30075079,SELF UNLIMITED-LONDON REGION,"4,496.16",06/05/2015
Delivery Units,Adults and Communities,Other Agencies - Third Party P,30075080,SELF UNLIMITED-LONDON REGION,"10,929.04",06/05/2015
Delivery Units,Adults and Communities,Other Agencies - Third Party P,30075081,SELF UNLIMITED-LONDON REGION,"3,947.12",06/05/2015
Delivery Units,Adults and Communities,Other Agencies - Third Party P,30075082,SELF UNLIMITED-LONDON REGION,"3,149.44",06/05/2015
Delivery Units,Adults and Communities,Other Agencies - Third Party P,30075083,SELF UNLIMITED-LONDON REGION,"1,094.40",06/05/2015
Delivery Units,Adults and Communities,Other Agencies - Third Party P,30075084,SELF UNLIMITED-LONDON REGION,"4,859.12",06/05/2015
Delivery Units,Adults and Communities,Other Agencies - Third Party P,30075085,SELF UNLIMITED-LONDON REGION,"1,914.00",06/05/2015
Delivery Units,Adults and Communities,Other Agencies - Third Party P,30075086,SELF UNLIMITED-LONDON REGION,"2,926.32",06/05/2015
Delivery Units,Adults and Communities,Other Agencies - Third Party P,30075087,SELF UNLIMITED-LONDON REGION,"2,110.96",06/05/2015
Delivery Units,Adults and Communities,Other Agencies - Third Party P,30075521,SELF UNLIMITED-LONDON REGION,"1,921.28",12/05/2015
Delivery Units,Adults and Communities,Other Agencies - Third Party P,30075522,SELF UNLIMITED-LONDON REGION,"1,520.00",12/05/2015
Delivery Units,Adults and Communities,Other Agencies - Third Party P,30075523,SELF UNLIMITED-LONDON REGION,"1,690.24",12/05/2015
Delivery Units,Adults and Communities,Other Agencies - Third Party P,30075524,SELF UNLIMITED-LONDON REGION,"1,088.32",12/05/2015
Delivery Units,Adults and Communities,Other Agencies - Third Party P,30075525,SELF UNLIMITED-LONDON REGION,"1,428.80",12/05/2015
Delivery Units,Adults and Communities,Other Agencies - Third Party P,30075526,SELF UNLIMITED-LONDON REGION,"1,921.28",12/05/2015
Delivery Units,Adults and Communities,Other Agencies - Third Party P,30075527,SELF UNLIMITED-LONDON REGION,"1,177.20",12/05/2015
Delivery Units,Adults and Communities,Other Agencies - Third Party P,30075805,SELF UNLIMITED-LONDON REGION,"2,217.26",14/05/2015
Delivery Units,Adults and Communities,Other Agencies - Third Party P,30075806,SELF UNLIMITED-LONDON REGION,-539.61,14/05/2015
Delivery Units,Adults and Communities,Other Agencies - Third Party P,30076606,SELF UNLIMITED-LONDON REGION,"1,276.80",20/05/2015
Delivery Units,Adults and Communities,Other Agencies - Third Party P,30076607,SELF UNLIMITED-LONDON REGION,"3,920.00",20/05/2015
Delivery Units,Adults and Communities,Other Agencies - Third Party P,30076608,SELF UNLIMITED-LONDON REGION,"3,920.00",20/05/2015
Delivery Units,Adults and Communities,Other Agencies - Third Party P,30076609,SELF UNLIMITED-LONDON REGION,"3,920.00",20/05/2015
Delivery Units,Adults and Communities,Other Agencies - Third Party P,30076904,SELF UNLIMITED-LONDON REGION,"2,850.98",21/05/2015
Delivery Units,Adults and Communities,Other Agencies - Third Party P,30074979,SENSE CAS FINANCE TEAM,"2,413.60",07/05/2015
Delivery Units,Adults and Communities,Other Agencies - Third Party P,30074980,SENSE CAS FINANCE TEAM,"3,866.28",07/05/2015
Delivery Units,Adults and Communities,Other Agencies - Third Party P,30075903,SENSE CAS FINANCE TEAM,"7,942.20",14/05/2015
Delivery Units,Adults and Communities,Other Agencies - Third Party P,30075904,SENSE CAS FINANCE TEAM,-539.61,14/05/2015
Delivery Units,Adults and Communities,Other Agencies - Third Party P,30075905,SENSE CAS FINANCE TEAM,"6,511.68",14/05/2015
Delivery Units,Adults and Communities,Other Agencies - Third Party P,30075906,SENSE CAS FINANCE TEAM,-400.00,14/05/2015
Delivery Units,Adults and Communities,Other Agencies - Third Party P,30075907,SENSE CAS FINANCE TEAM,"6,773.28",14/05/2015
Delivery Units,Adults and Communities,Other Agencies - Third Party P,30075908,SENSE CAS FINANCE TEAM,-321.36,14/05/2015
Delivery Units,Adults and Communities,Other Agencies - Third Party P,30075909,SENSE CAS FINANCE TEAM,"4,754.52",14/05/2015
Delivery Units,Adults and Communities,Other Agencies - Third Party P,30075910,SENSE CAS FINANCE TEAM,-400.00,14/05/2015
Delivery Units,Adults and Communities,Other Agencies - Third Party P,30075062,SEVA CARE HOME,"2,144.91",06/05/2015
Delivery Units,Adults and Communities,Other Agencies - Third Party P,30075063,SEVA CARE HOME,"2,144.91",06/05/2015
Delivery Units,Adults and Communities,Other Agencies - Third Party P,30075157,SEYMOUR RESIDENTIAL CARE HOME,"2,340.04",06/05/2015
Delivery Units,Adults and Communities,Other Agencies - Third Party P,30075528,SGSL LTD,"2,707.60",12/05/2015
Delivery Units,Adults and Communities,Other Agencies - Third Party P,30075567,SGSL LTD,"2,399.88",12/05/2015
Delivery Units,Adults and Communities,Other Agencies - Third Party P,30075568,SGSL LTD,"2,720.00",12/05/2015
Delivery Units,Adults and Communities,Other Agencies - Third Party P,30076021,SGSL LTD,"2,707.60",15/05/2015
Delivery Units,Adults and Communities,Other Agencies - Third Party P,30076031,SGSL LTD,"2,399.88",15/05/2015
Delivery Units,Adults and Communities,Other Agencies - Third Party P,30076032,SGSL LTD,"2,720.00",15/05/2015
Delivery Units,Adults and Communities,Other Agencies - Third Party P,30076082,SHAW TRUST LIMITED,320.00,18/05/2015
Delivery Units,Adults and Communities,Other Agencies - Third Party P,30075433,SHINE PARTNERSHIPS LTD,"2,640.00",08/05/2015
Delivery Units,Adults and Communities,Other Agencies - Third Party P,30075436,SHINE PARTNERSHIPS LTD,"2,640.00",08/05/2015
Delivery Units,Adults and Communities,Other Agencies - Third Party P,30074862,SIMEON CARE,"3,097.16",05/05/2015
Delivery Units,Adults and Communities,Other Agencies - Third Party P,30075136,SONESTA NURSING HOME LTD.,"2,244.13",06/05/2015
Delivery Units,Adults and Communities,Other Agencies - Third Party P,30075137,SONESTA NURSING HOME LTD.,"2,244.13",06/05/2015
Delivery Units,Adults and Communities,Other Agencies - Third Party P,30075138,SONESTA NURSING HOME LTD.,"2,041.67",06/05/2015
Delivery Units,Adults and Communities,Other Agencies - Third Party P,30075139,SONESTA NURSING HOME LTD.,"2,487.77",06/05/2015
Delivery Units,Adults and Communities,Other Agencies - Third Party P,30074868,SPRINGDENE,"2,367.07",05/05/2015
Delivery Units,Adults and Communities,Other Agencies - Third Party P,30074869,SPRINGDENE,-617.87,05/05/2015
Delivery Units,Adults and Communities,Other Agencies - Third Party P,30076788,SPRINGDENE,"3,501.00",21/05/2015
Delivery Units,Adults and Communities,Other Agencies - Third Party P,30077844,SPRINGDENE,580.51,29/05/2015
Delivery Units,Adults and Communities,Other Agencies - Third Party P,30074876,SPRINGVIEW,"3,100.00",05/05/2015
Delivery Units,Adults and Communities,Other Agencies - Third Party P,30076871,SPRINGVIEW,"3,000.00",21/05/2015
Delivery Units,Adults and Communities,Other Agencies - Third Party P,30074844,ST DOMINIC'S NURSING HOME,"2,094.52",05/05/2015
Delivery Units,Adults and Communities,Other Agencies - Third Party P,30075988,ST JOSEPH'S PASTORAL CENTRE,314.00,15/05/2015
Delivery Units,Adults and Communities,Other Agencies - Third Party P,30075989,ST JOSEPH'S PASTORAL CENTRE,312.00,15/05/2015
Delivery Units,Adults and Communities,Other Agencies - Third Party P,30075990,ST JOSEPH'S PASTORAL CENTRE,320.00,15/05/2015
Delivery Units,Adults and Communities,Other Agencies - Third Party P,30076364,ST JOSEPH'S PASTORAL CENTRE,456.00,20/05/2015
Delivery Units,Adults and Communities,Other Agencies - Third Party P,30076365,ST JOSEPH'S PASTORAL CENTRE,342.00,20/05/2015
Delivery Units,Adults and Communities,Other Agencies - Third Party P,30076366,ST JOSEPH'S PASTORAL CENTRE,456.00,20/05/2015
Delivery Units,Adults and Communities,Other Agencies - Third Party P,30076768,ST RAPHAELS HOME,"2,384.29",21/05/2015
Delivery Units,Adults and Communities,Other Agencies - Third Party P,30076769,ST RAPHAELS HOME,-539.61,21/05/2015
Delivery Units,Adults and Communities,Other Agencies - Third Party P,30075241,ST VINCENTS NURSING HOME,"2,474.71",06/05/2015
Delivery Units,Adults and Communities,Other Agencies - Third Party P,30075242,ST VINCENTS NURSING HOME,-572.02,06/05/2015
Delivery Units,Adults and Communities,Other Agencies - Third Party P,30075126,ST. AUDREYS RETIREMENT HOME,"2,340.04",06/05/2015
Delivery Units,Adults and Communities,Other Agencies - Third Party P,30074914,ST. MARK'S DAY SERVICE,"1,999.08",07/05/2015
Delivery Units,Adults and Communities,Other Agencies - Third Party P,30076740,STALLCOMBE HOUSE FARM TRUST,"6,472.00",21/05/2015
Delivery Units,Adults and Communities,Other Agencies - Third Party P,30075942,STAMFORD NURSING CENTRE,"2,931.90",18/05/2015
Delivery Units,Adults and Communities,Other Agencies - Third Party P,30075142,STOUR VALLEY CARE GROUP,"5,485.72",06/05/2015
Delivery Units,Adults and Communities,Other Agencies - Third Party P,30075739,SUNRIDGE HOUSING ASSOCIATION LTD,-563.12,14/05/2015
Delivery Units,Adults and Communities,Other Agencies - Third Party P,30075801,SWANBOROUGH HOUSE,"3,722.44",14/05/2015
Delivery Units,Adults and Communities,Other Agencies - Third Party P,30074985,SYDMAR LODGE,"2,571.43",05/05/2015
Delivery Units,Adults and Communities,Other Agencies - Third Party P,30074986,SYDMAR LODGE,"2,785.71",05/05/2015
Delivery Units,Adults and Communities,Other Agencies - Third Party P,30074987,SYDMAR LODGE,"2,571.43",05/05/2015
Delivery Units,Adults and Communities,Other Agencies - Third Party P,30074988,SYDMAR LODGE,"2,340.04",05/05/2015
Delivery Units,Adults and Communities,Other Agencies - Third Party P,30077896,SYDMAR LODGE,"11,778.21",29/05/2015
Delivery Units,Adults and Communities,Other Agencies - Third Party P,30077897,SYDMAR LODGE,"-4,550.24",29/05/2015
Delivery Units,Adults and Communities,Other Agencies - Third Party P,30077898,SYDMAR LODGE,"2,657.14",29/05/2015
Delivery Units,Adults and Communities,Other Agencies - Third Party P,30077899,SYDMAR LODGE,"2,878.57",29/05/2015
Delivery Units,Adults and Communities,Other Agencies - Third Party P,30077900,SYDMAR LODGE,"2,657.14",29/05/2015
Delivery Units,Adults and Communities,Other Agencies - Third Party P,30077901,SYDMAR LODGE,"2,418.04",29/05/2015
Delivery Units,Adults and Communities,Other Agencies - Third Party P,30077903,SYDMAR LODGE,"1,355.23",29/05/2015
Delivery Units,Adults and Communities,Other Agencies - Third Party P,30075843,TANSLEY HOUSE RESIDENTIAL HOME,"6,362.61",14/05/2015
Delivery Units,Adults and Communities,Other Agencies - Third Party P,30075266,TENTERDEN HOUSE,"3,834.60",06/05/2015
Delivery Units,Adults and Communities,Other Agencies - Third Party P,30074679,THE BARNETGROUP LIMITED,"3,600.00",01/05/2015
Delivery Units,Adults and Communities,Other Agencies - Third Party P,30075995,THE BARNETGROUP LIMITED,440.00,15/05/2015
Delivery Units,Adults and Communities,Other Agencies - Third Party P,30075996,THE BARNETGROUP LIMITED,440.00,15/05/2015
Delivery Units,Adults and Communities,Other Agencies - Third Party P,30076092,THE BARNETGROUP LIMITED,881.60,18/05/2015
Delivery Units,Adults and Communities,Other Agencies - Third Party P,30074845,THE BEECHES UK LTD,"13,746.52",05/05/2015
Delivery Units,Adults and Communities,Other Agencies - Third Party P,30075048,THE CAMDEN SOCIETY,458.16,06/05/2015
Delivery Units,Adults and Communities,Other Agencies - Third Party P,30075724,THE CAMDEN SOCIETY,458.16,19/05/2015
Delivery Units,Adults and Communities,Other Agencies - Third Party P,30074978,THE CHRISTIAN CARE TRUST,"2,184.04",05/05/2015
Delivery Units,Adults and Communities,Other Agencies - Third Party P,30075220,THE CHRISTIAN CARE TRUST,"2,001.92",06/05/2015
Delivery Units,Adults and Communities,Other Agencies - Third Party P,30074960,THE DISABILITIES TRUST,"10,682.40",05/05/2015
Delivery Units,Adults and Communities,Other Agencies - Third Party P,30074961,THE DISABILITIES TRUST,"15,407.74",05/05/2015
Delivery Units,Adults and Communities,Other Agencies - Third Party P,30074962,THE DISABILITIES TRUST,"17,592.87",05/05/2015
Delivery Units,Adults and Communities,Other Agencies - Third Party P,30077856,THE DISABILITIES TRUST,-723.81,29/05/2015
Delivery Units,Adults and Communities,Other Agencies - Third Party P,30077871,THE DISABILITIES TRUST,"1,447.62",29/05/2015
Delivery Units,Adults and Communities,Other Agencies - Third Party P,30074686,THE EXTRA MILE CARE CO LTD,521.02,01/05/2015
Delivery Units,Adults and Communities,Other Agencies - Third Party P,30074687,THE EXTRA MILE CARE CO LTD,550.12,01/05/2015
Delivery Units,Adults and Communities,Other Agencies - Third Party P,30074688,THE EXTRA MILE CARE CO LTD,997.60,01/05/2015
Delivery Units,Adults and Communities,Other Agencies - Third Party P,30074689,THE EXTRA MILE CARE CO LTD,645.48,01/05/2015
Delivery Units,Adults and Communities,Other Agencies - Third Party P,30074691,THE EXTRA MILE CARE CO LTD,"2,100.68",01/05/2015
Delivery Units,Adults and Communities,Other Agencies - Third Party P,30074882,THE EXTRA MILE CARE CO LTD,"1,039.48",05/05/2015
Delivery Units,Adults and Communities,Other Agencies - Third Party P,30074884,THE EXTRA MILE CARE CO LTD,674.34,05/05/2015
Delivery Units,Adults and Communities,Other Agencies - Third Party P,30075065,THE EXTRA MILE CARE CO LTD,690.20,06/05/2015
Delivery Units,Adults and Communities,Other Agencies - Third Party P,30075510,THE EXTRA MILE CARE CO LTD,444.64,12/05/2015
Delivery Units,Adults and Communities,Other Agencies - Third Party P,30075511,THE EXTRA MILE CARE CO LTD,743.52,12/05/2015
Delivery Units,Adults and Communities,Other Agencies - Third Party P,30075513,THE EXTRA MILE CARE CO LTD,"2,401.38",12/05/2015
Delivery Units,Adults and Communities,Other Agencies - Third Party P,30075515,THE EXTRA MILE CARE CO LTD,285.66,12/05/2015
Delivery Units,Adults and Communities,Other Agencies - Third Party P,30075516,THE EXTRA MILE CARE CO LTD,389.06,12/05/2015
Delivery Units,Adults and Communities,Other Agencies - Third Party P,30075517,THE EXTRA MILE CARE CO LTD,767.34,12/05/2015
Delivery Units,Adults and Communities,Other Agencies - Third Party P,30075519,THE EXTRA MILE CARE CO LTD,"2,417.26",12/05/2015
Delivery Units,Adults and Communities,Other Agencies - Third Party P,30075520,THE EXTRA MILE CARE CO LTD,"1,052.58",12/05/2015
Delivery Units,Adults and Communities,Other Agencies - Third Party P,30075662,THE EXTRA MILE CARE CO LTD,320.10,13/05/2015
Delivery Units,Adults and Communities,Other Agencies - Third Party P,30075665,THE EXTRA MILE CARE CO LTD,391.52,13/05/2015
Delivery Units,Adults and Communities,Other Agencies - Third Party P,30075666,THE EXTRA MILE CARE CO LTD,613.64,13/05/2015
Delivery Units,Adults and Communities,Other Agencies - Third Party P,30075671,THE EXTRA MILE CARE CO LTD,343.72,13/05/2015
Delivery Units,Adults and Communities,Other Agencies - Third Party P,30075672,THE EXTRA MILE CARE CO LTD,306.82,13/05/2015
Delivery Units,Adults and Communities,Other Agencies - Third Party P,30075673,THE EXTRA MILE CARE CO LTD,952.32,13/05/2015
Delivery Units,Adults and Communities,Other Agencies - Third Party P,30075675,THE EXTRA MILE CARE CO LTD,463.00,13/05/2015
Delivery Units,Adults and Communities,Other Agencies - Third Party P,30075678,THE EXTRA MILE CARE CO LTD,317.28,13/05/2015
Delivery Units,Adults and Communities,Other Agencies - Third Party P,30075751,THE EXTRA MILE CARE CO LTD,814.80,14/05/2015
Delivery Units,Adults and Communities,Other Agencies - Third Party P,30075752,THE EXTRA MILE CARE CO LTD,677.24,14/05/2015
Delivery Units,Adults and Communities,Other Agencies - Third Party P,30075753,THE EXTRA MILE CARE CO LTD,394.02,14/05/2015
Delivery Units,Adults and Communities,Other Agencies - Third Party P,30075754,THE EXTRA MILE CARE CO LTD,306.82,14/05/2015
Delivery Units,Adults and Communities,Other Agencies - Third Party P,30075755,THE EXTRA MILE CARE CO LTD,306.82,14/05/2015
Delivery Units,Adults and Communities,Other Agencies - Third Party P,30075756,THE EXTRA MILE CARE CO LTD,843.90,14/05/2015
Delivery Units,Adults and Communities,Other Agencies - Third Party P,30075757,THE EXTRA MILE CARE CO LTD,298.90,14/05/2015
Delivery Units,Adults and Communities,Other Agencies - Third Party P,30075758,THE EXTRA MILE CARE CO LTD,"1,150.72",14/05/2015
Delivery Units,Adults and Communities,Other Agencies - Third Party P,30075759,THE EXTRA MILE CARE CO LTD,896.78,14/05/2015
Delivery Units,Adults and Communities,Other Agencies - Third Party P,30075762,THE EXTRA MILE CARE CO LTD,388.82,14/05/2015
Delivery Units,Adults and Communities,Other Agencies - Third Party P,30075763,THE EXTRA MILE CARE CO LTD,537.08,14/05/2015
Delivery Units,Adults and Communities,Other Agencies - Third Party P,30075764,THE EXTRA MILE CARE CO LTD,767.34,14/05/2015
Delivery Units,Adults and Communities,Other Agencies - Third Party P,30075766,THE EXTRA MILE CARE CO LTD,425.80,14/05/2015
Delivery Units,Adults and Communities,Other Agencies - Third Party P,30075767,THE EXTRA MILE CARE CO LTD,956.39,14/05/2015
Delivery Units,Adults and Communities,Other Agencies - Third Party P,30075768,THE EXTRA MILE CARE CO LTD,383.38,14/05/2015
Delivery Units,Adults and Communities,Other Agencies - Third Party P,30075769,THE EXTRA MILE CARE CO LTD,941.58,14/05/2015
Delivery Units,Adults and Communities,Other Agencies - Third Party P,30075770,THE EXTRA MILE CARE CO LTD,"1,918.64",14/05/2015
Delivery Units,Adults and Communities,Other Agencies - Third Party P,30075771,THE EXTRA MILE CARE CO LTD,997.60,14/05/2015
Delivery Units,Adults and Communities,Other Agencies - Third Party P,30075772,THE EXTRA MILE CARE CO LTD,767.34,14/05/2015
Delivery Units,Adults and Communities,Other Agencies - Third Party P,30075773,THE EXTRA MILE CARE CO LTD,296.24,14/05/2015
Delivery Units,Adults and Communities,Other Agencies - Third Party P,30075774,THE EXTRA MILE CARE CO LTD,613.64,14/05/2015
Delivery Units,Adults and Communities,Other Agencies - Third Party P,30075775,THE EXTRA MILE CARE CO LTD,"1,074.16",14/05/2015
Delivery Units,Adults and Communities,Other Agencies - Third Party P,30075776,THE EXTRA MILE CARE CO LTD,767.34,14/05/2015
Delivery Units,Adults and Communities,Other Agencies - Third Party P,30075779,THE EXTRA MILE CARE CO LTD,542.18,14/05/2015
Delivery Units,Adults and Communities,Other Agencies - Third Party P,30075780,THE EXTRA MILE CARE CO LTD,359.70,14/05/2015
Delivery Units,Adults and Communities,Other Agencies - Third Party P,30075781,THE EXTRA MILE CARE CO LTD,537.08,14/05/2015
Delivery Units,Adults and Communities,Other Agencies - Third Party P,30075782,THE EXTRA MILE CARE CO LTD,997.60,14/05/2015
Delivery Units,Adults and Communities,Other Agencies - Third Party P,30075784,THE EXTRA MILE CARE CO LTD,306.82,14/05/2015
Delivery Units,Adults and Communities,Other Agencies - Third Party P,30075785,THE EXTRA MILE CARE CO LTD,575.07,14/05/2015
Delivery Units,Adults and Communities,Other Agencies - Third Party P,30075786,THE EXTRA MILE CARE CO LTD,"1,764.36",14/05/2015
Delivery Units,Adults and Communities,Other Agencies - Third Party P,30075787,THE EXTRA MILE CARE CO LTD,460.52,14/05/2015
Delivery Units,Adults and Communities,Other Agencies - Third Party P,30075788,THE EXTRA MILE CARE CO LTD,"1,288.54",14/05/2015
Delivery Units,Adults and Communities,Other Agencies - Third Party P,30075789,THE EXTRA MILE CARE CO LTD,722.36,14/05/2015
Delivery Units,Adults and Communities,Other Agencies - Third Party P,30075790,THE EXTRA MILE CARE CO LTD,648.00,14/05/2015
Delivery Units,Adults and Communities,Other Agencies - Third Party P,30075791,THE EXTRA MILE CARE CO LTD,"1,002.60",14/05/2015
Delivery Units,Adults and Communities,Other Agencies - Third Party P,30075792,THE EXTRA MILE CARE CO LTD,285.66,14/05/2015
Delivery Units,Adults and Communities,Other Agencies - Third Party P,30075794,THE EXTRA MILE CARE CO LTD,621.58,14/05/2015
Delivery Units,Adults and Communities,Other Agencies - Third Party P,30075795,THE EXTRA MILE CARE CO LTD,912.64,14/05/2015
Delivery Units,Adults and Communities,Other Agencies - Third Party P,30075796,THE EXTRA MILE CARE CO LTD,251.18,14/05/2015
Delivery Units,Adults and Communities,Other Agencies - Third Party P,30075797,THE EXTRA MILE CARE CO LTD,526.50,14/05/2015
Delivery Units,Adults and Communities,Other Agencies - Third Party P,30075798,THE EXTRA MILE CARE CO LTD,"1,958.16",14/05/2015
Delivery Units,Adults and Communities,Other Agencies - Third Party P,30075799,THE EXTRA MILE CARE CO LTD,"1,656.75",14/05/2015
Delivery Units,Adults and Communities,Other Agencies - Third Party P,30076005,THE EXTRA MILE CARE CO LTD,306.82,15/05/2015
Delivery Units,Adults and Communities,Other Agencies - Third Party P,30076008,THE EXTRA MILE CARE CO LTD,"1,534.68",15/05/2015
Delivery Units,Adults and Communities,Other Agencies - Third Party P,30076009,THE EXTRA MILE CARE CO LTD,820.22,15/05/2015
Delivery Units,Adults and Communities,Other Agencies - Third Party P,30076010,THE EXTRA MILE CARE CO LTD,597.76,15/05/2015
Delivery Units,Adults and Communities,Other Agencies - Third Party P,30076011,THE EXTRA MILE CARE CO LTD,613.64,15/05/2015
Delivery Units,Adults and Communities,Other Agencies - Third Party P,30076012,THE EXTRA MILE CARE CO LTD,306.82,15/05/2015
Delivery Units,Adults and Communities,Other Agencies - Third Party P,30076013,THE EXTRA MILE CARE CO LTD,889.28,15/05/2015
Delivery Units,Adults and Communities,Other Agencies - Third Party P,30076014,THE EXTRA MILE CARE CO LTD,396.60,15/05/2015
Delivery Units,Adults and Communities,Other Agencies - Third Party P,30076015,THE EXTRA MILE CARE CO LTD,983.98,15/05/2015
Delivery Units,Adults and Communities,Other Agencies - Third Party P,30076016,THE EXTRA MILE CARE CO LTD,383.38,15/05/2015
Delivery Units,Adults and Communities,Other Agencies - Third Party P,30076017,THE EXTRA MILE CARE CO LTD,613.64,15/05/2015
Delivery Units,Adults and Communities,Other Agencies - Third Party P,30076018,THE EXTRA MILE CARE CO LTD,866.49,15/05/2015
Delivery Units,Adults and Communities,Other Agencies - Third Party P,30076019,THE EXTRA MILE CARE CO LTD,317.60,15/05/2015
Delivery Units,Adults and Communities,Other Agencies - Third Party P,30076209,THE EXTRA MILE CARE CO LTD,306.82,18/05/2015
Delivery Units,Adults and Communities,Other Agencies - Third Party P,30076210,THE EXTRA MILE CARE CO LTD,555.24,18/05/2015
Delivery Units,Adults and Communities,Other Agencies - Third Party P,30076212,THE EXTRA MILE CARE CO LTD,264.40,18/05/2015
Delivery Units,Adults and Communities,Other Agencies - Third Party P,30076213,THE EXTRA MILE CARE CO LTD,306.82,18/05/2015
Delivery Units,Adults and Communities,Other Agencies - Third Party P,30076214,THE EXTRA MILE CARE CO LTD,767.34,18/05/2015
Delivery Units,Adults and Communities,Other Agencies - Third Party P,30076215,THE EXTRA MILE CARE CO LTD,766.76,18/05/2015
Delivery Units,Adults and Communities,Other Agencies - Third Party P,30076217,THE EXTRA MILE CARE CO LTD,515.58,18/05/2015
Delivery Units,Adults and Communities,Other Agencies - Third Party P,30076218,THE EXTRA MILE CARE CO LTD,767.34,18/05/2015
Delivery Units,Adults and Communities,Other Agencies - Third Party P,30076219,THE EXTRA MILE CARE CO LTD,537.08,18/05/2015
Delivery Units,Adults and Communities,Other Agencies - Third Party P,30076220,THE EXTRA MILE CARE CO LTD,587.12,18/05/2015
Delivery Units,Adults and Communities,Other Agencies - Third Party P,30076221,THE EXTRA MILE CARE CO LTD,951.84,18/05/2015
Delivery Units,Adults and Communities,Other Agencies - Third Party P,30076222,THE EXTRA MILE CARE CO LTD,"1,797.92",18/05/2015
Delivery Units,Adults and Communities,Other Agencies - Third Party P,30076223,THE EXTRA MILE CARE CO LTD,"1,035.63",18/05/2015
Delivery Units,Adults and Communities,Other Agencies - Third Party P,30076224,THE EXTRA MILE CARE CO LTD,383.38,18/05/2015
Delivery Units,Adults and Communities,Other Agencies - Third Party P,30076225,THE EXTRA MILE CARE CO LTD,661.36,18/05/2015
Delivery Units,Adults and Communities,Other Agencies - Third Party P,30076226,THE EXTRA MILE CARE CO LTD,843.90,18/05/2015
Delivery Units,Adults and Communities,Other Agencies - Third Party P,30076227,THE EXTRA MILE CARE CO LTD,"1,208.54",18/05/2015
Delivery Units,Adults and Communities,Other Agencies - Third Party P,30076228,THE EXTRA MILE CARE CO LTD,"1,764.94",18/05/2015
Delivery Units,Adults and Communities,Other Agencies - Third Party P,30076229,THE EXTRA MILE CARE CO LTD,613.64,18/05/2015
Delivery Units,Adults and Communities,Other Agencies - Third Party P,30076538,THE EXTRA MILE CARE CO LTD,460.36,20/05/2015
Delivery Units,Adults and Communities,Other Agencies - Third Party P,30076539,THE EXTRA MILE CARE CO LTD,766.76,20/05/2015
Delivery Units,Adults and Communities,Other Agencies - Third Party P,30076540,THE EXTRA MILE CARE CO LTD,"1,047.42",20/05/2015
Delivery Units,Adults and Communities,Other Agencies - Third Party P,30076541,THE EXTRA MILE CARE CO LTD,383.38,20/05/2015
Delivery Units,Adults and Communities,Other Agencies - Third Party P,30076542,THE EXTRA MILE CARE CO LTD,843.90,20/05/2015
Delivery Units,Adults and Communities,Other Agencies - Third Party P,30076543,THE EXTRA MILE CARE CO LTD,"1,457.54",20/05/2015
Delivery Units,Adults and Communities,Other Agencies - Third Party P,30076544,THE EXTRA MILE CARE CO LTD,862.36,20/05/2015
Delivery Units,Adults and Communities,Other Agencies - Third Party P,30076545,THE EXTRA MILE CARE CO LTD,788.08,20/05/2015
Delivery Units,Adults and Communities,Other Agencies - Third Party P,30076546,THE EXTRA MILE CARE CO LTD,690.20,20/05/2015
Delivery Units,Adults and Communities,Other Agencies - Third Party P,30076547,THE EXTRA MILE CARE CO LTD,700.66,20/05/2015
Delivery Units,Adults and Communities,Other Agencies - Third Party P,30076550,THE EXTRA MILE CARE CO LTD,"2,607.68",20/05/2015
Delivery Units,Adults and Communities,Other Agencies - Third Party P,30076551,THE EXTRA MILE CARE CO LTD,275.06,20/05/2015
Delivery Units,Adults and Communities,Other Agencies - Third Party P,30076552,THE EXTRA MILE CARE CO LTD,494.84,20/05/2015
Delivery Units,Adults and Communities,Other Agencies - Third Party P,30076553,THE EXTRA MILE CARE CO LTD,444.36,20/05/2015
Delivery Units,Adults and Communities,Other Agencies - Third Party P,30076554,THE EXTRA MILE CARE CO LTD,436.70,20/05/2015
Delivery Units,Adults and Communities,Other Agencies - Third Party P,30076556,THE EXTRA MILE CARE CO LTD,666.40,20/05/2015
Delivery Units,Adults and Communities,Other Agencies - Third Party P,30076558,THE EXTRA MILE CARE CO LTD,306.82,20/05/2015
Delivery Units,Adults and Communities,Other Agencies - Third Party P,30076559,THE EXTRA MILE CARE CO LTD,748.82,20/05/2015
Delivery Units,Adults and Communities,Other Agencies - Third Party P,30076560,THE EXTRA MILE CARE CO LTD,"1,995.20",20/05/2015
Delivery Units,Adults and Communities,Other Agencies - Third Party P,30076561,THE EXTRA MILE CARE CO LTD,"1,074.16",20/05/2015
Delivery Units,Adults and Communities,Other Agencies - Third Party P,30076562,THE EXTRA MILE CARE CO LTD,690.78,20/05/2015
Delivery Units,Adults and Communities,Other Agencies - Third Party P,30076563,THE EXTRA MILE CARE CO LTD,687.54,20/05/2015
Delivery Units,Adults and Communities,Other Agencies - Third Party P,30076564,THE EXTRA MILE CARE CO LTD,613.64,20/05/2015
Delivery Units,Adults and Communities,Other Agencies - Third Party P,30076566,THE EXTRA MILE CARE CO LTD,796.54,20/05/2015
Delivery Units,Adults and Communities,Other Agencies - Third Party P,30076568,THE EXTRA MILE CARE CO LTD,767.34,20/05/2015
Delivery Units,Adults and Communities,Other Agencies - Third Party P,30076569,THE EXTRA MILE CARE CO LTD,330.50,20/05/2015
Delivery Units,Adults and Communities,Other Agencies - Third Party P,30076570,THE EXTRA MILE CARE CO LTD,767.34,20/05/2015
Delivery Units,Adults and Communities,Other Agencies - Third Party P,30076571,THE EXTRA MILE CARE CO LTD,619.16,20/05/2015
Delivery Units,Adults and Communities,Other Agencies - Third Party P,30076572,THE EXTRA MILE CARE CO LTD,767.34,20/05/2015
Delivery Units,Adults and Communities,Other Agencies - Third Party P,30076573,THE EXTRA MILE CARE CO LTD,460.52,20/05/2015
Delivery Units,Adults and Communities,Other Agencies - Third Party P,30076574,THE EXTRA MILE CARE CO LTD,843.90,20/05/2015
Delivery Units,Adults and Communities,Other Agencies - Third Party P,30076577,THE EXTRA MILE CARE CO LTD,"1,994.04",20/05/2015
Delivery Units,Adults and Communities,Other Agencies - Third Party P,30076578,THE EXTRA MILE CARE CO LTD,843.90,20/05/2015
Delivery Units,Adults and Communities,Other Agencies - Third Party P,30076580,THE EXTRA MILE CARE CO LTD,"2,607.68",20/05/2015
Delivery Units,Adults and Communities,Other Agencies - Third Party P,30076581,THE EXTRA MILE CARE CO LTD,"1,016.12",20/05/2015
Delivery Units,Adults and Communities,Other Agencies - Third Party P,30076582,THE EXTRA MILE CARE CO LTD,515.78,20/05/2015
Delivery Units,Adults and Communities,Other Agencies - Third Party P,30076583,THE EXTRA MILE CARE CO LTD,"2,076.86",20/05/2015
Delivery Units,Adults and Communities,Other Agencies - Third Party P,30076584,THE EXTRA MILE CARE CO LTD,634.56,20/05/2015
Delivery Units,Adults and Communities,Other Agencies - Third Party P,30076586,THE EXTRA MILE CARE CO LTD,767.34,20/05/2015
Delivery Units,Adults and Communities,Other Agencies - Third Party P,30076590,THE EXTRA MILE CARE CO LTD,767.34,20/05/2015
Delivery Units,Adults and Communities,Other Agencies - Third Party P,30076591,THE EXTRA MILE CARE CO LTD,452.58,20/05/2015
Delivery Units,Adults and Communities,Other Agencies - Third Party P,30076592,THE EXTRA MILE CARE CO LTD,428.76,20/05/2015
Delivery Units,Adults and Communities,Other Agencies - Third Party P,30076874,THE EXTRA MILE CARE CO LTD,613.84,21/05/2015
Delivery Units,Adults and Communities,Other Agencies - Third Party P,30077530,THE EXTRA MILE CARE CO LTD,799.00,27/05/2015
Delivery Units,Adults and Communities,Other Agencies - Third Party P,30077532,THE EXTRA MILE CARE CO LTD,"2,066.30",27/05/2015
Delivery Units,Adults and Communities,Other Agencies - Third Party P,30077712,THE EXTRA MILE CARE CO LTD,"2,140.38",28/05/2015
Delivery Units,Adults and Communities,Other Agencies - Third Party P,30077714,THE EXTRA MILE CARE CO LTD,"1,259.55",28/05/2015
Delivery Units,Adults and Communities,Other Agencies - Third Party P,30077715,THE EXTRA MILE CARE CO LTD,-335.09,28/05/2015
Delivery Units,Adults and Communities,Other Agencies - Third Party P,30077716,THE EXTRA MILE CARE CO LTD,"2,148.32",28/05/2015
Delivery Units,Adults and Communities,Other Agencies - Third Party P,30077836,THE GRANGE,"2,184.04",29/05/2015
Delivery Units,Adults and Communities,Other Agencies - Third Party P,30077845,THE GRANGE,"2,171.85",29/05/2015
Delivery Units,Adults and Communities,Other Agencies - Third Party P,30077846,THE GRANGE,-782.48,29/05/2015
Delivery Units,Adults and Communities,Other Agencies - Third Party P,30077848,THE GRANGE,"2,184.04",29/05/2015
Delivery Units,Adults and Communities,Other Agencies - Third Party P,30077850,THE GRANGE,"2,184.04",29/05/2015
Delivery Units,Adults and Communities,Other Agencies - Third Party P,30077851,THE GRANGE,-505.20,29/05/2015
Delivery Units,Adults and Communities,Other Agencies - Third Party P,30074855,THE HOLLIES RESIDENTIAL HOTEL,"2,184.04",05/05/2015
Delivery Units,Adults and Communities,Other Agencies - Third Party P,30075722,THE HOLLIES RESIDENTIAL HOTEL,"2,184.04",14/05/2015
Delivery Units,Adults and Communities,Other Agencies - Third Party P,30074704,THE HOME CARE CONNECTION,775.00,01/05/2015
Delivery Units,Adults and Communities,Other Agencies - Third Party P,30074705,THE HOME CARE CONNECTION,775.00,01/05/2015
Delivery Units,Adults and Communities,Other Agencies - Third Party P,30077560,THE HOME CARE CONNECTION,775.00,26/05/2015
Delivery Units,Adults and Communities,Other Agencies - Third Party P,30077561,THE HOME CARE CONNECTION,775.00,26/05/2015
Delivery Units,Adults and Communities,Other Agencies - Third Party P,30077562,THE HOME CARE CONNECTION,775.00,26/05/2015
Delivery Units,Adults and Communities,Other Agencies - Third Party P,30075225,THE KINGSDOWNE SOCIETY,"2,001.92",07/05/2015
Delivery Units,Adults and Communities,Other Agencies - Third Party P,30075226,THE KINGSDOWNE SOCIETY,"2,184.04",07/05/2015
Delivery Units,Adults and Communities,Other Agencies - Third Party P,30075227,THE KINGSDOWNE SOCIETY,"2,001.92",07/05/2015
Delivery Units,Adults and Communities,Other Agencies - Third Party P,30076966,THE KINGSDOWNE SOCIETY,"2,262.04",21/05/2015
Delivery Units,Adults and Communities,Other Agencies - Third Party P,30074920,THE LIMES RESIDENTIAL HOME,"2,340.04",05/05/2015
Delivery Units,Adults and Communities,Other Agencies - Third Party P,30074949,THE LIMES RESIDENTIAL HOME,"2,340.04",05/05/2015
Delivery Units,Adults and Communities,Other Agencies - Third Party P,30074953,THE LIMES RESIDENTIAL HOME,"2,340.04",05/05/2015
Delivery Units,Adults and Communities,Other Agencies - Third Party P,30074954,THE LIMES RESIDENTIAL HOME,"2,340.04",05/05/2015
Delivery Units,Adults and Communities,Other Agencies - Third Party P,30074955,THE LIMES RESIDENTIAL HOME,"2,340.04",05/05/2015
Delivery Units,Adults and Communities,Other Agencies - Third Party P,30074956,THE LIMES RESIDENTIAL HOME,"2,144.91",05/05/2015
Delivery Units,Adults and Communities,Other Agencies - Third Party P,30074963,THE LIMES RESIDENTIAL HOME,"2,340.04",05/05/2015
Delivery Units,Adults and Communities,Other Agencies - Third Party P,30074975,THE LIMES RESIDENTIAL HOME,"2,144.91",05/05/2015
Delivery Units,Adults and Communities,Other Agencies - Third Party P,30075248,THE LIMES RESIDENTIAL HOME,"2,340.04",06/05/2015
Delivery Units,Adults and Communities,Other Agencies - Third Party P,30075175,THE NATIONAL AUTISTIC SOCIETY,"4,943.36",06/05/2015
Delivery Units,Adults and Communities,Other Agencies - Third Party P,30075176,THE NATIONAL AUTISTIC SOCIETY,-319.40,06/05/2015
Delivery Units,Adults and Communities,Other Agencies - Third Party P,30075252,THE NATIONAL SOCIETY FOR EPILEPSY,"4,635.34",06/05/2015
Delivery Units,Adults and Communities,Other Agencies - Third Party P,30075253,THE NATIONAL SOCIETY FOR EPILEPSY,"9,792.86",06/05/2015
Delivery Units,Adults and Communities,Other Agencies - Third Party P,30074976,THE RED HOUSE,"2,094.52",05/05/2015
Delivery Units,Adults and Communities,Other Agencies - Third Party P,30075247,THE RED HOUSE,"2,094.52",06/05/2015
Delivery Units,Adults and Communities,Other Agencies - Third Party P,30075222,THE REGARD PARTNERSHIP LTD,"5,069.83",06/05/2015
Delivery Units,Adults and Communities,Other Agencies - Third Party P,30075223,THE REGARD PARTNERSHIP LTD,-418.93,06/05/2015
Delivery Units,Adults and Communities,Other Agencies - Third Party P,30075224,THE REGARD PARTNERSHIP LTD,"7,781.27",06/05/2015
Delivery Units,Adults and Communities,Other Agencies - Third Party P,30075856,THE REGARD PARTNERSHIP LTD,"3,856.84",14/05/2015
Delivery Units,Adults and Communities,Other Agencies - Third Party P,30075811,THE WOODSIDE HOME,"5,648.27",15/05/2015
Delivery Units,Adults and Communities,Other Agencies - Third Party P,30075812,THE WOODSIDE HOME,"2,001.92",15/05/2015
Delivery Units,Adults and Communities,Other Agencies - Third Party P,30075828,THE WOODSIDE HOME,"2,001.92",15/05/2015
Delivery Units,Adults and Communities,Other Agencies - Third Party P,30075840,THE WOODSIDE HOME,285.99,15/05/2015
Delivery Units,Adults and Communities,Other Agencies - Third Party P,30075841,THE WOODSIDE HOME,"2,001.92",15/05/2015
Delivery Units,Adults and Communities,Other Agencies - Third Party P,30075842,THE WOODSIDE HOME,"2,001.92",15/05/2015
Delivery Units,Adults and Communities,Other Agencies - Third Party P,30075874,THE WOODSIDE HOME,"2,001.92",15/05/2015
Delivery Units,Adults and Communities,Other Agencies - Third Party P,30075881,THE WOODSIDE HOME,"9,048.16",15/05/2015
Delivery Units,Adults and Communities,Other Agencies - Third Party P,30076972,THE WOODSIDE HOME,500.50,21/05/2015
Delivery Units,Adults and Communities,Other Agencies - Third Party P,30076989,THE WOODSIDE HOME,357.50,21/05/2015
Delivery Units,Adults and Communities,Other Agencies - Third Party P,30077379,THE WOODSIDE HOME,"1,404.03",26/05/2015
Delivery Units,Adults and Communities,Other Agencies - Third Party P,30077862,THE WOODSIDE HOME,"2,574.05",29/05/2015
Delivery Units,Adults and Communities,Other Agencies - Third Party P,30077864,THE WOODSIDE HOME,"2,001.92",29/05/2015
Delivery Units,Adults and Communities,Other Agencies - Third Party P,30077869,THE WOODSIDE HOME,"2,001.92",29/05/2015
Delivery Units,Adults and Communities,Other Agencies - Third Party P,30077870,THE WOODSIDE HOME,"2,001.92",29/05/2015
Delivery Units,Adults and Communities,Other Agencies - Third Party P,30077876,THE WOODSIDE HOME,"2,001.92",29/05/2015
Delivery Units,Adults and Communities,Other Agencies - Third Party P,30077890,THE WOODSIDE HOME,"2,001.92",29/05/2015
Delivery Units,Adults and Communities,Other Agencies - Third Party P,30075181,TORRINGTON HOMES,500.48,06/05/2015
Delivery Units,Adults and Communities,Other Agencies - Third Party P,30075853,TORRINGTON HOMES,624.01,14/05/2015
Delivery Units,Adults and Communities,Other Agencies - Third Party P,30076926,TORRINGTON HOMES,"1,716.03",21/05/2015
Delivery Units,Adults and Communities,Other Agencies - Third Party P,30077861,TORRINGTON HOMES,"2,184.04",29/05/2015
Delivery Units,Adults and Communities,Other Agencies - Third Party P,30077863,TORRINGTON HOMES,"2,184.04",29/05/2015
Delivery Units,Adults and Communities,Other Agencies - Third Party P,30077865,TORRINGTON HOMES,"2,184.04",29/05/2015
Delivery Units,Adults and Communities,Other Agencies - Third Party P,30077874,TORRINGTON HOMES,"2,184.04",29/05/2015
Delivery Units,Adults and Communities,Other Agencies - Third Party P,30077877,TORRINGTON HOMES,"2,001.92",29/05/2015
Delivery Units,Adults and Communities,Other Agencies - Third Party P,30077884,TORRINGTON HOMES,"2,184.04",29/05/2015
Delivery Units,Adults and Communities,Other Agencies - Third Party P,30077885,TORRINGTON HOMES,"2,184.04",29/05/2015
Delivery Units,Adults and Communities,Other Agencies - Third Party P,30077887,TORRINGTON HOMES,"2,001.92",29/05/2015
Delivery Units,Adults and Communities,Other Agencies - Third Party P,30075125,TUDOR LODGE RESIDENTIAL HOME,"2,448.00",06/05/2015
Delivery Units,Adults and Communities,Other Agencies - Third Party P,30076765,TWO RIVERS,"1,740.00",21/05/2015
Delivery Units,Adults and Communities,Other Agencies - Third Party P,30077834,TWO RIVERS,"1,225.00",29/05/2015
Delivery Units,Adults and Communities,Other Agencies - Third Party P,30077894,UNIQUE CARE SERVICES,"2,455.24",29/05/2015
Delivery Units,Adults and Communities,Other Agencies - Third Party P,30076905,VENTRY RESIDENTIAL CARE LTD,"2,184.04",21/05/2015
Delivery Units,Adults and Communities,Other Agencies - Third Party P,30076827,VITALISE,500.50,21/05/2015
Delivery Units,Adults and Communities,Other Agencies - Third Party P,30076828,VITALISE,500.50,21/05/2015
Delivery Units,Adults and Communities,Other Agencies - Third Party P,30075911,VIVRE CARE LTD,"6,956.32",14/05/2015
Delivery Units,Adults and Communities,Other Agencies - Third Party P,30074785,WALSINGHAM,"3,120.90",05/05/2015
Delivery Units,Adults and Communities,Other Agencies - Third Party P,30074786,WALSINGHAM,-344.36,05/05/2015
Delivery Units,Adults and Communities,Other Agencies - Third Party P,30075041,WALSINGHAM,"5,299.50",06/05/2015
Delivery Units,Adults and Communities,Other Agencies - Third Party P,30075042,WALSINGHAM,-539.61,06/05/2015
Delivery Units,Adults and Communities,Other Agencies - Third Party P,30075043,WALSINGHAM,"5,299.50",06/05/2015
Delivery Units,Adults and Communities,Other Agencies - Third Party P,30075044,WALSINGHAM,-344.36,06/05/2015
Delivery Units,Adults and Communities,Other Agencies - Third Party P,30075045,WALSINGHAM,"3,120.90",06/05/2015
Delivery Units,Adults and Communities,Other Agencies - Third Party P,30075046,WALSINGHAM,-344.36,06/05/2015
Delivery Units,Adults and Communities,Other Agencies - Third Party P,30075122,WALSINGHAM,"3,120.90",06/05/2015
Delivery Units,Adults and Communities,Other Agencies - Third Party P,30075123,WALSINGHAM,-428.61,06/05/2015
Delivery Units,Adults and Communities,Other Agencies - Third Party P,30075268,WESTGATE HOUSE CARE CENTRE,"3,605.57",05/05/2015
Delivery Units,Adults and Communities,Other Agencies - Third Party P,30074824,WESTMINSTER HEALTH CARE LTD,"4,350.90",05/05/2015
Delivery Units,Adults and Communities,Other Agencies - Third Party P,30074825,WESTMINSTER HEALTH CARE LTD,"2,244.13",05/05/2015
Delivery Units,Adults and Communities,Other Agencies - Third Party P,30074826,WESTMINSTER HEALTH CARE LTD,"4,707.17",05/05/2015
Delivery Units,Adults and Communities,Other Agencies - Third Party P,30074827,WESTMINSTER HEALTH CARE LTD,"4,707.17",05/05/2015
Delivery Units,Adults and Communities,Other Agencies - Third Party P,30074828,WESTMINSTER HEALTH CARE LTD,"4,923.56",05/05/2015
Delivery Units,Adults and Communities,Other Agencies - Third Party P,30076636,WILLOW CARE HOMES,"5,066.00",20/05/2015
Delivery Units,Adults and Communities,Other Agencies - Third Party P,30076998,WILLOW CARE HOMES,"4,904.00",21/05/2015
Delivery Units,Adults and Communities,Other Agencies - Third Party P,30077001,WILLOW CARE HOMES,"4,904.00",21/05/2015
Delivery Units,Adults and Communities,Other Agencies - Third Party P,30074793,WILSMERE HOUSE CARE CENTRE,"4,818.73",05/05/2015
Delivery Units,Adults and Communities,Other Agencies - Third Party P,30074794,WILSMERE HOUSE CARE CENTRE,"5,247.00",05/05/2015
Delivery Units,Adults and Communities,Other Agencies - Third Party P,30074795,WILSMERE HOUSE CARE CENTRE,"5,357.14",05/05/2015
Delivery Units,Adults and Communities,Other Agencies - Third Party P,30077004,YAD VOEZER LIMITED,"5,199.88",27/05/2015
Delivery Units,Adults and Communities,Other Agencies - Third Party P,30077005,YAD VOEZER LIMITED,-319.40,27/05/2015
Delivery Units,Adults and Communities,Other Agencies - Third Party P,30077006,YAD VOEZER LIMITED,"4,838.88",27/05/2015
Delivery Units,Adults and Communities,Other Agencies - Third Party P,30077833,Z & M CARE LTD,"2,184.04",29/05/2015
Delivery Units,Adults and Communities,Other Establishments - Third P,60012880,HERTFORDSHIRE PARTNERSHIP,"110,288.00",22/05/2015
Delivery Units,Adults and Communities,Other Services,60020474,COMMUNITY BARNET,"13,000.00",12/05/2015
Delivery Units,Adults and Communities,Other Services,60004837,LONDON BOROUGH OF ENFIELD,"16,534.32",20/05/2015
Delivery Units,Adults and Communities,Other Services,60007620,LONDON BOROUGH OF ENFIELD,"16,534.32",20/05/2015
Delivery Units,Adults and Communities,Other Services,20020409,VOICEABILITY,"1,418.07",27/05/2015
Delivery Units,Adults and Communities,Other Services,30076713,WILLOW HOUSING & CARE LTD.,711.38,20/05/2015
Delivery Units,Adults and Communities,Other Transfer Payments to Soc,60017983,ORIGIN HOUSING LIMITED,"3,920.00",07/05/2015
Delivery Units,Adults and Communities,Other Transfer Payments to Soc,60018899,ORIGIN HOUSING LIMITED,980.00,07/05/2015
Delivery Units,Adults and Communities,Other Transfer Payments to Soc,60020471,ORIGIN HOUSING LIMITED,"3,920.00",12/05/2015
Delivery Units,Adults and Communities,Printing-Contract,60004211,GOOD IMPRESSIONS (LONDON) LIMITED,420.00,14/05/2015
Delivery Units,Adults and Communities,Private Contractors - Third Pa,60016122,COMMUNITY BARNET,"15,530.08",08/05/2015
Delivery Units,Adults and Communities,Private Contractors - Third Pa,60020495,COMMUNITY BARNET,"15,530.08",20/05/2015
Delivery Units,Adults and Communities,Software Licences & Support,60020383,CARE MONITORING 2000 LTD,"9,484.69",12/05/2015
Delivery Units,Adults and Communities,Subscriptions,60019885,LONDON BOROUGH OF EALING,"8,000.00",05/05/2015
Delivery Units,Adults and Communities,Training,60012710,PREMIER PEOPLE SOLUTIONS LTD,"9,465.00",08/05/2015
Delivery Units,Adults and Communities,Training,60012718,PREMIER PEOPLE SOLUTIONS LTD,499.00,08/05/2015
Delivery Units,Adults and Communities,Training,10012277,THE SPEECH CENTRE,640.00,15/05/2015
Delivery Units,Adults and Communities,Ttl IT & Comms,60020002,BRITISH TELECOM PLC,"2,207.60",05/05/2015
Delivery Units,Adults and Communities,Ttl IT & Comms,60020755,BRITISH TELECOM PLC,"1,383.45",20/05/2015
Delivery Units,Adults and Communities,Ttl IT & Comms,60021954,BRITISH TELECOMMUNICATIONS PLC,"1,445.88",27/05/2015
Delivery Units,Adults and Communities,Ttl IT & Comms,60020591,IESE LTD,995.00,15/05/2015
Delivery Units,Adults and Communities,Voluntary Associations - Third,30076686,ASRA GREATER LONDON HOUSING ASSOC,379.30,20/05/2015
Delivery Units,Adults and Communities,Voluntary Associations - Third,30076687,BARNET ASIAN WOMENS ASSOCIATION,"2,471.35",20/05/2015
Delivery Units,Adults and Communities,Voluntary Associations - Third,20020274,BARNET MENCAP,"10,523.61",20/05/2015
Delivery Units,Adults and Communities,Voluntary Associations - Third,30076691,BARNET MENCAP,"26,333.33",20/05/2015
Delivery Units,Adults and Communities,Voluntary Associations - Third,30076692,BARNET REFUGEE SERVICE,"5,578.83",21/05/2015
Delivery Units,Adults and Communities,Voluntary Associations - Third,30076693,BRITISH RED CROSS SOCIETY,"3,164.63",20/05/2015
Delivery Units,Adults and Communities,Voluntary Associations - Third,30076694,CHERRY LODGE CANCER CARE,"1,173.83",20/05/2015
Delivery Units,Adults and Communities,Voluntary Associations - Third,30076695,CHINESE MENTAL HEALTH ASSOCIATION,"3,907.90",20/05/2015
Delivery Units,Adults and Communities,Voluntary Associations - Third,30076696,CHRISTIAN ACTION (ENFIELD),365.80,20/05/2015
Delivery Units,Adults and Communities,Voluntary Associations - Third,30076697,ELEANOR PALMER TRUST NO 2 A/C.,486.50,20/05/2015
Delivery Units,Adults and Communities,Voluntary Associations - Third,30076698,GENESIS HOUSING ASSOCIATION LIMITED,"95,142.58",20/05/2015
Delivery Units,Adults and Communities,Voluntary Associations - Third,30076699,HABINTEG HOUSING ASSOCIATION,446.37,20/05/2015
Delivery Units,Adults and Communities,Voluntary Associations - Third,30073195,HOME GROUP LTD,440.86,13/05/2015
Delivery Units,Adults and Communities,Voluntary Associations - Third,30076700,JEWISH COMMUNITY HOUSING ASSOCIATIO,568.17,20/05/2015
Delivery Units,Adults and Communities,Voluntary Associations - Third,30076708,LINEN & WOOLLEN DRAPERS COTTAGE,730.11,20/05/2015
Delivery Units,Adults and Communities,Voluntary Associations - Third,30076702,MIDDLESEX ASSOCIATION  FOR THE BLIN,"2,203.08",20/05/2015
Delivery Units,Adults and Communities,Voluntary Associations - Third,30076703,MIND IN BARNET,"6,418.22",20/05/2015
Delivery Units,Adults and Communities,Voluntary Associations - Third,30076714,PRT BARNET CARERS CENTRE,"23,333.33",20/05/2015
Delivery Units,Adults and Communities,Voluntary Associations - Third,30076710,SANCTUARY HOUSING ASSOCIATION,407.80,20/05/2015
Delivery Units,Adults and Communities,Voluntary Associations - Third,30076711,SCOTSCARE,361.52,20/05/2015
Delivery Units,Adults and Communities,Voluntary Associations - Third,30076707,ST PANCRAS & HUMANIST H.A.,661.55,20/05/2015
Delivery Units,Adults and Communities,Voluntary Associations - Third,30076709,THE RICHMOND FELLOWSHIP,"44,166.67",20/05/2015
Delivery Units,Children's Education & Skills,Agency/Interim Non Hays,60020078,CENTRAL LONDONCOMMUNITY HEALTHCARE,"1,260.00",06/05/2015
Delivery Units,Children's Education & Skills,Building Repairs & Maintenance,60021149,OAKRAY LIMITED,603.00,28/05/2015
Delivery Units,Children's Education & Skills,Building Repairs & Maintenance,60011183,PORTAKABIN LTD,"8,988.97",05/05/2015
Delivery Units,Children's Education & Skills,Building Repairs & Maintenance,60016322,PORTAKABIN LTD,"51,785.00",29/05/2015
Delivery Units,Children's Education & Skills,Capital Construction and Works,60018822,BLACKBOURNE INTEGRATED M&E,"7,634.02",14/05/2015
Delivery Units,Children's Education & Skills,Capital Construction and Works,60020343,BREYER GROUP PLC,"145,234.41",29/05/2015
Delivery Units,Children's Education & Skills,Capital Construction and Works,60021196,DEANSBROOK JUNIOR SCHOOL,"23,616.41",18/05/2015
Delivery Units,Children's Education & Skills,Capital Construction and Works,60020488,ELLIOTT GROUP LTD,"3,969.84",11/05/2015
Delivery Units,Children's Education & Skills,Capital Construction and Works,60015367,GARDINER & THEOBALD LLP,"2,000.00",01/05/2015
Delivery Units,Children's Education & Skills,Capital Construction and Works,60020202,GARDINER & THEOBALD LLP,"3,000.00",11/05/2015
Delivery Units,Children's Education & Skills,Capital Construction and Works,60020306,GARDINER & THEOBALD LLP,"3,000.00",11/05/2015
Delivery Units,Children's Education & Skills,Capital Construction and Works,60020515,KIER LONDON LTD,"3,706.49",15/05/2015
Delivery Units,Children's Education & Skills,Capital Construction and Works,20019895,LONDON ACADEMY,"35,000.00",08/05/2015
Delivery Units,Children's Education & Skills,Capital Construction and Works,60019708,LONDON DIOCESAN BOARD FOR SCHOOL,"22,482.58",01/05/2015
Delivery Units,Children's Education & Skills,Capital Construction and Works,10012340,MENORAH FOUNDATION SCHOOL (GOVERNOR,"346,916.13",22/05/2015
Delivery Units,Children's Education & Skills,Capital Construction and Works,60017216,MORGAN SINDALL,"13,821.95",06/05/2015
Delivery Units,Children's Education & Skills,Capital Construction and Works,60019663,MORGAN SINDALL,"19,729.22",07/05/2015
Delivery Units,Children's Education & Skills,Capital Construction and Works,60014094,PORTAKABIN LTD,"1,934.85",27/05/2015
Delivery Units,Children's Education & Skills,Capital Construction and Works,10012283,RGE SERVICES,446.00,18/05/2015
Delivery Units,Children's Education & Skills,Capital Construction and Works,60020410,S W BRUCE & CO LTD,"44,618.55",27/05/2015
Delivery Units,Children's Education & Skills,Capital Construction and Works,60016329,SERVACCOMM REDHALL LTD,"9,932.40",28/05/2015
Delivery Units,Children's Education & Skills,Capital Construction and Works,60020583,WREN ACADEMY,"461,320.07",22/05/2015
Delivery Units,Children's Education & Skills,Capital Construction and Works,60021184,WREN ACADEMY,"15,355.00",22/05/2015
Delivery Units,Children's Education & Skills,Consultants Fees,60020330,MOTT MACDONALD LTD,"1,200.00",07/05/2015
Delivery Units,Children's Education & Skills,Consultants Fees,60018543,REDACTED - PERSONAL DATA,"1,875.00",06/05/2015
Delivery Units,Children's Education & Skills,Consultants Fees,60020268,TECHNIVATE LTD,500.00,07/05/2015
Delivery Units,Children's Education & Skills,Consumable Catering Supplies,60021875,BUNZL CATERING SUPPLIES,329.92,27/05/2015
Delivery Units,Children's Education & Skills,Consumable Catering Supplies,60019627,LONDON BIO PACKAGING,444.08,07/05/2015
Delivery Units,Children's Education & Skills,Consumable Catering Supplies,60019652,LONDON BIO PACKAGING,"1,327.71",07/05/2015
Delivery Units,Children's Education & Skills,Consumable Catering Supplies,60019711,LONDON BIO PACKAGING,480.06,07/05/2015
Delivery Units,Children's Education & Skills,Consumable Catering Supplies,60019715,LONDON BIO PACKAGING,269.31,07/05/2015
Delivery Units,Children's Education & Skills,Consumable Catering Supplies,60021941,NICHOLL FOOD PACKAGING LTD,301.60,27/05/2015
Delivery Units,Children's Education & Skills,Consumable Catering Supplies,10012329,REMMERCO LIMITED,"1,009.47",18/05/2015
Delivery Units,Children's Education & Skills,Consumable Catering Supplies,60013347,WMF,"1,950.00",28/05/2015
Delivery Units,Children's Education & Skills,Electricity,60019855,KENT COUNTY COUNCIL (KCS),703.30,05/05/2015
Delivery Units,Children's Education & Skills,Equipment and Materials Purcha,60006694,E & R MOFFAT LTD,287.04,27/05/2015
Delivery Units,Children's Education & Skills,Equipment and Materials Purcha,60021853,HOBART UK,725.00,27/05/2015
Delivery Units,Children's Education & Skills,Equipment and Materials Purcha,60021881,HOBART UK,"1,690.00",27/05/2015
Delivery Units,Children's Education & Skills,Equipment and Materials Purcha,60013940,LOCKHART CATERING EQUIPMENT,284.80,20/05/2015
Delivery Units,Children's Education & Skills,Equipment and Materials Purcha,60010885,PORTAKABIN LTD,"1,934.85",21/05/2015
Delivery Units,Children's Education & Skills,Equipment and Materials Repair,60019639,HOBART UK,422.88,07/05/2015
Delivery Units,Children's Education & Skills,Equipment and Materials Repair,60019658,HOBART UK,447.33,07/05/2015
Delivery Units,Children's Education & Skills,Equipment and Materials Repair,60019713,HOBART UK,391.30,07/05/2015
Delivery Units,Children's Education & Skills,Food Costs,60019719,BRAKE BROS ( FROZEN FOODS) LTD,297.20,01/05/2015
Delivery Units,Children's Education & Skills,Food Costs,60019633,FLEISHMAN EUROPE LTD,267.69,28/05/2015
Delivery Units,Children's Education & Skills,Food Costs,60019638,FLEISHMAN EUROPE LTD,"1,032.94",28/05/2015
Delivery Units,Children's Education & Skills,Food Costs,60019640,FLEISHMAN EUROPE LTD,"1,717.86",28/05/2015
Delivery Units,Children's Education & Skills,Food Costs,60020705,FLEISHMAN EUROPE LTD,"1,748.04",28/05/2015
Delivery Units,Children's Education & Skills,Food Costs,60020740,FLEISHMAN EUROPE LTD,523.64,28/05/2015
Delivery Units,Children's Education & Skills,Food Costs,60020771,FLEISHMAN EUROPE LTD,"1,059.73",28/05/2015
Delivery Units,Children's Education & Skills,Food Costs,60020886,FLEISHMAN EUROPE LTD,510.52,28/05/2015
Delivery Units,Children's Education & Skills,Food Costs,60021388,FLEISHMAN EUROPE LTD,"3,556.18",28/05/2015
Delivery Units,Children's Education & Skills,Food Costs,60021405,FLEISHMAN EUROPE LTD,462.78,28/05/2015
Delivery Units,Children's Education & Skills,Food Costs,60021418,FLEISHMAN EUROPE LTD,"1,744.93",28/05/2015
Delivery Units,Children's Education & Skills,Food Costs,60021504,FLEISHMAN EUROPE LTD,753.29,28/05/2015
Delivery Units,Children's Education & Skills,Food Costs,60021944,FLEISHMAN EUROPE LTD,"2,635.58",28/05/2015
Delivery Units,Children's Education & Skills,Food Costs,60021946,FLEISHMAN EUROPE LTD,267.48,28/05/2015
Delivery Units,Children's Education & Skills,Food Costs,60022030,FRESH N FRUITY (UK) LTD,423.31,27/05/2015
Delivery Units,Children's Education & Skills,Food Costs,60019628,HATOV DISTRIBUTION,609.59,01/05/2015
Delivery Units,Children's Education & Skills,Food Costs,60019688,HATOV DISTRIBUTION,737.67,07/05/2015
Delivery Units,Children's Education & Skills,Food Costs,60019697,HATOV DISTRIBUTION,618.80,01/05/2015
Delivery Units,Children's Education & Skills,Food Costs,60019757,HATOV DISTRIBUTION,"2,438.10",01/05/2015
Delivery Units,Children's Education & Skills,Food Costs,60020336,HOPWELLS LIMITED,865.54,07/05/2015
Delivery Units,Children's Education & Skills,Food Costs,60019676,OSEM U.K. LIMITED,282.30,01/05/2015
Delivery Units,Children's Education & Skills,Food Costs,60019683,OSEM U.K. LIMITED,368.41,01/05/2015
Delivery Units,Children's Education & Skills,Food Costs,60019689,OSEM U.K. LIMITED,"1,410.28",05/05/2015
Delivery Units,Children's Education & Skills,Food Costs,60019790,OSEM U.K. LIMITED,258.30,05/05/2015
Delivery Units,Children's Education & Skills,Food Costs,60019650,RUMPLERS,805.65,01/05/2015
Delivery Units,Children's Education & Skills,Food Costs,60020192,RUMPLERS,"1,434.10",11/05/2015
Delivery Units,Children's Education & Skills,Food Costs,60021454,SNOWCREST LTD,913.00,29/05/2015
Delivery Units,Children's Education & Skills,Food Costs,60021478,SNOWCREST LTD,297.00,29/05/2015
Delivery Units,Children's Education & Skills,Food Costs,60020325,SOVA FOODS WHOLESALE LTD,518.85,11/05/2015
Delivery Units,Children's Education & Skills,Food Costs,60019659,THE FAMILY BREAD LTD,960.04,01/05/2015
Delivery Units,Children's Education & Skills,Food Costs,60019734,THE FAMILY BREAD LTD,762.00,01/05/2015
Delivery Units,Children's Education & Skills,Legal and Court Fees,60019241,BAKER SMALL SOLICITORS,"11,250.00",21/05/2015
Delivery Units,Children's Education & Skills,Legal and Court Fees,20020209,VANDERPUMP & SYKES SOLICITORS,291.67,18/05/2015
Delivery Units,Children's Education & Skills,Non Education Staff GPay,20020098,HASMONEAN HIGH SCHOOL,"13,881.39",14/05/2015
Delivery Units,Children's Education & Skills,Other Services,60019152,KEDASSIA PRODUCTS LTD.,"1,338.71",20/05/2015
Delivery Units,Children's Education & Skills,Other Services,60019174,KEDASSIA PRODUCTS LTD.,"1,349.72",20/05/2015
Delivery Units,Children's Education & Skills,Other Services,60019178,KEDASSIA PRODUCTS LTD.,"1,322.86",20/05/2015
Delivery Units,Children's Education & Skills,Professional Services,60017483,IMPROVE ENGLISH LTD,520.00,19/05/2015
Delivery Units,Children's Education & Skills,Professional Services,60017619,IMPROVE ENGLISH LTD,975.00,19/05/2015
Delivery Units,Children's Education & Skills,Professional Services,60016995,REDACTED - PERSONAL DATA,260.00,19/05/2015
Delivery Units,Children's Education & Skills,Professional Services,60020386,REDACTED - PERSONAL DATA,325.00,18/05/2015
Delivery Units,Children's Education & Skills,Professional Services,60022128,REDACTED - PERSONAL DATA,275.00,27/05/2015
Delivery Units,Children's Education & Skills,Professional Services,60020981,SQUARE 2 LEARNING LTD,840.00,15/05/2015
Delivery Units,Children's Education & Skills,Subscriptions,60020551,LONDON BOROUGH OF EALING,"3,002.75",28/05/2015
Delivery Units,Children's Education & Skills,Training,60020634,NAPEP,390.00,21/05/2015
Delivery Units,Children's Family Services,Advertising,60020046,MALLINA GROUP,550.00,05/05/2015
Delivery Units,Children's Family Services,Advertising,60020119,TMP (UK) LTD,"4,070.00",15/05/2015
Delivery Units,Children's Family Services,Advertising for staff,60019246,BRITISH ASSOCIATION  FOR ADOPTION &,400.00,13/05/2015
Delivery Units,Children's Family Services,Books-CDs-Audio-Video,30074286,ASKEWS & HOLTS LIBRARY SERVICES LTD,818.29,05/05/2015
Delivery Units,Children's Family Services,Books-CDs-Audio-Video,30074666,ASKEWS & HOLTS LIBRARY SERVICES LTD,309.26,01/05/2015
Delivery Units,Children's Family Services,Books-CDs-Audio-Video,30074715,ASKEWS & HOLTS LIBRARY SERVICES LTD,284.65,05/05/2015
Delivery Units,Children's Family Services,Books-CDs-Audio-Video,30074716,ASKEWS & HOLTS LIBRARY SERVICES LTD,275.60,05/05/2015
Delivery Units,Children's Family Services,Books-CDs-Audio-Video,30074717,ASKEWS & HOLTS LIBRARY SERVICES LTD,327.25,05/05/2015
Delivery Units,Children's Family Services,Books-CDs-Audio-Video,30074729,ASKEWS & HOLTS LIBRARY SERVICES LTD,327.48,06/05/2015
Delivery Units,Children's Family Services,Books-CDs-Audio-Video,30074739,ASKEWS & HOLTS LIBRARY SERVICES LTD,304.12,06/05/2015
Delivery Units,Children's Family Services,Books-CDs-Audio-Video,30074753,ASKEWS & HOLTS LIBRARY SERVICES LTD,292.02,06/05/2015
Delivery Units,Children's Family Services,Books-CDs-Audio-Video,30074763,ASKEWS & HOLTS LIBRARY SERVICES LTD,323.92,06/05/2015
Delivery Units,Children's Family Services,Books-CDs-Audio-Video,30074999,ASKEWS & HOLTS LIBRARY SERVICES LTD,375.62,06/05/2015
Delivery Units,Children's Family Services,Books-CDs-Audio-Video,30075003,ASKEWS & HOLTS LIBRARY SERVICES LTD,288.59,06/05/2015
Delivery Units,Children's Family Services,Books-CDs-Audio-Video,30075006,ASKEWS & HOLTS LIBRARY SERVICES LTD,333.48,06/05/2015
Delivery Units,Children's Family Services,Books-CDs-Audio-Video,30075038,ASKEWS & HOLTS LIBRARY SERVICES LTD,551.99,06/05/2015
Delivery Units,Children's Family Services,Books-CDs-Audio-Video,30075294,ASKEWS & HOLTS LIBRARY SERVICES LTD,292.78,08/05/2015
Delivery Units,Children's Family Services,Books-CDs-Audio-Video,30075332,ASKEWS & HOLTS LIBRARY SERVICES LTD,445.17,08/05/2015
Delivery Units,Children's Family Services,Books-CDs-Audio-Video,30075335,ASKEWS & HOLTS LIBRARY SERVICES LTD,267.68,08/05/2015
Delivery Units,Children's Family Services,Books-CDs-Audio-Video,30075337,ASKEWS & HOLTS LIBRARY SERVICES LTD,403.28,08/05/2015
Delivery Units,Children's Family Services,Books-CDs-Audio-Video,30075345,ASKEWS & HOLTS LIBRARY SERVICES LTD,356.62,08/05/2015
Delivery Units,Children's Family Services,Books-CDs-Audio-Video,30075350,ASKEWS & HOLTS LIBRARY SERVICES LTD,459.79,08/05/2015
Delivery Units,Children's Family Services,Books-CDs-Audio-Video,30075355,ASKEWS & HOLTS LIBRARY SERVICES LTD,365.84,08/05/2015
Delivery Units,Children's Family Services,Books-CDs-Audio-Video,30075359,ASKEWS & HOLTS LIBRARY SERVICES LTD,269.19,08/05/2015
Delivery Units,Children's Family Services,Books-CDs-Audio-Video,30075578,ASKEWS & HOLTS LIBRARY SERVICES LTD,311.42,13/05/2015
Delivery Units,Children's Family Services,Books-CDs-Audio-Video,30075579,ASKEWS & HOLTS LIBRARY SERVICES LTD,320.87,13/05/2015
Delivery Units,Children's Family Services,Books-CDs-Audio-Video,30075950,ASKEWS & HOLTS LIBRARY SERVICES LTD,292.28,15/05/2015
Delivery Units,Children's Family Services,Books-CDs-Audio-Video,30075955,ASKEWS & HOLTS LIBRARY SERVICES LTD,696.06,20/05/2015
Delivery Units,Children's Family Services,Books-CDs-Audio-Video,30075956,ASKEWS & HOLTS LIBRARY SERVICES LTD,289.70,20/05/2015
Delivery Units,Children's Family Services,Books-CDs-Audio-Video,30075967,ASKEWS & HOLTS LIBRARY SERVICES LTD,534.90,20/05/2015
Delivery Units,Children's Family Services,Books-CDs-Audio-Video,30075976,ASKEWS & HOLTS LIBRARY SERVICES LTD,328.10,20/05/2015
Delivery Units,Children's Family Services,Books-CDs-Audio-Video,30075980,ASKEWS & HOLTS LIBRARY SERVICES LTD,293.85,20/05/2015
Delivery Units,Children's Family Services,Books-CDs-Audio-Video,30076280,ASKEWS & HOLTS LIBRARY SERVICES LTD,678.74,18/05/2015
Delivery Units,Children's Family Services,Books-CDs-Audio-Video,30076281,ASKEWS & HOLTS LIBRARY SERVICES LTD,356.08,18/05/2015
Delivery Units,Children's Family Services,Books-CDs-Audio-Video,30076297,ASKEWS & HOLTS LIBRARY SERVICES LTD,321.33,20/05/2015
Delivery Units,Children's Family Services,Books-CDs-Audio-Video,30076651,ASKEWS & HOLTS LIBRARY SERVICES LTD,273.95,21/05/2015
Delivery Units,Children's Family Services,Books-CDs-Audio-Video,30076657,ASKEWS & HOLTS LIBRARY SERVICES LTD,324.58,21/05/2015
Delivery Units,Children's Family Services,Books-CDs-Audio-Video,30076664,ASKEWS & HOLTS LIBRARY SERVICES LTD,530.44,21/05/2015
Delivery Units,Children's Family Services,Books-CDs-Audio-Video,30076671,ASKEWS & HOLTS LIBRARY SERVICES LTD,435.30,21/05/2015
Delivery Units,Children's Family Services,Books-CDs-Audio-Video,30077008,ASKEWS & HOLTS LIBRARY SERVICES LTD,575.24,21/05/2015
Delivery Units,Children's Family Services,Books-CDs-Audio-Video,30077011,ASKEWS & HOLTS LIBRARY SERVICES LTD,586.59,21/05/2015
Delivery Units,Children's Family Services,Books-CDs-Audio-Video,30077212,ASKEWS & HOLTS LIBRARY SERVICES LTD,545.57,22/05/2015
Delivery Units,Children's Family Services,Books-CDs-Audio-Video,30077216,ASKEWS & HOLTS LIBRARY SERVICES LTD,319.91,27/05/2015
Delivery Units,Children's Family Services,Books-CDs-Audio-Video,30077231,ASKEWS & HOLTS LIBRARY SERVICES LTD,531.93,26/05/2015
Delivery Units,Children's Family Services,Books-CDs-Audio-Video,30077240,ASKEWS & HOLTS LIBRARY SERVICES LTD,272.28,27/05/2015
Delivery Units,Children's Family Services,Books-CDs-Audio-Video,30077246,ASKEWS & HOLTS LIBRARY SERVICES LTD,364.22,27/05/2015
Delivery Units,Children's Family Services,Books-CDs-Audio-Video,30077763,ASKEWS & HOLTS LIBRARY SERVICES LTD,271.39,29/05/2015
Delivery Units,Children's Family Services,Books-CDs-Audio-Video,30074706,BERTRAM LIBRARY SERVICES,709.56,21/05/2015
Delivery Units,Children's Family Services,Books-CDs-Audio-Video,30075708,JEROME NEWS,274.30,18/05/2015
Delivery Units,Children's Family Services,Books-CDs-Audio-Video,30075709,JEROME NEWS,276.80,18/05/2015
Delivery Units,Children's Family Services,Books-CDs-Audio-Video,30076300,MCKINNONS NEWS,716.95,18/05/2015
Delivery Units,Children's Family Services,Books-CDs-Audio-Video,30077565,MYWORKSEARCH,"3,000.00",27/05/2015
Delivery Units,Children's Family Services,Books-CDs-Audio-Video,30074781,OVERDRIVE,594.18,01/05/2015
Delivery Units,Children's Family Services,Books-CDs-Audio-Video,30078006,THE BOOK CENTRE,399.06,29/05/2015
Delivery Units,Children's Family Services,Books-CDs-Audio-Video,30075287,ULVERSCROFT LGE PRINT BOOKS LTD,340.19,08/05/2015
Delivery Units,Children's Family Services,Building Repairs & Maintenance,20020399,REDACTED - PERSONAL DATA,"1,205.00",26/05/2015
Delivery Units,Children's Family Services,Cleaning and domestic material,60015574,BIRKIN CLEANING SERVICES LTD,791.40,27/05/2015
Delivery Units,Children's Family Services,Cleaning and domestic material,60016354,BIRKIN CLEANING SERVICES LTD,791.40,27/05/2015
Delivery Units,Children's Family Services,Cleaning and domestic material,60020815,BIRKIN CLEANING SERVICES LTD,791.40,15/05/2015
Delivery Units,Children's Family Services,Cleaning and domestic material,60020949,BIRKIN CLEANING SERVICES LTD,767.68,15/05/2015
Delivery Units,Children's Family Services,Cleaning and domestic material,60021619,CHURCHILL CONTRACT SERVICES,517.24,29/05/2015
Delivery Units,Children's Family Services,Cleaning and domestic material,60021733,CHURCHILL CONTRACT SERVICES,367.12,29/05/2015
Delivery Units,Children's Family Services,Electricity,60015834,KENT COUNTY COUNCIL (KCS),627.90,20/05/2015
Delivery Units,Children's Family Services,Electricity,60019907,KENT COUNTY COUNCIL (KCS),400.39,05/05/2015
Delivery Units,Children's Family Services,Electricity,60019979,KENT COUNTY COUNCIL (KCS),468.31,05/05/2015
Delivery Units,Children's Family Services,Electricity,60020079,KENT COUNTY COUNCIL (KCS),481.35,05/05/2015
Delivery Units,Children's Family Services,Electricity,60020094,KENT COUNTY COUNCIL (KCS),537.80,08/05/2015
Delivery Units,Children's Family Services,Electricity,60020095,KENT COUNTY COUNCIL (KCS),-431.52,08/05/2015
Delivery Units,Children's Family Services,Electricity,60020097,KENT COUNTY COUNCIL (KCS),"2,333.73",08/05/2015
Delivery Units,Children's Family Services,Electricity,60020100,KENT COUNTY COUNCIL (KCS),501.40,08/05/2015
Delivery Units,Children's Family Services,Electricity,60020105,KENT COUNTY COUNCIL (KCS),640.50,07/05/2015
Delivery Units,Children's Family Services,Electricity,60020124,KENT COUNTY COUNCIL (KCS),689.68,11/05/2015
Delivery Units,Children's Family Services,Electricity,60020125,KENT COUNTY COUNCIL (KCS),448.86,11/05/2015
Delivery Units,Children's Family Services,Electricity,60020146,KENT COUNTY COUNCIL (KCS),569.42,07/05/2015
Delivery Units,Children's Family Services,Electricity,60020150,KENT COUNTY COUNCIL (KCS),904.68,21/05/2015
Delivery Units,Children's Family Services,Electricity,60020154,KENT COUNTY COUNCIL (KCS),"1,581.15",07/05/2015
Delivery Units,Children's Family Services,Electricity,60020161,KENT COUNTY COUNCIL (KCS),689.06,07/05/2015
Delivery Units,Children's Family Services,Electricity,60020163,KENT COUNTY COUNCIL (KCS),540.66,07/05/2015
Delivery Units,Children's Family Services,Electricity,60020166,KENT COUNTY COUNCIL (KCS),401.74,07/05/2015
Delivery Units,Children's Family Services,Electricity,60022259,KENT COUNTY COUNCIL (KCS),367.13,29/05/2015
Delivery Units,Children's Family Services,Furniture-Purchase-Repair,60016909,DEMCO EUROPE LIMITED,548.85,05/05/2015
Delivery Units,Children's Family Services,Furniture-Purchase-Repair,60016957,DEMCO EUROPE LIMITED,825.50,05/05/2015
Delivery Units,Children's Family Services,Furniture-Purchase-Repair,60017531,DEMCO EUROPE LIMITED,"1,093.50",05/05/2015
Delivery Units,Children's Family Services,Furniture-Purchase-Repair,60017594,DEMCO EUROPE LIMITED,355.00,05/05/2015
Delivery Units,Children's Family Services,Furniture-Purchase-Repair,60020238,THE HYDE EF ACADEMY,905.46,07/05/2015
Delivery Units,Children's Family Services,Gas,60020084,BRITISH GAS BUSINESS,637.83,07/05/2015
Delivery Units,Children's Family Services,Gas,60022277,BRITISH GAS BUSINESS,"1,235.41",29/05/2015
Delivery Units,Children's Family Services,Gas,60020080,KENT COUNTY COUNCIL (KCS),535.10,07/05/2015
Delivery Units,Children's Family Services,Gas,60020096,KENT COUNTY COUNCIL (KCS),780.94,08/05/2015
Delivery Units,Children's Family Services,Gas,60020098,KENT COUNTY COUNCIL (KCS),574.45,07/05/2015
Delivery Units,Children's Family Services,Gas,60020114,KENT COUNTY COUNCIL (KCS),583.90,07/05/2015
Delivery Units,Children's Family Services,Gas,60020120,KENT COUNTY COUNCIL (KCS),308.00,07/05/2015
Delivery Units,Children's Family Services,Gas,60020127,KENT COUNTY COUNCIL (KCS),668.24,07/05/2015
Delivery Units,Children's Family Services,Gas,60020128,KENT COUNTY COUNCIL (KCS),690.65,08/05/2015
Delivery Units,Children's Family Services,Gas,60020135,KENT COUNTY COUNCIL (KCS),299.34,21/05/2015
Delivery Units,Children's Family Services,Gas,60020165,KENT COUNTY COUNCIL (KCS),450.86,21/05/2015
Delivery Units,Children's Family Services,Gas,60021259,KENT COUNTY COUNCIL (KCS),324.75,29/05/2015
Delivery Units,Children's Family Services,Gas,60021282,KENT COUNTY COUNCIL (KCS),"1,535.88",29/05/2015
Delivery Units,Children's Family Services,Gas,60021312,KENT COUNTY COUNCIL (KCS),"1,498.22",29/05/2015
Delivery Units,Children's Family Services,Gas,60021560,KENT COUNTY COUNCIL (KCS),259.62,29/05/2015
Delivery Units,Children's Family Services,Gas,60022173,KENT COUNTY COUNCIL (KCS),277.11,29/05/2015
Delivery Units,Children's Family Services,Health authorities - Third Par,60020526,NHS BARNET CCG,"6,956.09",15/05/2015
Delivery Units,Children's Family Services,Health authorities - Third Par,60020563,NHS BARNET CCG,"6,956.09",15/05/2015
Delivery Units,Children's Family Services,Health authorities - Third Par,60020567,NHS BARNET CCG,"13,056.84",15/05/2015
Delivery Units,Children's Family Services,Health authorities - Third Par,60020590,NHS BARNET CCG,"2,417.74",15/05/2015
Delivery Units,Children's Family Services,Health authorities - Third Par,60020592,NHS BARNET CCG,"13,274.45",15/05/2015
Delivery Units,Children's Family Services,Health authorities - Third Par,60020601,NHS BARNET CCG,"10,629.42",15/05/2015
Delivery Units,Children's Family Services,Health authorities - Third Par,60020615,NHS BARNET CCG,"6,956.09",15/05/2015
Delivery Units,Children's Family Services,Health authorities - Third Par,60020617,NHS BARNET CCG,"7,253.22",15/05/2015
Delivery Units,Children's Family Services,Legal and Court Fees,20020349,ENFIELD FAMILY LAW LTD,"2,109.00",22/05/2015
Delivery Units,Children's Family Services,Legal and Court Fees,20019937,ESKINAZI & CO.,"2,091.67",11/05/2015
Delivery Units,Children's Family Services,Legal and Court Fees,20020074,KALEIDOSCOPE PSYCHOLOGY SERVICES LIMITED,416.16,14/05/2015
Delivery Units,Children's Family Services,Legal and Court Fees,20019931,LEXTOX,570.80,11/05/2015
Delivery Units,Children's Family Services,Legal and Court Fees,20020076,PARTNER ABUSE INTERVENTIONS LTD,"1,487.50",14/05/2015
Delivery Units,Children's Family Services,Legal and Court Fees,20020075,WARD ANDREWS CENTRE,372.30,14/05/2015
Delivery Units,Children's Family Services,Miscellaneous Expenses,60022200,CHURCHILL CONTRACT SERVICES,"1,109.79",29/05/2015
Delivery Units,Children's Family Services,Operational Leases - Equipment,60020010,XEROX (UK) LTD,373.05,07/05/2015
